Workbook

Sheet Technical Requirements
B1: Attachment A - Functional Requirements Matrix
C2: Requirements Survey
C3: Technical Requirements | E3: Requirements Response Rules:
C4: The following functional, technical, workflow and reporting needs provide the minimum requirements of the Town of Colma. Please review the items carefully and respond in accordance with the requirements response rules provided. Any partial response will be deemed as an invalid response. MANDATORY: EVERY REQUIREMENT (Req#) MUST HAVE A RESPONSE TO BE CONSIDERED COMPLETE. | E4: Column #1. Mandatory: Proposers are required to input one response per requirement using the drop down list provided. Response Types: F=Fully provided out of the box, or fully provided out of the box through basic configuration Mod= Provided through a technical modification of the software (i.e. a customization) TP = Provided through a proposed third party application or capability CR= Custom report requiring development SR = Standard report provided through a built in or proposed reporting tool NA = Not Available Column #2. Proposers are requested to itemize estimated costs for all modification requirements. Column #3. Proposers are requested to list the third party product name for all Third Party Product requirements. Column #4. Mandatory: Proposers are required to mark yes or no to whether the implementation costs of this functionality is included in their cost proposal. Column #5. Mandatory: Proposers are required to mark yes or no to whether the training costs of this functionality is included in their cost proposal. Column #6. If a subcontractor is implementing or providing training for this functionality, please indicate the name of the subcontracting firm responsible for this functionality. Column #7. Mandatory: Proposers are required to list the version number for all functionality proposed to the Town.
C14: PROCESS | E14: 1.Response | F14: 2.Costs for Mod response | G14: 3.Third Party Application for TP response | H14: 4. Included in Implementation Costs | I14: 5. Included in training costs | J14: 6. Subcontractor | K14: 7. Version Number | L14: Comments/Narrative
B15: Req# | D15: High Priority
H16: Yes/No | I16: Yes/No
C17: Technical Requirements
C18: General Technical
A19: =IF(ISBOLD(C19),0,1) -> 1 | B19: =IF(A19>0,SUM($A$19:A19)," ") -> 1 | C19: The system integrates all application modules preventing the need to re-key or reconcile records across modules
A20: =IF(ISBOLD(C20),0,1) -> 1 | B20: =IF(A20>0,SUM($A$19:A20)," ") -> 2 | C20: The system runs multiple reports and queries simultaneously
A21: =IF(ISBOLD(C21),0,1) -> 1 | B21: =IF(A21>0,SUM($A$19:A21)," ") -> 3 | C21: The system accommodates attachments in standard formats (e.g. Microsoft Office, Adobe PDF, jpeg) Provide a list of supported attachments in the comments field. | D21: x
A22: =IF(ISBOLD(C22),0,1) -> 1 | B22: =IF(A22>0,SUM($A$19:A22)," ") -> 4 | C22: The system provides Integrated spell checking within the ERP system input fields
A23: =IF(ISBOLD(C23),0,1) -> 1 | B23: =IF(A23>0,SUM($A$19:A23)," ") -> 5 | C23: All fields, including user defined fields, are searchable within the system | D23: x
A24: =IF(ISBOLD(C24),0,1) -> 1 | B24: =IF(A24>0,SUM($A$19:A24)," ") -> 6 | C24: The system allows files to be embedded to work order documents (e.g., Word documents, plan files, Excel spreadsheets, PDF, etc.)
A25: =IF(ISBOLD(C25),0,1) -> 1 | B25: =IF(A25>0,SUM($A$19:A25)," ") -> 7 | C25: The system is PCI compliant | D25: x
A26: =IF(ISBOLD(C26),0,1) -> 1 | B26: =IF(A26>0,SUM($A$19:A26)," ") -> 8 | C26: The system is CJIS compliant | D26: x
A27: =IF(ISBOLD(C27),0,1) -> 0 | B27: =IF(A27>0,SUM($A$19:A27)," ") ->  | C27: Input/output
A28: =IF(ISBOLD(C28),0,1) -> 0 | B28: =IF(A28>0,SUM($A$19:A28)," ") ->  | C28: The system provides the following output options:
A29: =IF(ISBOLD(C29),0,1) -> 1 | B29: =IF(A29>0,SUM($A$19:A29)," ") -> 9 | C29: Screen display
A30: =IF(ISBOLD(C30),0,1) -> 1 | B30: =IF(A30>0,SUM($A$19:A30)," ") -> 10 | C30: HTML format
A31: =IF(ISBOLD(C31),0,1) -> 1 | B31: =IF(A31>0,SUM($A$19:A31)," ") -> 11 | C31: CSV format | D31: x
A32: =IF(ISBOLD(C32),0,1) -> 1 | B32: =IF(A32>0,SUM($A$19:A32)," ") -> 12 | C32: Printer | D32: x
A33: =IF(ISBOLD(C33),0,1) -> 1 | B33: =IF(A33>0,SUM($A$19:A33)," ") -> 13 | C33: Email address
A34: =IF(ISBOLD(C34),0,1) -> 1 | B34: =IF(A34>0,SUM($A$19:A34)," ") -> 14 | C34: Adobe Acrobat (.PDF) file | D34: x
A35: =IF(ISBOLD(C35),0,1) -> 1 | B35: =IF(A35>0,SUM($A$19:A35)," ") -> 15 | C35: Microsoft Excel | D35: x
A36: =IF(ISBOLD(C36),0,1) -> 1 | B36: =IF(A36>0,SUM($A$19:A36)," ") -> 16 | C36: Microsoft Word | D36: x
A37: =IF(ISBOLD(C37),0,1) -> 1 | B37: =IF(A37>0,SUM($A$19:A37)," ") -> 17 | C37: The system sends email through Office 365, or later | D37: x
A38: =IF(ISBOLD(C38),0,1) -> 0 | B38: =IF(A38>0,SUM($A$19:A38)," ") ->  | C38: The system supports imports from fixed or delimited datasets from the following applications:
A39: =IF(ISBOLD(C39),0,1) -> 1 | B39: =IF(A39>0,SUM($A$19:A39)," ") -> 18 | C39: Microsoft Excel 2010, 2013, 2016 | D39: x
A40: =IF(ISBOLD(C40),0,1) -> 1 | B40: =IF(A40>0,SUM($A$19:A40)," ") -> 19 | C40: Microsoft Word 2010, 2013, 2016
A41: =IF(ISBOLD(C41),0,1) -> 0 | B41: =IF(A41>0,SUM($A$19:A41)," ") ->  | C41: The system inputs/outputs data using the following technologies:
A42: =IF(ISBOLD(C42),0,1) -> 1 | B42: =IF(A42>0,SUM($A$19:A42)," ") -> 20 | C42: Imaging software | D42: x
A43: =IF(ISBOLD(C43),0,1) -> 1 | B43: =IF(A43>0,SUM($A$19:A43)," ") -> 21 | C43: Document scanners
A44: =IF(ISBOLD(C44),0,1) -> 1 | B44: =IF(A44>0,SUM($A$19:A44)," ") -> 22 | C44: Hand held or mobile devices
A45: =IF(ISBOLD(C45),0,1) -> 1 | B45: =IF(A45>0,SUM($A$19:A45)," ") -> 23 | C45: Other input/output devices- e.g., Cashiering | D45: x
A46: =IF(ISBOLD(C46),0,1) -> 1 | B46: =IF(A46>0,SUM($A$19:A46)," ") -> 24 | C46: The system utilizes graphical tools to illustrate statistical information
A47: =IF(ISBOLD(C47),0,1) -> 1 | B47: =IF(A47>0,SUM($A$19:A47)," ") -> 25 | C47: The system supports XML import/export
A48: =IF(ISBOLD(C48),0,1) -> 1 | B48: =IF(A48>0,SUM($A$19:A48)," ") -> 26 | C48: The system utilizes extensions between ERP and another system, such as GIS | D48: x
A49: =IF(ISBOLD(C49),0,1) -> 1 | B49: =IF(A49>0,SUM($A$19:A49)," ") -> 27 | C49: The system manages or integrates with a batch scheduler for reports and/or other system processes | D49: x
A50: =IF(ISBOLD(C50),0,1) -> 0 | B50: =IF(A50>0,SUM($A$19:A50)," ") ->  | C50: Security and Audit
A51: =IF(ISBOLD(C51),0,1) -> 0 | B51: =IF(A51>0,SUM($A$19:A51)," ") ->  | C51: The system provides security controlled user access including the following:
A52: =IF(ISBOLD(C52),0,1) -> 1 | B52: =IF(A52>0,SUM($A$19:A52)," ") -> 28 | C52: Inquire or read only | D52: x
A53: =IF(ISBOLD(C53),0,1) -> 1 | B53: =IF(A53>0,SUM($A$19:A53)," ") -> 29 | C53: Add or create | D53: x
A54: =IF(ISBOLD(C54),0,1) -> 1 | B54: =IF(A54>0,SUM($A$19:A54)," ") -> 30 | C54: Modify or update | D54: x
A55: =IF(ISBOLD(C55),0,1) -> 1 | B55: =IF(A55>0,SUM($A$19:A55)," ") -> 31 | C55: Delete or remove | D55: x
A56: =IF(ISBOLD(C56),0,1) -> 1 | B56: =IF(A56>0,SUM($A$19:A56)," ") -> 32 | C56: Confirm delete or remove | D56: x
A57: =IF(ISBOLD(C57),0,1) -> 1 | B57: =IF(A57>0,SUM($A$19:A57)," ") -> 33 | C57: Approval of transactions | D57: x
A58: =IF(ISBOLD(C58),0,1) -> 1 | B58: =IF(A58>0,SUM($A$19:A58)," ") -> 34 | C58: The system allows users to copy & paste data In the comments field, provide a list of data types that can be copied and pasted | D58: x
A59: =IF(ISBOLD(C59),0,1) -> 1 | B59: =IF(A59>0,SUM($A$19:A59)," ") -> 35 | C59: The system builds a system-wide audit trail or transaction log | D59: x
A60: =IF(ISBOLD(C60),0,1) -> 1 | B60: =IF(A60>0,SUM($A$19:A60)," ") -> 36 | C60: The system reports on the transaction log and audit trail | D60: x
A61: =IF(ISBOLD(C61),0,1) -> 0 | B61: =IF(A61>0,SUM($A$19:A61)," ") ->  | C61: The system tracks the following on the system-wide audit trail or transaction log:
A62: =IF(ISBOLD(C62),0,1) -> 1 | B62: =IF(A62>0,SUM($A$19:A62)," ") -> 37 | C62: Identification of the user | D62: x
A63: =IF(ISBOLD(C63),0,1) -> 1 | B63: =IF(A63>0,SUM($A$19:A63)," ") -> 38 | C63: Date & Time stamp | D63: x
A64: =IF(ISBOLD(C64),0,1) -> 1 | B64: =IF(A64>0,SUM($A$19:A64)," ") -> 39 | C64: Before & after images of modified data | D64: x
A65: =IF(ISBOLD(C65),0,1) -> 1 | B65: =IF(A65>0,SUM($A$19:A65)," ") -> 40 | C65: The system supports versioning of data. Specify which type of versioning your software supports in the comments column
A66: =IF(ISBOLD(C66),0,1) -> 0 | B66: =IF(A66>0,SUM($A$19:A66)," ") ->  | C66: The system alerts users through email and an integrated notification system for the following:
A67: =IF(ISBOLD(C67),0,1) -> 1 | B67: =IF(A67>0,SUM($A$19:A67)," ") -> 41 | C67: User-defined events
A68: =IF(ISBOLD(C68),0,1) -> 1 | B68: =IF(A68>0,SUM($A$19:A68)," ") -> 42 | C68: System defined deadlines
A69: =IF(ISBOLD(C69),0,1) -> 0 | B69: =IF(A69>0,SUM($A$19:A69)," ") ->  | C69: The system has the following levels of security:
A70: =IF(ISBOLD(C70),0,1) -> 1 | B70: =IF(A70>0,SUM($A$19:A70)," ") -> 43 | C70: System-level security | D70: x
A71: =IF(ISBOLD(C71),0,1) -> 1 | B71: =IF(A71>0,SUM($A$19:A71)," ") -> 44 | C71: Role-level security & controls and associated separation of duties (separation from system administrator duties, user administration duties, actual data maintenance duties) | D71: x
A72: =IF(ISBOLD(C72),0,1) -> 1 | B72: =IF(A72>0,SUM($A$19:A72)," ") -> 45 | C72: Database-level security | D72: x
A73: =IF(ISBOLD(C73),0,1) -> 1 | B73: =IF(A73>0,SUM($A$19:A73)," ") -> 46 | C73: Program-level security | D73: x
A74: =IF(ISBOLD(C74),0,1) -> 1 | B74: =IF(A74>0,SUM($A$19:A74)," ") -> 47 | C74: Screen -level security | D74: x
A75: =IF(ISBOLD(C75),0,1) -> 1 | B75: =IF(A75>0,SUM($A$19:A75)," ") -> 48 | C75: Field-level security | D75: x
A76: =IF(ISBOLD(C76),0,1) -> 1 | B76: =IF(A76>0,SUM($A$19:A76)," ") -> 49 | C76: The system supports Single Sign On (SSO)
A77: =IF(ISBOLD(C77),0,1) -> 1 | B77: =IF(A77>0,SUM($A$19:A77)," ") -> 50 | C77: The system integrates with Active Directory - including both authentication and authorization
A78: =IF(ISBOLD(C78),0,1) -> 1 | B78: =IF(A78>0,SUM($A$19:A78)," ") -> 51 | C78: The system supports centralized or decentralized management of access control
A79: =IF(ISBOLD(C79),0,1) -> 1 | B79: =IF(A79>0,SUM($A$19:A79)," ") -> 52 | C79: The system will log out a user after a defined period of inactivity | D79: x
A80: =IF(ISBOLD(C80),0,1) -> 1 | B80: =IF(A80>0,SUM($A$19:A80)," ") -> 53 | C80: The system supports electronic signatures used for online approval | D80: x
A81: =IF(ISBOLD(C81),0,1) -> 1 | B81: =IF(A81>0,SUM($A$19:A81)," ") -> 54 | C81: The system determines which users can view scanned documents and then block other users from viewing | D81: x
A82: =IF(ISBOLD(C82),0,1) -> 0 | B82: =IF(A82>0,SUM($A$19:A82)," ") ->  | C82: Data Entry Processing
A83: =IF(ISBOLD(C83),0,1) -> 1 | B83: =IF(A83>0,SUM($A$19:A83)," ") -> 55 | C83: The system allows users to utilize user defined/configurable data input screens/formats without modifying application source code | D83: x
A84: =IF(ISBOLD(C84),0,1) -> 1 | B84: =IF(A84>0,SUM($A$19:A84)," ") -> 56 | C84: The system features quick key functionality (i.e., user can enter data without having to control movement through fields via mouse)
A85: =IF(ISBOLD(C85),0,1) -> 1 | B85: =IF(A85>0,SUM($A$19:A85)," ") -> 57 | C85: The system allows users to define mandatory data entry fields | D85: x
A86: =IF(ISBOLD(C86),0,1) -> 1 | B86: =IF(A86>0,SUM($A$19:A86)," ") -> 58 | C86: The system allows users to define default field values for data entry screens
A87: =IF(ISBOLD(C87),0,1) -> 1 | B87: =IF(A87>0,SUM($A$19:A87)," ") -> 59 | C87: The system allows users to populate standard tables for particular data entry fields
A88: =IF(ISBOLD(C88),0,1) -> 1 | B88: =IF(A88>0,SUM($A$19:A88)," ") -> 60 | C88: The system attaches associated free form comments to transactions | D88: x
A89: =IF(ISBOLD(C89),0,1) -> 1 | B89: =IF(A89>0,SUM($A$19:A89)," ") -> 61 | C89: The system tracks multiple notes for each transaction type | D89: x
A90: =IF(ISBOLD(C90),0,1) -> 1 | B90: =IF(A90>0,SUM($A$19:A90)," ") -> 62 | C90: The system provides soft or hard warnings prior to executing delete or remove functions
A91: =IF(ISBOLD(C91),0,1) -> 1 | B91: =IF(A91>0,SUM($A$19:A91)," ") -> 63 | C91: The system incorporates field-level data validations | D91: x
A92: =IF(ISBOLD(C92),0,1) -> 1 | B92: =IF(A92>0,SUM($A$19:A92)," ") -> 64 | C92: The systems validates that date and format is valid in date fields
A93: =IF(ISBOLD(C93),0,1) -> 1 | B93: =IF(A93>0,SUM($A$19:A93)," ") -> 65 | C93: The system changes the editing values (tables) on-line/interactively without program coding changes and recompilation | D93: x
A94: =IF(ISBOLD(C94),0,1) -> 1 | B94: =IF(A94>0,SUM($A$19:A94)," ") -> 66 | C94: The system allows users to enter alpha, alphanumeric, and numeric values within the same form
A95: =IF(ISBOLD(C95),0,1) -> 1 | B95: =IF(A95>0,SUM($A$19:A95)," ") -> 67 | C95: The system runs the application within a web browser (Want the ability to fully use all user functions without installing additional local software) Provide a list of supported browsers and required add-ons in the comments field
A96: =IF(ISBOLD(C96),0,1) -> 1 | B96: =IF(A96>0,SUM($A$19:A96)," ") -> 68 | C96: The system allows access using mobile technology such as tablets and mobile "smart phones" Provide a list of supported mobile devices in the comments section | D96: x
A97: =IF(ISBOLD(C97),0,1) -> 0 | B97: =IF(A97>0,SUM($A$19:A97)," ") ->  | C97: Network Connectivity
A98: =IF(ISBOLD(C98),0,1) -> 1 | B98: =IF(A98>0,SUM($A$19:A98)," ") -> 69 | C98: The system switches to a backup network in case of an outage or system downtime
A99: =IF(ISBOLD(C99),0,1) -> 1 | B99: =IF(A99>0,SUM($A$19:A99)," ") -> 70 | C99: The system leverages existing infrastructure for connectivity if such connectivity exists today such as terminal services or other remote connectivity tools | D99: x
A100: =IF(ISBOLD(C100),0,1) -> 1 | B100: =IF(A100>0,SUM($A$19:A100)," ") -> 71 | C100: The system provides a secure connection ensuring all data is protected | D100: x
A101: =IF(ISBOLD(C101),0,1) -> 1 | B101: =IF(A101>0,SUM($A$19:A101)," ") -> 72 | C101: The system provides encryption as part of the connectivity security approach | D101: x
A102: =IF(ISBOLD(C102),0,1) -> 1 | B102: =IF(A102>0,SUM($A$19:A102)," ") -> 73 | C102: The system prints to network printers, using TCP / IP, without additional hardware components | D102: x
A103: =IF(ISBOLD(C103),0,1) -> 1 | B103: =IF(A103>0,SUM($A$19:A103)," ") -> 74 | C103: The system performs distributed printing to addressable printers connected to the government's network including on demand printing, scheduled printing and queuing for batch printing. | D103: x
A104: =IF(ISBOLD(C104),0,1) -> 0 | B104: =IF(A104>0,SUM($A$19:A104)," ") ->  | C104: Platform, Operating Environment and Browsers
A105: =IF(ISBOLD(C105),0,1) -> 1 | B105: =IF(A105>0,SUM($A$19:A105)," ") -> 75 | C105: The system operates in a Windows desktop environment | D105: x
A106: =IF(ISBOLD(C106),0,1) -> 1 | B106: =IF(A106>0,SUM($A$19:A106)," ") -> 76 | C106: The system works with Internet Explorer. Specify limitations on versions in the comments column | D106: x
A107: =IF(ISBOLD(C107),0,1) -> 1 | B107: =IF(A107>0,SUM($A$19:A107)," ") -> 77 | C107: The system works with Edge. Specify limitations on versions in the comments column
A108: =IF(ISBOLD(C108),0,1) -> 1 | B108: =IF(A108>0,SUM($A$19:A108)," ") -> 78 | C108: The system works with Firefox. Specify limitations on versions in the comments column
A109: =IF(ISBOLD(C109),0,1) -> 1 | B109: =IF(A109>0,SUM($A$19:A109)," ") -> 79 | C109: The system works with Chrome. Specify limitations on versions in the comments column | D109: x
A110: =IF(ISBOLD(C110),0,1) -> 1 | B110: =IF(A110>0,SUM($A$19:A110)," ") -> 80 | C110: The system works with mobile browsers. Specify types of mobile browsers and any limitations in the comments column | D110: x
A111: =IF(ISBOLD(C111),0,1) -> 0 | B111: =IF(A111>0,SUM($A$19:A111)," ") ->  | C111: Application Architecture
A112: =IF(ISBOLD(C112),0,1) -> 1 | B112: =IF(A112>0,SUM($A$19:A112)," ") -> 81 | C112: The system provides APIs for custom code to support upgrades to future releases
A113: =IF(ISBOLD(C113),0,1) -> 1 | B113: =IF(A113>0,SUM($A$19:A113)," ") -> 82 | C113: The system provides the government with data integration and the ability to build interfaces to and from the product | D113: x
A114: =IF(ISBOLD(C114),0,1) -> 1 | B114: =IF(A114>0,SUM($A$19:A114)," ") -> 83 | C114: The system supports or utilizes web services Note any version or service limitations in the comments field
A115: =IF(ISBOLD(C115),0,1) -> 0 | B115: =IF(A115>0,SUM($A$19:A115)," ") ->  | C115: Operational Standards
A116: =IF(ISBOLD(C116),0,1) -> 1 | B116: =IF(A116>0,SUM($A$19:A116)," ") -> 84 | C116: The system guarantees continuously available (24x7) external web-enabled information access functions Note any limitations in the comments field
A117: =IF(ISBOLD(C117),0,1) -> 1 | B117: =IF(A117>0,SUM($A$19:A117)," ") -> 85 | C117: The system fully-synchronizes backup and recovery with a well-defined disaster recovery plan. Ability to utilize clustering and/or mirroring, and/or virtual technology Note any limitations in the comments field | D117: x
A118: =IF(ISBOLD(C118),0,1) -> 1 | B118: =IF(A118>0,SUM($A$19:A118)," ") -> 86 | C118: The system provides high availability including application, disk storage and CPU failover Note any limitations in the comments field
A119: =IF(ISBOLD(C119),0,1) -> 1 | B119: =IF(A119>0,SUM($A$19:A119)," ") -> 87 | C119: The system performs transaction level auditing and rollback/recovery to ensure internal integrity of all transactions Note any limitations in the comments field | D119: x
A120: =IF(ISBOLD(C120),0,1) -> 0 | B120: =IF(A120>0,SUM($A$19:A120)," ") ->  | C120: Report/Inquiry Processing
A121: =IF(ISBOLD(C121),0,1) -> 1 | B121: =IF(A121>0,SUM($A$19:A121)," ") -> 88 | C121: The system utilizes a report writer | D121: x
A122: =IF(ISBOLD(C122),0,1) -> 1 | B122: =IF(A122>0,SUM($A$19:A122)," ") -> 89 | C122: The system prevents unauthorized data access through the report writer | D122: x
A123: =IF(ISBOLD(C123),0,1) -> 1 | B123: =IF(A123>0,SUM($A$19:A123)," ") -> 90 | C123: The system modifies pre-existing reports
A124: =IF(ISBOLD(C124),0,1) -> 1 | B124: =IF(A124>0,SUM($A$19:A124)," ") -> 91 | C124: The system has user-driven ad-hoc reporting | D124: x
A125: =IF(ISBOLD(C125),0,1) -> 1 | B125: =IF(A125>0,SUM($A$19:A125)," ") -> 92 | C125: The system manages report templates
A126: =IF(ISBOLD(C126),0,1) -> 1 | B126: =IF(A126>0,SUM($A$19:A126)," ") -> 93 | C126: The system generates a report on any field | D126: x
A127: =IF(ISBOLD(C127),0,1) -> 1 | B127: =IF(A127>0,SUM($A$19:A127)," ") -> 94 | C127: The system prints reports in batches | D127: x
A128: =IF(ISBOLD(C128),0,1) -> 1 | B128: =IF(A128>0,SUM($A$19:A128)," ") -> 95 | C128: The system retains multiple generations of reports to meet retention requirements
A129: =IF(ISBOLD(C129),0,1) -> 1 | B129: =IF(A129>0,SUM($A$19:A129)," ") -> 96 | C129: The system purges retained reports on schedule according to record retention requirements | D129: x
A130: =IF(ISBOLD(C130),0,1) -> 1 | B130: =IF(A130>0,SUM($A$19:A130)," ") -> 97 | C130: The system views current and retained reports on-line
A131: =IF(ISBOLD(C131),0,1) -> 1 | B131: =IF(A131>0,SUM($A$19:A131)," ") -> 98 | C131: System provides a system wide database diagram and schema with relation links, table names with description, field names with descriptions and data definitions to facilitate custom reporting
A132: =IF(ISBOLD(C132),0,1) -> 1 | B132: =IF(A132>0,SUM($A$19:A132)," ") -> 99 | C132: The system automatically routes a report to identified users electronically | D132: x
A133: =IF(ISBOLD(C133),0,1) -> 1 | B133: =IF(A133>0,SUM($A$19:A133)," ") -> 100 | C133: The system saves and shares custom developed reports with all users through the reporting interface
A134: =IF(ISBOLD(C134),0,1) -> 1 | B134: =IF(A134>0,SUM($A$19:A134)," ") -> 101 | C134: The system manages automatic reconciliation of all exported/imported data
A135: =IF(ISBOLD(C135),0,1) -> 0 | B135: =IF(A135>0,SUM($A$19:A135)," ") ->  | C135: The system allows the user to schedule automatic report printing/generation by the following:
A136: =IF(ISBOLD(C136),0,1) -> 1 | B136: =IF(A136>0,SUM($A$19:A136)," ") -> 102 | C136: Time of day | D136: x
A137: =IF(ISBOLD(C137),0,1) -> 1 | B137: =IF(A137>0,SUM($A$19:A137)," ") -> 103 | C137: Day of week | D137: x
A138: =IF(ISBOLD(C138),0,1) -> 1 | B138: =IF(A138>0,SUM($A$19:A138)," ") -> 104 | C138: Day of month | D138: x
A139: =IF(ISBOLD(C139),0,1) -> 1 | B139: =IF(A139>0,SUM($A$19:A139)," ") -> 105 | C139: User-defined number of days | D139: x
A140: =IF(ISBOLD(C140),0,1) -> 1 | B140: =IF(A140>0,SUM($A$19:A140)," ") -> 106 | C140: User-defined day of the week | D140: x
A141: =IF(ISBOLD(C141),0,1) -> 1 | B141: =IF(A141>0,SUM($A$19:A141)," ") -> 107 | C141: Monthly | D141: x
A142: =IF(ISBOLD(C142),0,1) -> 1 | B142: =IF(A142>0,SUM($A$19:A142)," ") -> 108 | C142: Semi-annually | D142: x
A143: =IF(ISBOLD(C143),0,1) -> 1 | B143: =IF(A143>0,SUM($A$19:A143)," ") -> 109 | C143: Annually | D143: x
A144: =IF(ISBOLD(C144),0,1) -> 1 | B144: =IF(A144>0,SUM($A$19:A144)," ") -> 110 | C144: User-defined time period | D144: x
A145: =IF(ISBOLD(C145),0,1) -> 0 | B145: =IF(A145>0,SUM($A$19:A145)," ") ->  | C145: The system provides the following ad hoc query functionality:
A146: =IF(ISBOLD(C146),0,1) -> 1 | B146: =IF(A146>0,SUM($A$19:A146)," ") -> 111 | C146: Sort information by multiple fields | D146: x
A147: =IF(ISBOLD(C147),0,1) -> 1 | B147: =IF(A147>0,SUM($A$19:A147)," ") -> 112 | C147: Minimize information selection based on multiple field criteria | D147: x
A148: =IF(ISBOLD(C148),0,1) -> 1 | B148: =IF(A148>0,SUM($A$19:A148)," ") -> 113 | C148: Provide multi-level totaling | D148: x
A149: =IF(ISBOLD(C149),0,1) -> 1 | B149: =IF(A149>0,SUM($A$19:A149)," ") -> 114 | C149: The system allows users to save ad hoc query templates
A150: =IF(ISBOLD(C150),0,1) -> 0 | B150: =IF(A150>0,SUM($A$19:A150)," ") ->  | C150: The system provides information analysis tools, including:
A151: =IF(ISBOLD(C151),0,1) -> 1 | B151: =IF(A151>0,SUM($A$19:A151)," ") -> 115 | C151: Standard on-screen inquiries | D151: x
A152: =IF(ISBOLD(C152),0,1) -> 1 | B152: =IF(A152>0,SUM($A$19:A152)," ") -> 116 | C152: Query tools
A153: =IF(ISBOLD(C153),0,1) -> 1 | B153: =IF(A153>0,SUM($A$19:A153)," ") -> 117 | C153: The system provides what-if scenario reporting
A154: =IF(ISBOLD(C154),0,1) -> 0 | B154: =IF(A154>0,SUM($A$19:A154)," ") ->  | C154: The system allows users to select multiple output formats for reports including:
A155: =IF(ISBOLD(C155),0,1) -> 1 | B155: =IF(A155>0,SUM($A$19:A155)," ") -> 118 | C155: .PDF | D155: x
A156: =IF(ISBOLD(C156),0,1) -> 1 | B156: =IF(A156>0,SUM($A$19:A156)," ") -> 119 | C156: .doc, .docx, .dotx, .docm
A157: =IF(ISBOLD(C157),0,1) -> 1 | B157: =IF(A157>0,SUM($A$19:A157)," ") -> 120 | C157: .xls, .xlsx, xltx, xltm, xlsb, xlam, .xlsm | D157: x
A158: =IF(ISBOLD(C158),0,1) -> 1 | B158: =IF(A158>0,SUM($A$19:A158)," ") -> 121 | C158: HTML
A159: =IF(ISBOLD(C159),0,1) -> 1 | B159: =IF(A159>0,SUM($A$19:A159)," ") -> 122 | C159: Strictly defined XML file
A160: =IF(ISBOLD(C160),0,1) -> 1 | B160: =IF(A160>0,SUM($A$19:A160)," ") -> 123 | C160: Other common output formats
A161: =IF(ISBOLD(C161),0,1) -> 0 | B161: =IF(A161>0,SUM($A$19:A161)," ") ->  | C161: The system performs the following output formats on demand, as scheduled and batch:
A162: =IF(ISBOLD(C162),0,1) -> 1 | B162: =IF(A162>0,SUM($A$19:A162)," ") -> 124 | C162: Paper (printed) | D162: x
A163: =IF(ISBOLD(C163),0,1) -> 1 | B163: =IF(A163>0,SUM($A$19:A163)," ") -> 125 | C163: Fax If integration with a third party fax software/service is required, indicate the provider in the comments field
A164: =IF(ISBOLD(C164),0,1) -> 1 | B164: =IF(A164>0,SUM($A$19:A164)," ") -> 126 | C164: E-mail
A165: =IF(ISBOLD(C165),0,1) -> 1 | B165: =IF(A165>0,SUM($A$19:A165)," ") -> 127 | C165: File - XML, PDF, HTML, text, csv | D165: x
A166: =IF(ISBOLD(C166),0,1) -> 0 | B166: =IF(A166>0,SUM($A$19:A166)," ") ->  | C166: The system defines user default print locations for the following items:
A167: =IF(ISBOLD(C167),0,1) -> 1 | B167: =IF(A167>0,SUM($A$19:A167)," ") -> 128 | C167: Reports | D167: x
A168: =IF(ISBOLD(C168),0,1) -> 1 | B168: =IF(A168>0,SUM($A$19:A168)," ") -> 129 | C168: Requisitions/POs | D168: x
A169: =IF(ISBOLD(C169),0,1) -> 1 | B169: =IF(A169>0,SUM($A$19:A169)," ") -> 130 | C169: Checks, with security | D169: x
A170: =IF(ISBOLD(C170),0,1) -> 1 | B170: =IF(A170>0,SUM($A$19:A170)," ") -> 131 | C170: Payroll, with security | D170: x
A171: =IF(ISBOLD(C171),0,1) -> 1 | B171: =IF(A171>0,SUM($A$19:A171)," ") -> 132 | C171: Labels | D171: x
A172: =IF(ISBOLD(C172),0,1) -> 1 | B172: =IF(A172>0,SUM($A$19:A172)," ") -> 133 | C172: 1099s, with security | D172: x
A173: =IF(ISBOLD(C173),0,1) -> 1 | B173: =IF(A173>0,SUM($A$19:A173)," ") -> 134 | C173: Other printed items, with security | D173: x
A174: =IF(ISBOLD(C174),0,1) -> 1 | B174: =IF(A174>0,SUM($A$19:A174)," ") -> 135 | C174: The system produces flat files for upload to various web portals (i.e. federal online forms)
A175: =IF(ISBOLD(C175),0,1) -> 0 | B175: =IF(A175>0,SUM($A$19:A175)," ") ->  | C175: Data Retention
A176: =IF(ISBOLD(C176),0,1) -> 1 | B176: =IF(A176>0,SUM($A$19:A176)," ") -> 136 | C176: The system enables compliance with applicable local and State retention schedules | D176: x
A177: =IF(ISBOLD(C177),0,1) -> 0 | B177: =IF(A177>0,SUM($A$19:A177)," ") ->  | C177: Archive and Back-Up
A178: =IF(ISBOLD(C178),0,1) -> 1 | B178: =IF(A178>0,SUM($A$19:A178)," ") -> 137 | C178: The system manages a defined archival and purge procedure, with appropriate user security override | D178: x
A179: =IF(ISBOLD(C179),0,1) -> 1 | B179: =IF(A179>0,SUM($A$19:A179)," ") -> 138 | C179: The system pre-schedules data archiving and purge routines, with appropriate user security override | D179: x
A180: =IF(ISBOLD(C180),0,1) -> 1 | B180: =IF(A180>0,SUM($A$19:A180)," ") -> 139 | C180: The system performs automatic daily incremental back-up of all system files with periodic full back-up of the complete system If integration with a third party backup/archival system is required, specify the supported provider in the comments field. | D180: x
A181: =IF(ISBOLD(C181),0,1) -> 1 | B181: =IF(A181>0,SUM($A$19:A181)," ") -> 140 | C181: The system accomodates third party back-up on a daily, incremental basis for all system files and with periodic fill back-up of the complete system
A182: =IF(ISBOLD(C182),0,1) -> 1 | B182: =IF(A182>0,SUM($A$19:A182)," ") -> 141 | C182: The system archives data, including all system data
A183: =IF(ISBOLD(C183),0,1) -> 1 | B183: =IF(A183>0,SUM($A$19:A183)," ") -> 142 | C183: The system performs full back-up and recovery in the event of malfunction (hardware and/or software), and ensures that no transactions are lost If integration with a third party backup/archival system is required, specify the supported provider in the comments field.
A184: =IF(ISBOLD(C184),0,1) -> 1 | B184: =IF(A184>0,SUM($A$19:A184)," ") -> 143 | C184: The system modifies archive and purge criteria options that can be easily changed by an authorized administrator while maintaining file synchronization and referential integrity of tables
A185: =IF(ISBOLD(C185),0,1) -> 1 | B185: =IF(A185>0,SUM($A$19:A185)," ") -> 144 | C185: The system marks records for deletion and does not remove them from the database until archived | D185: x
A186: =IF(ISBOLD(C186),0,1) -> 1 | B186: =IF(A186>0,SUM($A$19:A186)," ") -> 145 | C186: The system allows the administrator to reset deleted records (maintaining referential integrity) | D186: x
A187: =IF(ISBOLD(C187),0,1) -> 1 | B187: =IF(A187>0,SUM($A$19:A187)," ") -> 146 | C187: The system provides access to archived data when the system architecture changes as a result of a software upgrade | D187: x
A188: =IF(ISBOLD(C188),0,1) -> 1 | B188: =IF(A188>0,SUM($A$19:A188)," ") -> 147 | C188: The system purges records upon request that meet user defined time and/or other purge criteria | D188: x
A189: =IF(ISBOLD(C189),0,1) -> 1 | B189: =IF(A189>0,SUM($A$19:A189)," ") -> 148 | C189: The system validates integrity of database before and after purge | D189: x
A190: =IF(ISBOLD(C190),0,1) -> 1 | B190: =IF(A190>0,SUM($A$19:A190)," ") -> 149 | C190: The system lists all records included in purge | D190: x
A191: =IF(ISBOLD(C191),0,1) -> 1 | B191: =IF(A191>0,SUM($A$19:A191)," ") -> 150 | C191: The system identifies orphaned records (e.g. records that do not have parent values) | D191: x
A192: =IF(ISBOLD(C192),0,1) -> 1 | B192: =IF(A192>0,SUM($A$19:A192)," ") -> 151 | C192: The system provides a method to access, query, and report against archived data | D192: x
A193: =IF(ISBOLD(C193),0,1) -> 1 | B193: =IF(A193>0,SUM($A$19:A193)," ") -> 152 | C193: The system automatically archives cleared checks from the database dependent upon a table driven age limit and maintains access history, with appropriate security override | D193: x
A194: =IF(ISBOLD(C194),0,1) -> 0 | B194: =IF(A194>0,SUM($A$19:A194)," ") ->  | C194: Process Scheduling and Execution
A195: =IF(ISBOLD(C195),0,1) -> 1 | B195: =IF(A195>0,SUM($A$19:A195)," ") -> 153 | C195: The system controls priority of the batch process based on multiple user defined criteria | D195: x
A196: =IF(ISBOLD(C196),0,1) -> 1 | B196: =IF(A196>0,SUM($A$19:A196)," ") -> 154 | C196: The system controls job start time based on user-defined criteria
A197: =IF(ISBOLD(C197),0,1) -> 1 | B197: =IF(A197>0,SUM($A$19:A197)," ") -> 155 | C197: The system controls job by transaction type
A198: =IF(ISBOLD(C198),0,1) -> 1 | B198: =IF(A198>0,SUM($A$19:A198)," ") -> 156 | C198: The system sequences multiple jobs based on user defined rules | D198: x
A199: =IF(ISBOLD(C199),0,1) -> 1 | B199: =IF(A199>0,SUM($A$19:A199)," ") -> 157 | C199: The system manages a system-wide calendar which can be updated on-line by the user to schedule processing or control processing parameters | D199: x
A200: =IF(ISBOLD(C200),0,1) -> 1 | B200: =IF(A200>0,SUM($A$19:A200)," ") -> 158 | C200: The system integrates with external process/job scheduler so that dependencies related to external processes can be used to manage system events
A201: =IF(ISBOLD(C201),0,1) -> 1 | B201: =IF(A201>0,SUM($A$19:A201)," ") -> 159 | C201: The system manages various program checks for controlling data files, verifying correct processing, and ensuring data integrity, such as record counts, totals, limit checks, and dollar totals | D201: x
A202: =IF(ISBOLD(C202),0,1) -> 0 | B202: =IF(A202>0,SUM($A$19:A202)," ") ->  | C202: Help Capability
A203: =IF(ISBOLD(C203),0,1) -> 0 | B203: =IF(A203>0,SUM($A$19:A203)," ") ->  | C203: The system provides the following on-line help functionality:
A204: =IF(ISBOLD(C204),0,1) -> 1 | B204: =IF(A204>0,SUM($A$19:A204)," ") -> 160 | C204: Searchable help | D204: x
A205: =IF(ISBOLD(C205),0,1) -> 1 | B205: =IF(A205>0,SUM($A$19:A205)," ") -> 161 | C205: Field (topic) specific help | D205: x
A206: =IF(ISBOLD(C206),0,1) -> 1 | B206: =IF(A206>0,SUM($A$19:A206)," ") -> 162 | C206: The system allows secured customization/configuration of the online help
A207: =IF(ISBOLD(C207),0,1) -> 0 | B207: =IF(A207>0,SUM($A$19:A207)," ") ->  | C207: The system performs an extensive online help facility capable of being easily modified by system management/administration. The help facility will include:
A208: =IF(ISBOLD(C208),0,1) -> 1 | B208: =IF(A208>0,SUM($A$19:A208)," ") -> 163 | C208: Window level help
A209: =IF(ISBOLD(C209),0,1) -> 1 | B209: =IF(A209>0,SUM($A$19:A209)," ") -> 164 | C209: Field level help
... 51 more rows

Sheet General Ledger
C1: Requirements Survey
C2: General Ledger | E2: Requirements Response Rules:
C3: The following functional, technical, workflow and reporting needs provide the minimum requirements of the Town of Colma. Please review the items carefully and respond in accordance with the requirements response rules provided. Any partial response will be deemed as an invalid response. MANDATORY: EVERY REQUIREMENT (Req#) MUST HAVE A RESPONSE TO BE CONSIDERED COMPLETE. | E3: Column #1. Mandatory: Proposers are required to input one response per requirement using the drop down list provided. Response Types: F=Fully provided out of the box, or fully provided out of the box through basic configuration Mod= Provided through a technical modification of the software (i.e. a customization) TP = Provided through a proposed third party application or capability CR= Custom report requiring development SR = Standard report provided through a built in or proposed reporting tool NA = Not Available Column #2. Proposers are requested to itemize estimated costs for all modification requirements. Column #3. Proposers are requested to list the third party product name for all Third Party Product requirements. Column #4. Mandatory: Proposers are required to mark yes or no to whether the implementation costs of this functionality is included in their cost proposal. Column #5. Mandatory: Proposers are required to mark yes or no to whether the training costs of this functionality is included in their cost proposal. Column #6. If a subcontractor is implementing or providing training for this functionality, please indicate the name of the subcontracting firm responsible for this functionality. Column #7. Mandatory: Proposers are required to list the version number for all functionality proposed to the Town.
C13: PROCESS | D13: High Priority | E13: 1.Response | F13: 2.Costs for Mod response | G13: 3.Third Party Application for TP response | H13: 4. Included in Implementation Costs | I13: 5. Included in training costs | J13: 6. Subcontractor | K13: 7. Version Number | L13: Comments/Narrative
B14: Req#
H15: Yes/No | I15: Yes/No
C16: General Ledger
C17: GL Set Up and Design
A18: =IF(ISBOLD(C18),0,1) -> 1 | B18: =IF(A18>0,SUM($A18:A$18)," ") -> 1 | C18: The system sets up a flexible General Ledger structure with shortcuts available to users
A19: =IF(ISBOLD(C19),0,1) -> 1 | B19: =IF(A19>0,SUM($A$18:A19)," ") -> 2 | C19: The system sets up a chart of accounts (COA) coding structure including, but not limited to: Fund, Center, Account, Department, Division, Program, Service, Object, Project, Line of Business and other criteria | D19: x
A20: =IF(ISBOLD(C20),0,1) -> 1 | B20: =IF(A20>0,SUM($A$18:A20)," ") -> 3 | C20: The system sets up controls within every module in the system around every element within the General Ledger (e.g., limit charges to active funds, accounts or centers)
A21: =IF(ISBOLD(C21),0,1) -> 1 | B21: =IF(A21>0,SUM($A$18:A21)," ") -> 4 | C21: The system validates the chart of accounts (i.e., department, cost center) by field | D21: x
A22: =IF(ISBOLD(C22),0,1) -> 1 | B22: =IF(A22>0,SUM($A$18:A22)," ") -> 5 | C22: The system has the ability to create project codes that allow for tracking of profit and losses for specific events
A23: =IF(ISBOLD(C23),0,1) -> 1 | B23: =IF(A23>0,SUM($A$18:A23)," ") -> 6 | C23: Account names autopopulate based on selected criteria
A24: =IF(ISBOLD(C24),0,1) -> 1 | B24: =IF(A24>0,SUM($A$18:A24)," ") -> 7 | C24: The system allows multiple users to access the module simultaneously.
A25: =IF(ISBOLD(C25),0,1) -> 1 | B25: =IF(A25>0,SUM($A$18:A25)," ") -> 8 | C25: The system complies with SAS standards and ACFR financial reporting
A26: =IF(ISBOLD(C26),0,1) -> 1 | B26: =IF(A26>0,SUM($A$18:A26)," ") -> 9 | C26: The system makes organizational structure changes to be used for future transactions. Ability to close series of account strings & open others easily when designated funds are modified
A27: =IF(ISBOLD(C27),0,1) -> 1 | B27: =IF(A27>0,SUM($A$18:A27)," ") -> 10 | C27: The system provides compliance with OMB A-133
A28: =IF(ISBOLD(C28),0,1) -> 1 | B28: =IF(A28>0,SUM($A$18:A28)," ") -> 11 | C28: The system provides compliance with GASB/GAAP | D28: x
A29: =IF(ISBOLD(C29),0,1) -> 1 | B29: =IF(A29>0,SUM($A$18:A29)," ") -> 12 | C29: The system sets up user defined segment lengths
A30: =IF(ISBOLD(C30),0,1) -> 1 | B30: =IF(A30>0,SUM($A$18:A30)," ") -> 13 | C30: The system sets up multiple ranges of accounts for segments of the code
A31: =IF(ISBOLD(C31),0,1) -> 1 | B31: =IF(A31>0,SUM($A$18:A31)," ") -> 14 | C31: The system sets up multiple roll up levels
A32: =IF(ISBOLD(C32),0,1) -> 1 | B32: =IF(A32>0,SUM($A$18:A32)," ") -> 15 | C32: The system has multiple organizational structures roll up by period or year
A33: =IF(ISBOLD(C33),0,1) -> 1 | B33: =IF(A33>0,SUM($A$18:A33)," ") -> 16 | C33: The system sets up multiple account hierarchies
A34: =IF(ISBOLD(C34),0,1) -> 1 | B34: =IF(A34>0,SUM($A$18:A34)," ") -> 17 | C34: The system sets up and define funds, accounts, centers or projects as active
A35: =IF(ISBOLD(C35),0,1) -> 1 | B35: =IF(A35>0,SUM($A$18:A35)," ") -> 18 | C35: The system sets up and define funds, accounts, centers or projects as inactive and to trigger a workflow for reactivation
A36: =IF(ISBOLD(C36),0,1) -> 1 | B36: =IF(A36>0,SUM($A$18:A36)," ") -> 19 | C36: The system sets up multiple funds | D36: x
A37: =IF(ISBOLD(C37),0,1) -> 1 | B37: =IF(A37>0,SUM($A$18:A37)," ") -> 20 | C37: The system defines the roll up structure for the government's COA/cost centers
A38: =IF(ISBOLD(C38),0,1) -> 1 | B38: =IF(A38>0,SUM($A$18:A38)," ") -> 21 | C38: The system defines multiple levels of structure for the COA/cost centers
A39: =IF(ISBOLD(C39),0,1) -> 1 | B39: =IF(A39>0,SUM($A$18:A39)," ") -> 22 | C39: The system provides real time activation of funds, accounts, cost centers, and valid coding combinations
A40: =IF(ISBOLD(C40),0,1) -> 1 | B40: =IF(A40>0,SUM($A$18:A40)," ") -> 23 | C40: The system performs online creation, editing and control of the chart of accounts and descriptions by authorized staff
A41: =IF(ISBOLD(C41),0,1) -> 1 | B41: =IF(A41>0,SUM($A$18:A41)," ") -> 24 | C41: The system provides real time input of COA changes and requests with workflow and approval
A42: =IF(ISBOLD(C42),0,1) -> 1 | B42: =IF(A42>0,SUM($A$18:A42)," ") -> 25 | C42: The system allows users to look up chart of account number, title, and description information online, in all modules, while performing any transaction
A43: =IF(ISBOLD(C43),0,1) -> 1 | B43: =IF(A43>0,SUM($A$18:A43)," ") -> 26 | C43: The system specifies the number of fields in the code structure and the number of characters within each field
A44: =IF(ISBOLD(C44),0,1) -> 1 | B44: =IF(A44>0,SUM($A$18:A44)," ") -> 27 | C44: The system manages a flexible account structure, customizable to the government's requirements with ability to record and maintain data at the government's defined segment lengths and details
A45: =IF(ISBOLD(C45),0,1) -> 1 | B45: =IF(A45>0,SUM($A$18:A45)," ") -> 28 | C45: The system specifies consolidation hierarchy and level for each department, cost center, fund, account, project and other criteria at time of set up and modify based upon user security
A46: =IF(ISBOLD(C46),0,1) -> 1 | B46: =IF(A46>0,SUM($A$18:A46)," ") -> 29 | C46: The system generates new segment combinations based on user defined rules
A47: =IF(ISBOLD(C47),0,1) -> 1 | B47: =IF(A47>0,SUM($A$18:A47)," ") -> 30 | C47: The system designates core balance sheet accounts which must be used in all funds, and other balance sheet accounts which can be used in specified funds
A48: =IF(ISBOLD(C48),0,1) -> 1 | B48: =IF(A48>0,SUM($A$18:A48)," ") -> 31 | C48: The system includes all transactions involving balance sheet accounts to allow program cost centers in the coding so that balance sheet transactions can be tracked back to their program of origination and program level balance sheets can be constructed
A49: =IF(ISBOLD(C49),0,1) -> 1 | B49: =IF(A49>0,SUM($A$18:A49)," ") -> 32 | C49: The system confirms that all chart of account transaction information used is valid at the time each transaction is entered | D49: x
A50: =IF(ISBOLD(C50),0,1) -> 1 | B50: =IF(A50>0,SUM($A$18:A50)," ") -> 33 | C50: The system deactivates chart of account codes to restrict future transaction postings based on user defined rules and effective dating
A51: =IF(ISBOLD(C51),0,1) -> 1 | B51: =IF(A51>0,SUM($A$18:A51)," ") -> 34 | C51: The system establishes a chart of accounts that allows the definition of hierarchical structures that provide reporting capability of individual accounts and major account series as well as aggregating revenues and expenditures
A52: =IF(ISBOLD(C52),0,1) -> 1 | B52: =IF(A52>0,SUM($A$18:A52)," ") -> 35 | C52: The system tracks organization structure changes over multiple years
A53: =IF(ISBOLD(C53),0,1) -> 1 | B53: =IF(A53>0,SUM($A$18:A53)," ") -> 36 | C53: The system moves prior years' history (including detail of transactions) with organization structure changes
A54: =IF(ISBOLD(C54),0,1) -> 1 | B54: =IF(A54>0,SUM($A$18:A54)," ") -> 37 | C54: The system retains the history of a segment, including historical names, previous roll-up or tree structure, financial data and other data
A55: =IF(ISBOLD(C55),0,1) -> 1 | B55: =IF(A55>0,SUM($A$18:A55)," ") -> 38 | C55: The system puts effective date in segment name changes
A56: =IF(ISBOLD(C56),0,1) -> 1 | B56: =IF(A56>0,SUM($A$18:A56)," ") -> 39 | C56: The system provides a utility to facilitate mass updates to Chart of Account transactions, e.g., user can inactivate a broad range of accounts
A57: =IF(ISBOLD(C57),0,1) -> 1 | B57: =IF(A57>0,SUM($A$18:A57)," ") -> 40 | C57: The system automatically backs out and reapplies transactions affected by midyear organization structure changes
A58: =IF(ISBOLD(C58),0,1) -> 0 | B58: =IF(A58>0,SUM($A$18:A58)," ") ->  | C58: The system defines the following segments and accounts:
A59: =IF(ISBOLD(C59),0,1) -> 1 | B59: =IF(A59>0,SUM($A$18:A59)," ") -> 41 | C59: Multiple legal entities (e.g., Town, and others)
A60: =IF(ISBOLD(C60),0,1) -> 1 | B60: =IF(A60>0,SUM($A$18:A60)," ") -> 42 | C60: Town
A61: =IF(ISBOLD(C61),0,1) -> 1 | B61: =IF(A61>0,SUM($A$18:A61)," ") -> 43 | C61: Multiple Funds | D61: x
A62: =IF(ISBOLD(C62),0,1) -> 1 | B62: =IF(A62>0,SUM($A$18:A62)," ") -> 44 | C62: Multiple Departments | D62: x
A63: =IF(ISBOLD(C63),0,1) -> 1 | B63: =IF(A63>0,SUM($A$18:A63)," ") -> 45 | C63: Multiple Divisions | D63: x
A64: =IF(ISBOLD(C64),0,1) -> 1 | B64: =IF(A64>0,SUM($A$18:A64)," ") -> 46 | C64: Multiple Locations
A65: =IF(ISBOLD(C65),0,1) -> 1 | B65: =IF(A65>0,SUM($A$18:A65)," ") -> 47 | C65: Multiple Units
A66: =IF(ISBOLD(C66),0,1) -> 1 | B66: =IF(A66>0,SUM($A$18:A66)," ") -> 48 | C66: Multiple Budget Groups
A67: =IF(ISBOLD(C67),0,1) -> 1 | B67: =IF(A67>0,SUM($A$18:A67)," ") -> 49 | C67: Multiple Cost Centers | D67: x
A68: =IF(ISBOLD(C68),0,1) -> 1 | B68: =IF(A68>0,SUM($A$18:A68)," ") -> 50 | C68: Multiple Projects | D68: x
A69: =IF(ISBOLD(C69),0,1) -> 1 | B69: =IF(A69>0,SUM($A$18:A69)," ") -> 51 | C69: Multiple Grants
A70: =IF(ISBOLD(C70),0,1) -> 0 | B70: =IF(A70>0,SUM($A$18:A70)," ") ->  | C70: The system sets up and defines periods, including:
A71: =IF(ISBOLD(C71),0,1) -> 1 | B71: =IF(A71>0,SUM($A$18:A71)," ") -> 52 | C71: Fiscal Calendar | D71: x
A72: =IF(ISBOLD(C72),0,1) -> 1 | B72: =IF(A72>0,SUM($A$18:A72)," ") -> 53 | C72: Grant Year
A73: =IF(ISBOLD(C73),0,1) -> 1 | B73: =IF(A73>0,SUM($A$18:A73)," ") -> 54 | C73: Calendar Year
A74: =IF(ISBOLD(C74),0,1) -> 1 | B74: =IF(A74>0,SUM($A$18:A74)," ") -> 55 | C74: Multiple Calendars
A75: =IF(ISBOLD(C75),0,1) -> 1 | B75: =IF(A75>0,SUM($A$18:A75)," ") -> 56 | C75: Monthly Calendars
A76: =IF(ISBOLD(C76),0,1) -> 1 | B76: =IF(A76>0,SUM($A$18:A76)," ") -> 57 | C76: Pay period calendars | D76: x
A77: =IF(ISBOLD(C77),0,1) -> 1 | B77: =IF(A77>0,SUM($A$18:A77)," ") -> 58 | C77: Other
A78: =IF(ISBOLD(C78),0,1) -> 1 | B78: =IF(A78>0,SUM($A$18:A78)," ") -> 59 | C78: The system handles a minimum of 14 accounting periods | D78: x
A79: =IF(ISBOLD(C79),0,1) -> 1 | B79: =IF(A79>0,SUM($A$18:A79)," ") -> 60 | C79: The system requires transactions to be two sided and balanced | D79: x
A80: =IF(ISBOLD(C80),0,1) -> 1 | B80: =IF(A80>0,SUM($A$18:A80)," ") -> 61 | C80: The system balances transactions at the fund level | D80: x
A81: =IF(ISBOLD(C81),0,1) -> 1 | B81: =IF(A81>0,SUM($A$18:A81)," ") -> 62 | C81: The system ties different bank accounts to different GL accounts | D81: x
A82: =IF(ISBOLD(C82),0,1) -> 1 | B82: =IF(A82>0,SUM($A$18:A82)," ") -> 63 | C82: The system marks fields as optional or required
A83: =IF(ISBOLD(C83),0,1) -> 1 | B83: =IF(A83>0,SUM($A$18:A83)," ") -> 64 | C83: The system makes optional fields required for certain funds or cost centers (e.g., require project coding in capital improvement funds, or for certain cost centers)
A84: =IF(ISBOLD(C84),0,1) -> 1 | B84: =IF(A84>0,SUM($A$18:A84)," ") -> 65 | C84: The system sets up and notify users of hard and soft stops
A85: =IF(ISBOLD(C85),0,1) -> 1 | B85: =IF(A85>0,SUM($A$18:A85)," ") -> 66 | C85: The system sets up and controls security for user's charges (e.g. limit the ability to charge to certain cost centers based on position, department, cost centers, dollar limit thresholds and other criteria)
A86: =IF(ISBOLD(C86),0,1) -> 1 | B86: =IF(A86>0,SUM($A$18:A86)," ") -> 67 | C86: The system notifies other departments when transactions will be charged to department specific cost centers
A87: =IF(ISBOLD(C87),0,1) -> 1 | B87: =IF(A87>0,SUM($A$18:A87)," ") -> 68 | C87: The system sets up assets as current (Cash) and non current assets (Capital) | D87: x
A88: =IF(ISBOLD(C88),0,1) -> 1 | B88: =IF(A88>0,SUM($A$18:A88)," ") -> 69 | C88: The system sets up liability accounts and defines current and non current liabilities | D88: x
A89: =IF(ISBOLD(C89),0,1) -> 1 | B89: =IF(A89>0,SUM($A$18:A89)," ") -> 70 | C89: The system has a feature of the account set-up, with appropriate fund balance designations, in accordance w/ GASB 54 | D89: x
A90: =IF(ISBOLD(C90),0,1) -> 1 | B90: =IF(A90>0,SUM($A$18:A90)," ") -> 71 | C90: The system has the ability to account for deferred inflows and outflows, in accordance w/ GASB 63 | D90: x
A91: =IF(ISBOLD(C91),0,1) -> 0 | B91: =IF(A91>0,SUM($A$18:A91)," ") ->  | C91: The system sets up account types, including:
A92: =IF(ISBOLD(C92),0,1) -> 1 | B92: =IF(A92>0,SUM($A$18:A92)," ") -> 72 | C92: Asset Account | D92: x
A93: =IF(ISBOLD(C93),0,1) -> 1 | B93: =IF(A93>0,SUM($A$18:A93)," ") -> 73 | C93: Liability account | D93: x
A94: =IF(ISBOLD(C94),0,1) -> 1 | B94: =IF(A94>0,SUM($A$18:A94)," ") -> 74 | C94: Fund balance/equity account | D94: x
A95: =IF(ISBOLD(C95),0,1) -> 1 | B95: =IF(A95>0,SUM($A$18:A95)," ") -> 75 | C95: Revenue account | D95: x
A96: =IF(ISBOLD(C96),0,1) -> 1 | B96: =IF(A96>0,SUM($A$18:A96)," ") -> 76 | C96: Expense or expenditure account | D96: x
A97: =IF(ISBOLD(C97),0,1) -> 1 | B97: =IF(A97>0,SUM($A$18:A97)," ") -> 77 | C97: Appropriations/estimated revenue | D97: x
A98: =IF(ISBOLD(C98),0,1) -> 1 | B98: =IF(A98>0,SUM($A$18:A98)," ") -> 78 | C98: Transfers In/Out | D98: x
A99: =IF(ISBOLD(C99),0,1) -> 1 | B99: =IF(A99>0,SUM($A$18:A99)," ") -> 79 | C99: Allocation accounts
A100: =IF(ISBOLD(C100),0,1) -> 1 | B100: =IF(A100>0,SUM($A$18:A100)," ") -> 80 | C100: Encumbrances | D100: x
A101: =IF(ISBOLD(C101),0,1) -> 1 | B101: =IF(A101>0,SUM($A$18:A101)," ") -> 81 | C101: Deferred Inflows | D101: x
A102: =IF(ISBOLD(C102),0,1) -> 1 | B102: =IF(A102>0,SUM($A$18:A102)," ") -> 82 | C102: Deferred Outflows | D102: x
A103: =IF(ISBOLD(C103),0,1) -> 1 | B103: =IF(A103>0,SUM($A$18:A103)," ") -> 83 | C103: Other-Statistical Accounts
A104: =IF(ISBOLD(C104),0,1) -> 1 | B104: =IF(A104>0,SUM($A$18:A104)," ") -> 84 | C104: The system sets up a long description and short description for chart of account elements
A105: =IF(ISBOLD(C105),0,1) -> 1 | B105: =IF(A105>0,SUM($A$18:A105)," ") -> 85 | C105: The system has dashboard view capability by fund | D105: x
A106: =IF(ISBOLD(C106),0,1) -> 1 | B106: =IF(A106>0,SUM($A$18:A106)," ") -> 86 | C106: The system has a dashboard view capability with view of fund balances, department, division and cost centers budgets down to line item balances | D106: x
A107: =IF(ISBOLD(C107),0,1) -> 0 | B107: =IF(A107>0,SUM($A$18:A107)," ") ->  | C107: GL Processing
A108: =IF(ISBOLD(C108),0,1) -> 1 | B108: =IF(A108>0,SUM($A$18:A108)," ") -> 87 | C108: The system sets up electronic journal entry posting and approvals | D108: x
A109: =IF(ISBOLD(C109),0,1) -> 1 | B109: =IF(A109>0,SUM($A$18:A109)," ") -> 88 | C109: The system attaches documents, comments, and notes to journal entries
A110: =IF(ISBOLD(C110),0,1) -> 1 | B110: =IF(A110>0,SUM($A$18:A110)," ") -> 89 | C110: The system autocalculates a journal entry based on uploaded files (e.g., Excel)
A111: 1 | B111: =IF(A111>0,SUM($A$18:A111)," ") -> 90 | C111: The system verifies balances of G/L transaction both at the aggregate entry level and at the account level (e.g., cash items within a journal entry balance)
A112: =IF(ISBOLD(C112),0,1) -> 1 | B112: =IF(A112>0,SUM($A$18:A112)," ") -> 91 | C112: The system automates regular and recurring journal entries at user defined flexible periods (quarterly, monthly, pay period) and user defined flexible amounts
A113: =IF(ISBOLD(C113),0,1) -> 1 | B113: =IF(A113>0,SUM($A$18:A113)," ") -> 92 | C113: The system sets up and administers workflow notifications of upcoming regular and recurring and one-time journal entries based on line of business, fund, cost center, or other user defined criteria
A114: =IF(ISBOLD(C114),0,1) -> 1 | B114: =IF(A114>0,SUM($A$18:A114)," ") -> 93 | C114: The system automates internal transfers (system generates transfer with user approval and posting)
A115: =IF(ISBOLD(C115),0,1) -> 1 | B115: =IF(A115>0,SUM($A$18:A115)," ") -> 94 | C115: The system ensures that interfund loans, transfers and advances between funds should balance to zero | D115: x
A116: =IF(ISBOLD(C116),0,1) -> 1 | B116: =IF(A116>0,SUM($A$18:A116)," ") -> 95 | C116: The system tracks incorrect transfers or errors (e.g. track errors needing correction for reconciliation)
A117: =IF(ISBOLD(C117),0,1) -> 1 | B117: =IF(A117>0,SUM($A$18:A117)," ") -> 96 | C117: The system tracks real time information with the option for batch updates and processing
A118: =IF(ISBOLD(C118),0,1) -> 1 | B118: =IF(A118>0,SUM($A$18:A118)," ") -> 97 | C118: The system allows users to view pending transactions after they are entered
A119: =IF(ISBOLD(C119),0,1) -> 1 | B119: =IF(A119>0,SUM($A$18:A119)," ") -> 98 | C119: The system posts journal entries either immediately (real time) and in batch
A120: =IF(ISBOLD(C120),0,1) -> 1 | B120: =IF(A120>0,SUM($A$18:A120)," ") -> 99 | C120: The system prevents posting to specific accounts prior to a specified date or fiscal period
A121: =IF(ISBOLD(C121),0,1) -> 1 | B121: =IF(A121>0,SUM($A$18:A121)," ") -> 100 | C121: The system has effective dating of transactions
A122: =IF(ISBOLD(C122),0,1) -> 1 | B122: =IF(A122>0,SUM($A$18:A122)," ") -> 101 | C122: The system allows multiple accounting periods to be open | D122: x
A123: =IF(ISBOLD(C123),0,1) -> 1 | B123: =IF(A123>0,SUM($A$18:A123)," ") -> 102 | C123: The system allows for concurrent period processing of financial transactions
A124: =IF(ISBOLD(C124),0,1) -> 1 | B124: =IF(A124>0,SUM($A$18:A124)," ") -> 103 | C124: The system reverses journal entries, with security; and audit trail for user id, time, and date
A125: =IF(ISBOLD(C125),0,1) -> 1 | B125: =IF(A125>0,SUM($A$18:A125)," ") -> 104 | C125: The system provides an audit trail for user id, time, and date | D125: x
A126: =IF(ISBOLD(C126),0,1) -> 0 | B126: =IF(A126>0,SUM($A$18:A126)," ") ->  | C126: The system utilizes different accounting bases for different fund types as required by generally accepted accounting principles:
A127: =IF(ISBOLD(C127),0,1) -> 1 | B127: =IF(A127>0,SUM($A$18:A127)," ") -> 105 | C127: Cash basis
A128: =IF(ISBOLD(C128),0,1) -> 1 | B128: =IF(A128>0,SUM($A$18:A128)," ") -> 106 | C128: Modified accrual basis
A129: =IF(ISBOLD(C129),0,1) -> 1 | B129: =IF(A129>0,SUM($A$18:A129)," ") -> 107 | C129: Accrual basis
A130: =IF(ISBOLD(C130),0,1) -> 1 | B130: =IF(A130>0,SUM($A$18:A130)," ") -> 108 | C130: The system performs online creation, control, and maintenance of balanced journal vouchers with unique numbers and description fields by authorized staff
A131: =IF(ISBOLD(C131),0,1) -> 0 | B131: =IF(A131>0,SUM($A$18:A131)," ") ->  | C131: The system maintains the following information for journal entries and batch interface transactions:
A132: =IF(ISBOLD(C132),0,1) -> 1 | B132: =IF(A132>0,SUM($A$18:A132)," ") -> 109 | C132: Description | D132: x
A133: =IF(ISBOLD(C133),0,1) -> 1 | B133: =IF(A133>0,SUM($A$18:A133)," ") -> 110 | C133: Account code | D133: x
A134: =IF(ISBOLD(C134),0,1) -> 1 | B134: =IF(A134>0,SUM($A$18:A134)," ") -> 111 | C134: Debit amount | D134: x
A135: =IF(ISBOLD(C135),0,1) -> 1 | B135: =IF(A135>0,SUM($A$18:A135)," ") -> 112 | C135: Credit amount | D135: x
A136: =IF(ISBOLD(C136),0,1) -> 1 | B136: =IF(A136>0,SUM($A$18:A136)," ") -> 113 | C136: Document reference number (system generated) | D136: x
A137: =IF(ISBOLD(C137),0,1) -> 1 | B137: =IF(A137>0,SUM($A$18:A137)," ") -> 114 | C137: Transaction creation date (system generated) | D137: x
A138: =IF(ISBOLD(C138),0,1) -> 1 | B138: =IF(A138>0,SUM($A$18:A138)," ") -> 115 | C138: Accounting period date | D138: x
A139: =IF(ISBOLD(C139),0,1) -> 1 | B139: =IF(A139>0,SUM($A$18:A139)," ") -> 116 | C139: Posting date | D139: x
A140: =IF(ISBOLD(C140),0,1) -> 1 | B140: =IF(A140>0,SUM($A$18:A140)," ") -> 117 | C140: Effective dates (e.g., reversal date) | D140: x
A141: =IF(ISBOLD(C141),0,1) -> 1 | B141: =IF(A141>0,SUM($A$18:A141)," ") -> 118 | C141: Transaction source (user, system) | D141: x
A142: =IF(ISBOLD(C142),0,1) -> 1 | B142: =IF(A142>0,SUM($A$18:A142)," ") -> 119 | C142: Authorization
A143: =IF(ISBOLD(C143),0,1) -> 1 | B143: =IF(A143>0,SUM($A$18:A143)," ") -> 120 | C143: Preparer ID | D143: x
A144: =IF(ISBOLD(C144),0,1) -> 1 | B144: =IF(A144>0,SUM($A$18:A144)," ") -> 121 | C144: Comments field | D144: x
A145: =IF(ISBOLD(C145),0,1) -> 1 | B145: =IF(A145>0,SUM($A$18:A145)," ") -> 122 | C145: User name
A146: =IF(ISBOLD(C146),0,1) -> 1 | B146: =IF(A146>0,SUM($A$18:A146)," ") -> 123 | C146: Approver ID | D146: x
A147: =IF(ISBOLD(C147),0,1) -> 1 | B147: =IF(A147>0,SUM($A$18:A147)," ") -> 124 | C147: Reviewed by ID
A148: =IF(ISBOLD(C148),0,1) -> 1 | B148: =IF(A148>0,SUM($A$18:A148)," ") -> 125 | C148: Recurring or non recurring journal entry
A149: =IF(ISBOLD(C149),0,1) -> 1 | B149: =IF(A149>0,SUM($A$18:A149)," ") -> 126 | C149: Work order ID
A150: =IF(ISBOLD(C150),0,1) -> 1 | B150: =IF(A150>0,SUM($A$18:A150)," ") -> 127 | C150: Grant ID
A151: =IF(ISBOLD(C151),0,1) -> 1 | B151: =IF(A151>0,SUM($A$18:A151)," ") -> 128 | C151: Project ID
A152: =IF(ISBOLD(C152),0,1) -> 1 | B152: =IF(A152>0,SUM($A$18:A152)," ") -> 129 | C152: Document attachment to journal entry
A153: =IF(ISBOLD(C153),0,1) -> 1 | B153: =IF(A153>0,SUM($A$18:A153)," ") -> 130 | C153: The system accepts and posts balanced journal entry transactions by authorized staff | D153: x
A154: =IF(ISBOLD(C154),0,1) -> 1 | B154: =IF(A154>0,SUM($A$18:A154)," ") -> 131 | C154: The system allows users to auto create journal entry reference number
A155: =IF(ISBOLD(C155),0,1) -> 1 | B155: =IF(A155>0,SUM($A$18:A155)," ") -> 132 | C155: The system allows for journal entries to be created for open and future periods
A156: =IF(ISBOLD(C156),0,1) -> 1 | B156: =IF(A156>0,SUM($A$18:A156)," ") -> 133 | C156: The system maintains all journal entry information at a detail level for all years
A157: =IF(ISBOLD(C157),0,1) -> 1 | B157: =IF(A157>0,SUM($A$18:A157)," ") -> 134 | C157: The system creates recurring journal entries where dollar amount and account coding are fixed but user can specify number of periods to post entry by identifying starting and ending dates
A158: =IF(ISBOLD(C158),0,1) -> 1 | B158: =IF(A158>0,SUM($A$18:A158)," ") -> 135 | C158: The system allows users to define the accounts and descriptions that a journal entry will be posted to for specific types of transactions. (i.e., restrict transactions to only authorized and approved accounts on interdepartmental journal entries)
A159: =IF(ISBOLD(C159),0,1) -> 1 | B159: =IF(A159>0,SUM($A$18:A159)," ") -> 136 | C159: The system processes intra-governmental (interdepartmental) journal entry payment transactions, and track activity totals for year end financial reporting
A160: =IF(ISBOLD(C160),0,1) -> 1 | B160: =IF(A160>0,SUM($A$18:A160)," ") -> 137 | C160: The system develops user defined templates for interdepartmental transactions
A161: =IF(ISBOLD(C161),0,1) -> 1 | B161: =IF(A161>0,SUM($A$18:A161)," ") -> 138 | C161: The system creates automatic accrual with an automatic reversal on specified dates
A162: =IF(ISBOLD(C162),0,1) -> 1 | B162: =IF(A162>0,SUM($A$18:A162)," ") -> 139 | C162: The system adds or edits chart of account coding during transaction entry with appropriate security authorization
A163: =IF(ISBOLD(C163),0,1) -> 1 | B163: =IF(A163>0,SUM($A$18:A163)," ") -> 140 | C163: The system creates and saves template journal entries for subsequent editing to expedite entry
A164: =IF(ISBOLD(C164),0,1) -> 1 | B164: =IF(A164>0,SUM($A$18:A164)," ") -> 141 | C164: The system automatically voids journal entries within an open period with an audit trail available at a detail transaction line
A165: =IF(ISBOLD(C165),0,1) -> 1 | B165: =IF(A165>0,SUM($A$18:A165)," ") -> 142 | C165: The system submits entered journal vouchers (interdepartmental) for approval electronically, prior to acceptance for posting to the general ledger
A166: =IF(ISBOLD(C166),0,1) -> 0 | B166: =IF(A166>0,SUM($A$18:A166)," ") ->  | C166: The system generates journal voucher numbering with:
A167: =IF(ISBOLD(C167),0,1) -> 1 | B167: =IF(A167>0,SUM($A$18:A167)," ") -> 143 | C167: Origination, department designation
A168: =IF(ISBOLD(C168),0,1) -> 1 | B168: =IF(A168>0,SUM($A$18:A168)," ") -> 144 | C168: Period
A169: =IF(ISBOLD(C169),0,1) -> 1 | B169: =IF(A169>0,SUM($A$18:A169)," ") -> 145 | C169: Reason code (type) of entry
A170: =IF(ISBOLD(C170),0,1) -> 0 | B170: =IF(A170>0,SUM($A$18:A170)," ") ->  | C170: The system inputs and tracks the following:
A171: =IF(ISBOLD(C171),0,1) -> 1 | B171: =IF(A171>0,SUM($A$18:A171)," ") -> 146 | C171: Account code | D171: x
A172: =IF(ISBOLD(C172),0,1) -> 1 | B172: =IF(A172>0,SUM($A$18:A172)," ") -> 147 | C172: Accounts payable
A173: =IF(ISBOLD(C173),0,1) -> 1 | B173: =IF(A173>0,SUM($A$18:A173)," ") -> 148 | C173: Accounts receivable
A174: =IF(ISBOLD(C174),0,1) -> 1 | B174: =IF(A174>0,SUM($A$18:A174)," ") -> 149 | C174: Accruals
A175: =IF(ISBOLD(C175),0,1) -> 1 | B175: =IF(A175>0,SUM($A$18:A175)," ") -> 150 | C175: Accrual descriptions
A176: =IF(ISBOLD(C176),0,1) -> 1 | B176: =IF(A176>0,SUM($A$18:A176)," ") -> 151 | C176: Balance sheet classifications | D176: x
A177: =IF(ISBOLD(C177),0,1) -> 1 | B177: =IF(A177>0,SUM($A$18:A177)," ") -> 152 | C177: Budgets, both revenue and expenditure | D177: x
A178: =IF(ISBOLD(C178),0,1) -> 1 | B178: =IF(A178>0,SUM($A$18:A178)," ") -> 153 | C178: Budget amendments | D178: x
A179: =IF(ISBOLD(C179),0,1) -> 1 | B179: =IF(A179>0,SUM($A$18:A179)," ") -> 154 | C179: Budget variances | D179: x
A180: =IF(ISBOLD(C180),0,1) -> 1 | B180: =IF(A180>0,SUM($A$18:A180)," ") -> 155 | C180: Cash disbursements
A181: =IF(ISBOLD(C181),0,1) -> 1 | B181: =IF(A181>0,SUM($A$18:A181)," ") -> 156 | C181: Cash receipts
A182: =IF(ISBOLD(C182),0,1) -> 1 | B182: =IF(A182>0,SUM($A$18:A182)," ") -> 157 | C182: Opening and closing balances monthly and annually | D182: x
A183: =IF(ISBOLD(C183),0,1) -> 1 | B183: =IF(A183>0,SUM($A$18:A183)," ") -> 158 | C183: Document numbers
A184: =IF(ISBOLD(C184),0,1) -> 1 | B184: =IF(A184>0,SUM($A$18:A184)," ") -> 159 | C184: Pre-encumbrances-Commitments
A185: =IF(ISBOLD(C185),0,1) -> 1 | B185: =IF(A185>0,SUM($A$18:A185)," ") -> 160 | C185: Encumbrances | D185: x
A186: =IF(ISBOLD(C186),0,1) -> 1 | B186: =IF(A186>0,SUM($A$18:A186)," ") -> 161 | C186: Monthly credits and debits
A187: =IF(ISBOLD(C187),0,1) -> 1 | B187: =IF(A187>0,SUM($A$18:A187)," ") -> 162 | C187: Statistical data
A188: =IF(ISBOLD(C188),0,1) -> 1 | B188: =IF(A188>0,SUM($A$18:A188)," ") -> 163 | C188: Memo data
A189: =IF(ISBOLD(C189),0,1) -> 1 | B189: =IF(A189>0,SUM($A$18:A189)," ") -> 164 | C189: User defined data fields
A190: =IF(ISBOLD(C190),0,1) -> 1 | B190: =IF(A190>0,SUM($A$18:A190)," ") -> 165 | C190: The system sets up and inputs pre-encumbrances/commitments and encumbrances in transaction format (similar to journal entry); including cancellation dates
A191: =IF(ISBOLD(C191),0,1) -> 1 | B191: =IF(A191>0,SUM($A$18:A191)," ") -> 166 | C191: The system imposes budget controls for pre-encumbrance/commitments and encumbrance transactions
A192: =IF(ISBOLD(C192),0,1) -> 1 | B192: =IF(A192>0,SUM($A$18:A192)," ") -> 167 | C192: The system links pre-encumbrance/commitments and encumbrance transactions (e.g. posting the encumbrance lifts the pre-encumbrance)
A193: =IF(ISBOLD(C193),0,1) -> 1 | B193: =IF(A193>0,SUM($A$18:A193)," ") -> 168 | C193: The system links encumbrance transactions to actuals (e.g. posting an actual lifts the encumbrance)
A194: =IF(ISBOLD(C194),0,1) -> 1 | B194: =IF(A194>0,SUM($A$18:A194)," ") -> 169 | C194: The system allows users to define pre-encumbrances/commitments and encumbrance balances as carry forward or not
A195: =IF(ISBOLD(C195),0,1) -> 1 | B195: =IF(A195>0,SUM($A$18:A195)," ") -> 170 | C195: The system allows users to inquire about pre-encumbrance/commitments, encumbrance and actual transactions and balances | D195: x
A196: =IF(ISBOLD(C196),0,1) -> 1 | B196: =IF(A196>0,SUM($A$18:A196)," ") -> 171 | C196: The system drills down from a pre-encumbrance/commitments balance and drill up from transactions to the pre-encumbrance/commitments activity
A197: =IF(ISBOLD(C197),0,1) -> 1 | B197: =IF(A197>0,SUM($A$18:A197)," ") -> 172 | C197: The system drills down from an encumbrance balance and drill up from the transactions to the encumbrance activity
A198: =IF(ISBOLD(C198),0,1) -> 1 | B198: =IF(A198>0,SUM($A$18:A198)," ") -> 173 | C198: The system tracks, reports and rolls up revenues, liabilities, expenditures, and other criteria by various and multiple roll ups of cost centers
A199: =IF(ISBOLD(C199),0,1) -> 1 | B199: =IF(A199>0,SUM($A$18:A199)," ") -> 174 | C199: The system tracks and separates restricted and non restricted assets
A200: =IF(ISBOLD(C200),0,1) -> 1 | B200: =IF(A200>0,SUM($A$18:A200)," ") -> 175 | C200: The system has a drill down capability from report to transaction and during transaction inquiry with access to view supporting documentation attachments | D200: x
A201: =IF(ISBOLD(C201),0,1) -> 1 | B201: =IF(A201>0,SUM($A$18:A201)," ") -> 176 | C201: The system allocates a portion of actual overhead expenses to departments at different levels (including the service level) based on predetermined drivers
A202: =IF(ISBOLD(C202),0,1) -> 1 | B202: =IF(A202>0,SUM($A$18:A202)," ") -> 177 | C202: The system tracks, reports and rolls up governmental activities on a fund basis
A203: =IF(ISBOLD(C203),0,1) -> 1 | B203: =IF(A203>0,SUM($A$18:A203)," ") -> 178 | C203: The system tracks, report and rollup business type (enterprise fund) activities | D203: x
A204: =IF(ISBOLD(C204),0,1) -> 0 | B204: =IF(A204>0,SUM($A$18:A204)," ") ->  | C204: GL and Project/Grant Accounting
A205: =IF(ISBOLD(C205),0,1) -> 1 | B205: =IF(A205>0,SUM($A$18:A205)," ") -> 179 | C205: The system provides project accounting module/functionality
A206: =IF(ISBOLD(C206),0,1) -> 1 | B206: =IF(A206>0,SUM($A$18:A206)," ") -> 180 | C206: The system has grant funding tie to grant project expenses
A207: =IF(ISBOLD(C207),0,1) -> 1 | B207: =IF(A207>0,SUM($A$18:A207)," ") -> 181 | C207: The system has multiple grants charged to one project
A208: =IF(ISBOLD(C208),0,1) -> 1 | B208: =IF(A208>0,SUM($A$18:A208)," ") -> 182 | C208: The system has multiple projects charged to one grant
A209: =IF(ISBOLD(C209),0,1) -> 1 | B209: =IF(A209>0,SUM($A$18:A209)," ") -> 183 | C209: The system has multiple grants charged to multiple projects
... 113 more rows

Sheet Fixed Assets
C1: Requirements Survey
C2: Fixed Assets | E2: Requirements Response Rules:
C3: The following functional, technical, workflow and reporting needs provide the minimum requirements of the Town of Colma. Please review the items carefully and respond in accordance with the requirements response rules provided. Any partial response will be deemed as an invalid response. MANDATORY: EVERY REQUIREMENT (Req#) MUST HAVE A RESPONSE TO BE CONSIDERED COMPLETE. | E3: Column #1. Mandatory: Proposers are required to input one response per requirement using the drop down list provided. Response Types: F=Fully provided out of the box, or fully provided out of the box through basic configuration Mod= Provided through a technical modification of the software (i.e. a customization) TP = Provided through a proposed third party application or capability CR= Custom report requiring development SR = Standard report provided through a built in or proposed reporting tool NA = Not Available Column #2. Proposers are requested to itemize estimated costs for all modification requirements. Column #3. Proposers are requested to list the third party product name for all Third Party Product requirements. Column #4. Mandatory: Proposers are required to mark yes or no to whether the implementation costs of this functionality is included in their cost proposal. Column #5. Mandatory: Proposers are required to mark yes or no to whether the training costs of this functionality is included in their cost proposal. Column #6. If a subcontractor is implementing or providing training for this functionality, please indicate the name of the subcontracting firm responsible for this functionality. Column #7. Mandatory: Proposers are required to list the version number for all functionality proposed to the Town.
C13: PROCESS | D13: High Priority | E13: 1.Response | F13: 2.Costs for Mod response | G13: 3.Third Party Application for TP response | H13: 4. Included in Implementation Costs | I13: 5. Included in training costs | J13: 6. Subcontractor | K13: 7. Version Number | L13: Comments/Narrative
B14: Req#
H15: Yes/No | I15: Yes/No
C16: Fixed Assets
C17: Fixed Assets Set Up
A18: =IF(ISBOLD(C18),0,1) -> 0 | B18: =IF(A18>0,SUM($A$18:A18)," ") ->  | C18: The system tracks, reports, and rolls up assets by:
A19: =IF(ISBOLD(C19),0,1) -> 1 | B19: =IF(A19>0,SUM($A$18:A19)," ") -> 1 | C19: Current assets
A20: =IF(ISBOLD(C20),0,1) -> 1 | B20: =IF(A20>0,SUM($A$18:A20)," ") -> 2 | C20: Deferred issuance costs
A21: =IF(ISBOLD(C21),0,1) -> 1 | B21: =IF(A21>0,SUM($A$18:A21)," ") -> 3 | C21: Capital assets
A22: =IF(ISBOLD(C22),0,1) -> 1 | B22: =IF(A22>0,SUM($A$18:A22)," ") -> 4 | C22: Furnishings and equipment
A23: =IF(ISBOLD(C23),0,1) -> 1 | B23: =IF(A23>0,SUM($A$18:A23)," ") -> 5 | C23: Land
A24: =IF(ISBOLD(C24),0,1) -> 1 | B24: =IF(A24>0,SUM($A$18:A24)," ") -> 6 | C24: Land Improvements
A25: =IF(ISBOLD(C25),0,1) -> 1 | B25: =IF(A25>0,SUM($A$18:A25)," ") -> 7 | C25: Buildings
A26: =IF(ISBOLD(C26),0,1) -> 1 | B26: =IF(A26>0,SUM($A$18:A26)," ") -> 8 | C26: Leasehold improvements
A27: =IF(ISBOLD(C27),0,1) -> 1 | B27: =IF(A27>0,SUM($A$18:A27)," ") -> 9 | C27: Equipment
A28: =IF(ISBOLD(C28),0,1) -> 1 | B28: =IF(A28>0,SUM($A$18:A28)," ") -> 10 | C28: Furniture
A29: =IF(ISBOLD(C29),0,1) -> 1 | B29: =IF(A29>0,SUM($A$18:A29)," ") -> 11 | C29: Vehicles
A30: =IF(ISBOLD(C30),0,1) -> 1 | B30: =IF(A30>0,SUM($A$18:A30)," ") -> 12 | C30: Capitalized leases
A31: =IF(ISBOLD(C31),0,1) -> 1 | B31: =IF(A31>0,SUM($A$18:A31)," ") -> 13 | C31: Construction in progress
A32: =IF(ISBOLD(C32),0,1) -> 1 | B32: =IF(A32>0,SUM($A$18:A32)," ") -> 14 | C32: Infrastructure
A33: =IF(ISBOLD(C33),0,1) -> 1 | B33: =IF(A33>0,SUM($A$18:A33)," ") -> 15 | C33: Category (Bridge, Street, Sewer Lateral, etc.) | D33: X
A34: =IF(ISBOLD(C34),0,1) -> 1 | B34: =IF(A34>0,SUM($A$18:A34)," ") -> 16 | C34: Description
A35: =IF(ISBOLD(C35),0,1) -> 1 | B35: =IF(A35>0,SUM($A$18:A35)," ") -> 17 | C35: Funding source
A36: =IF(ISBOLD(C36),0,1) -> 1 | B36: =IF(A36>0,SUM($A$18:A36)," ") -> 18 | C36: Fund | D36: X
A37: =IF(ISBOLD(C37),0,1) -> 1 | B37: =IF(A37>0,SUM($A$18:A37)," ") -> 19 | C37: Department
A38: =IF(ISBOLD(C38),0,1) -> 1 | B38: =IF(A38>0,SUM($A$18:A38)," ") -> 20 | C38: Contributing capital
A39: =IF(ISBOLD(C39),0,1) -> 1 | B39: =IF(A39>0,SUM($A$18:A39)," ") -> 21 | C39: Multiple locations
A40: =IF(ISBOLD(C40),0,1) -> 1 | B40: =IF(A40>0,SUM($A$18:A40)," ") -> 22 | C40: Type
A41: =IF(ISBOLD(C41),0,1) -> 1 | B41: =IF(A41>0,SUM($A$18:A41)," ") -> 23 | C41: Unique identifier (pond, greenway #s)
A42: =IF(ISBOLD(C42),0,1) -> 1 | B42: =IF(A42>0,SUM($A$18:A42)," ") -> 24 | C42: Project number
A43: =IF(ISBOLD(C43),0,1) -> 1 | B43: =IF(A43>0,SUM($A$18:A43)," ") -> 25 | C43: Work order number
A44: =IF(ISBOLD(C44),0,1) -> 1 | B44: =IF(A44>0,SUM($A$18:A44)," ") -> 26 | C44: Size
A45: =IF(ISBOLD(C45),0,1) -> 1 | B45: =IF(A45>0,SUM($A$18:A45)," ") -> 27 | C45: Quantity
A46: =IF(ISBOLD(C46),0,1) -> 1 | B46: =IF(A46>0,SUM($A$18:A46)," ") -> 28 | C46: Accepted year
A47: =IF(ISBOLD(C47),0,1) -> 1 | B47: =IF(A47>0,SUM($A$18:A47)," ") -> 29 | C47: Status
A48: =IF(ISBOLD(C48),0,1) -> 1 | B48: =IF(A48>0,SUM($A$18:A48)," ") -> 30 | C48: Infrastructure in progress (CIP)
A49: =IF(ISBOLD(C49),0,1) -> 1 | B49: =IF(A49>0,SUM($A$18:A49)," ") -> 31 | C49: Intangible assets
A50: =IF(ISBOLD(C50),0,1) -> 1 | B50: =IF(A50>0,SUM($A$18:A50)," ") -> 32 | C50: Multiple other improvements
A51: =IF(ISBOLD(C51),0,1) -> 1 | B51: =IF(A51>0,SUM($A$18:A51)," ") -> 33 | C51: Other user-defined categories-Business Activities
A52: =IF(ISBOLD(C52),0,1) -> 0 | B52: =IF(A52>0,SUM($A$18:A52)," ") ->  | C52: The system identifies the following for building assets:
A53: =IF(ISBOLD(C53),0,1) -> 1 | B53: =IF(A53>0,SUM($A$18:A53)," ") -> 34 | C53: Year acquired
A54: =IF(ISBOLD(C54),0,1) -> 1 | B54: =IF(A54>0,SUM($A$18:A54)," ") -> 35 | C54: Identification of partial ownership (percent)
A55: =IF(ISBOLD(C55),0,1) -> 1 | B55: =IF(A55>0,SUM($A$18:A55)," ") -> 36 | C55: Secondary owner
A56: =IF(ISBOLD(C56),0,1) -> 1 | B56: =IF(A56>0,SUM($A$18:A56)," ") -> 37 | C56: Multiple other improvements
A57: =IF(ISBOLD(C57),0,1) -> 1 | B57: =IF(A57>0,SUM($A$18:A57)," ") -> 38 | C57: Square footage
A58: =IF(ISBOLD(C58),0,1) -> 1 | B58: =IF(A58>0,SUM($A$18:A58)," ") -> 39 | C58: Floors
A59: =IF(ISBOLD(C59),0,1) -> 1 | B59: =IF(A59>0,SUM($A$18:A59)," ") -> 40 | C59: Building structure
A60: =IF(ISBOLD(C60),0,1) -> 1 | B60: =IF(A60>0,SUM($A$18:A60)," ") -> 41 | C60: Estimated value of contents
A61: =IF(ISBOLD(C61),0,1) -> 1 | B61: =IF(A61>0,SUM($A$18:A61)," ") -> 42 | C61: Heated
A62: =IF(ISBOLD(C62),0,1) -> 1 | B62: =IF(A62>0,SUM($A$18:A62)," ") -> 43 | C62: Finished interior
A63: =IF(ISBOLD(C63),0,1) -> 1 | B63: =IF(A63>0,SUM($A$18:A63)," ") -> 44 | C63: Air conditioned
A64: =IF(ISBOLD(C64),0,1) -> 1 | B64: =IF(A64>0,SUM($A$18:A64)," ") -> 45 | C64: Basement
A65: =IF(ISBOLD(C65),0,1) -> 1 | B65: =IF(A65>0,SUM($A$18:A65)," ") -> 46 | C65: Sprinkler
A66: =IF(ISBOLD(C66),0,1) -> 1 | B66: =IF(A66>0,SUM($A$18:A66)," ") -> 47 | C66: Fire alarm system
A67: =IF(ISBOLD(C67),0,1) -> 1 | B67: =IF(A67>0,SUM($A$18:A67)," ") -> 48 | C67: Security system
A68: =IF(ISBOLD(C68),0,1) -> 1 | B68: =IF(A68>0,SUM($A$18:A68)," ") -> 49 | C68: Vacant
A69: =IF(ISBOLD(C69),0,1) -> 1 | B69: =IF(A69>0,SUM($A$18:A69)," ") -> 50 | C69: Elevator
A70: =IF(ISBOLD(C70),0,1) -> 1 | B70: =IF(A70>0,SUM($A$18:A70)," ") -> 51 | C70: The system allows certain fields to be required/mandatory based on the asset type (e.g., serial number for firearms)
A71: =IF(ISBOLD(C71),0,1) -> 1 | B71: =IF(A71>0,SUM($A$18:A71)," ") -> 52 | C71: The system meets GASB/GAAP requirements. (e.g., when disposing of assets for profit/loss) | D71: x
A72: =IF(ISBOLD(C72),0,1) -> 1 | B72: =IF(A72>0,SUM($A$18:A72)," ") -> 53 | C72: The system sets up and tracks fixed assets classifications
A73: =IF(ISBOLD(C73),0,1) -> 1 | B73: =IF(A73>0,SUM($A$18:A73)," ") -> 54 | C73: The system sets up and tracks fixed assets sub-classifications
A74: =IF(ISBOLD(C74),0,1) -> 1 | B74: =IF(A74>0,SUM($A$18:A74)," ") -> 55 | C74: The system sets up and tracks multiple fixed asset types
A75: =IF(ISBOLD(C75),0,1) -> 1 | B75: =IF(A75>0,SUM($A$18:A75)," ") -> 56 | C75: The system sets up and tracks asset records
A76: =IF(ISBOLD(C76),0,1) -> 1 | B76: =IF(A76>0,SUM($A$18:A76)," ") -> 57 | C76: The system sets up and links assets to GL string
A77: =IF(ISBOLD(C77),0,1) -> 1 | B77: =IF(A77>0,SUM($A$18:A77)," ") -> 58 | C77: The system sets up and tracks expense accounts to an asset
A78: =IF(ISBOLD(C78),0,1) -> 1 | B78: =IF(A78>0,SUM($A$18:A78)," ") -> 59 | C78: Creation of an asset can begin through the Purchase Order process (i.e., coded to an asset account)
A79: =IF(ISBOLD(C79),0,1) -> 1 | B79: =IF(A79>0,SUM($A$18:A79)," ") -> 60 | C79: Assets can be placed to an 'in-use' status automatically based on user defined criteria or approval
A80: =IF(ISBOLD(C80),0,1) -> 1 | B80: =IF(A80>0,SUM($A$18:A80)," ") -> 61 | C80: The system can support multiple transactions for an asset
A81: =IF(ISBOLD(C81),0,1) -> 1 | B81: =IF(A81>0,SUM($A$18:A81)," ") -> 62 | C81: The system sets up and tracks budget controls by user defined segments of the account string for an asset
A82: =IF(ISBOLD(C82),0,1) -> 1 | B82: =IF(A82>0,SUM($A$18:A82)," ") -> 63 | C82: The system provides allocation tables which can be user-defined to allocate asset cost and depreciation expense
A83: =IF(ISBOLD(C83),0,1) -> 1 | B83: =IF(A83>0,SUM($A$18:A83)," ") -> 64 | C83: The system sets up multiple dates for tracking, such as depreciation start date, depreciation end date, and other important dates
A84: =IF(ISBOLD(C84),0,1) -> 1 | B84: =IF(A84>0,SUM($A$18:A84)," ") -> 65 | C84: The system sets up and tracks multiple depreciation schedules for different asset types | D84: X
A85: =IF(ISBOLD(C85),0,1) -> 1 | B85: =IF(A85>0,SUM($A$18:A85)," ") -> 66 | C85: The system sets up multiple asset capitalization rules by asset type, with accounting entries
A86: =IF(ISBOLD(C86),0,1) -> 1 | B86: =IF(A86>0,SUM($A$18:A86)," ") -> 67 | C86: The system sets up and tracks disposal, with disposal reasons and justification information
A87: =IF(ISBOLD(C87),0,1) -> 1 | B87: =IF(A87>0,SUM($A$18:A87)," ") -> 68 | C87: The system sets up and tracks location information
A88: =IF(ISBOLD(C88),0,1) -> 1 | B88: =IF(A88>0,SUM($A$18:A88)," ") -> 69 | C88: The system sets up and tracks department information
A89: =IF(ISBOLD(C89),0,1) -> 1 | B89: =IF(A89>0,SUM($A$18:A89)," ") -> 70 | C89: The system sets up more than one owner of an asset (multiple departments or government entities)
A90: =IF(ISBOLD(C90),0,1) -> 1 | B90: =IF(A90>0,SUM($A$18:A90)," ") -> 71 | C90: The system sets up workflow processes for asset disposition notification
A91: =IF(ISBOLD(C91),0,1) -> 1 | B91: =IF(A91>0,SUM($A$18:A91)," ") -> 72 | C91: The system sets up different workflows for existing assets vs. new assets
A92: =IF(ISBOLD(C92),0,1) -> 1 | B92: =IF(A92>0,SUM($A$18:A92)," ") -> 73 | C92: The system tracks asset location in Fixed Assets module
A93: =IF(ISBOLD(C93),0,1) -> 1 | B93: =IF(A93>0,SUM($A$18:A93)," ") -> 74 | C93: The system tracks the department which services asset in Fixed Assets module
A94: =IF(ISBOLD(C94),0,1) -> 1 | B94: =IF(A94>0,SUM($A$18:A94)," ") -> 75 | C94: The system tracks trade-in value of fixed asset
A95: =IF(ISBOLD(C95),0,1) -> 1 | B95: =IF(A95>0,SUM($A$18:A95)," ") -> 76 | C95: The system assigns asset to an individual
A96: =IF(ISBOLD(C96),0,1) -> 1 | B96: =IF(A96>0,SUM($A$18:A96)," ") -> 77 | C96: The system interfaces with the Human Resources module to assign assets to employees
A97: =IF(ISBOLD(C97),0,1) -> 1 | B97: =IF(A97>0,SUM($A$18:A97)," ") -> 78 | C97: The system enters an asset with a purchase value less than the true replacement value (e.g. donated asset where purchase price is $0 or $1)
A98: =IF(ISBOLD(C98),0,1) -> 1 | B98: =IF(A98>0,SUM($A$18:A98)," ") -> 79 | C98: The system links multiple funding sources to assets
A99: =IF(ISBOLD(C99),0,1) -> 1 | B99: =IF(A99>0,SUM($A$18:A99)," ") -> 80 | C99: The system defines parent-child relationship management for fixed assets (e.g. plow truck = chassis, body, plow)
A100: =IF(ISBOLD(C100),0,1) -> 1 | B100: =IF(A100>0,SUM($A$18:A100)," ") -> 81 | C100: The system tracks replacement value for individual assets
A101: =IF(ISBOLD(C101),0,1) -> 1 | B101: =IF(A101>0,SUM($A$18:A101)," ") -> 82 | C101: The system makes adjustments for assets at year end
A102: =IF(ISBOLD(C102),0,1) -> 1 | B102: =IF(A102>0,SUM($A$18:A102)," ") -> 83 | C102: The system identifies individual funding sources for grant-related purchases that are fixed assets
A103: =IF(ISBOLD(C103),0,1) -> 0 | B103: =IF(A103>0,SUM($A$18:A103)," ") ->  | C103: Non-capital assets
A104: =IF(ISBOLD(C104),0,1) -> 1 | B104: =IF(A104>0,SUM($A$18:A104)," ") -> 84 | C104: The system tracks non-depreciable assets in the same system as fixed assets
A105: =IF(ISBOLD(C105),0,1) -> 1 | B105: =IF(A105>0,SUM($A$18:A105)," ") -> 85 | C105: The system tracks depreciable items that are not capital assets (e.g. boats)
A106: =IF(ISBOLD(C106),0,1) -> 0 | B106: =IF(A106>0,SUM($A$18:A106)," ") ->  | C106: The system produces an asset tag which includes the following information:
A107: =IF(ISBOLD(C107),0,1) -> 1 | B107: =IF(A107>0,SUM($A$18:A107)," ") -> 86 | C107: Asset location
A108: =IF(ISBOLD(C108),0,1) -> 1 | B108: =IF(A108>0,SUM($A$18:A108)," ") -> 87 | C108: Manufacturer's number
A109: =IF(ISBOLD(C109),0,1) -> 1 | B109: =IF(A109>0,SUM($A$18:A109)," ") -> 88 | C109: Manufacturer name
A110: =IF(ISBOLD(C110),0,1) -> 1 | B110: =IF(A110>0,SUM($A$18:A110)," ") -> 89 | C110: Item number
A111: =IF(ISBOLD(C111),0,1) -> 1 | B111: =IF(A111>0,SUM($A$18:A111)," ") -> 90 | C111: Other fields as defined by users
A112: =IF(ISBOLD(C112),0,1) -> 1 | B112: =IF(A112>0,SUM($A$18:A112)," ") -> 91 | C112: The system accommodates attachment of images to asset items in the system
A113: =IF(ISBOLD(C113),0,1) -> 0 | B113: =IF(A113>0,SUM($A$18:A113)," ") ->  | C113: Processing
A114: =IF(ISBOLD(C114),0,1) -> 1 | B114: =IF(A114>0,SUM($A$18:A114)," ") -> 92 | C114: The system identifies an asset during purchasing process for fixed assets
A115: =IF(ISBOLD(C115),0,1) -> 1 | B115: =IF(A115>0,SUM($A$18:A115)," ") -> 93 | C115: The system interfaces with the work order module to update asset record with work performed
A116: =IF(ISBOLD(C116),0,1) -> 1 | B116: =IF(A116>0,SUM($A$18:A116)," ") -> 94 | C116: Assets are placed in pending status before being posted by an authorized user | D116: X
A117: =IF(ISBOLD(C117),0,1) -> 1 | B117: =IF(A117>0,SUM($A$18:A117)," ") -> 95 | C117: The system interfaces with the project accounting module in order to generate assets from completed projects
A118: =IF(ISBOLD(C118),0,1) -> 1 | B118: =IF(A118>0,SUM($A$18:A118)," ") -> 96 | C118: The system allows user to upload asset records from 3rd party systems, such as CFA for fleet assets
A119: =IF(ISBOLD(C119),0,1) -> 1 | B119: =IF(A119>0,SUM($A$18:A119)," ") -> 97 | C119: The system sets up maintenance schedules for an asset
A120: =IF(ISBOLD(C120),0,1) -> 1 | B120: =IF(A120>0,SUM($A$18:A120)," ") -> 98 | C120: The system inputs and tracks insurance information
A121: =IF(ISBOLD(C121),0,1) -> 1 | B121: =IF(A121>0,SUM($A$18:A121)," ") -> 99 | C121: The system updates files, documents, pictures, and other data and elements to an asset
A122: =IF(ISBOLD(C122),0,1) -> 0 | B122: =IF(A122>0,SUM($A$18:A122)," ") ->  | C122: The system inputs and tracks the following asset information:
A123: =IF(ISBOLD(C123),0,1) -> 1 | B123: =IF(A123>0,SUM($A$18:A123)," ") -> 100 | C123: Asset Number
A124: =IF(ISBOLD(C124),0,1) -> 1 | B124: =IF(A124>0,SUM($A$18:A124)," ") -> 101 | C124: Description | D124: x
A125: =IF(ISBOLD(C125),0,1) -> 1 | B125: =IF(A125>0,SUM($A$18:A125)," ") -> 102 | C125: Tag/Unit #
A126: =IF(ISBOLD(C126),0,1) -> 1 | B126: =IF(A126>0,SUM($A$18:A126)," ") -> 103 | C126: Class
A127: =IF(ISBOLD(C127),0,1) -> 1 | B127: =IF(A127>0,SUM($A$18:A127)," ") -> 104 | C127: Location
A128: =IF(ISBOLD(C128),0,1) -> 1 | B128: =IF(A128>0,SUM($A$18:A128)," ") -> 105 | C128: Department | D128: x
A129: =IF(ISBOLD(C129),0,1) -> 1 | B129: =IF(A129>0,SUM($A$18:A129)," ") -> 106 | C129: Fund | D129: x
A130: =IF(ISBOLD(C130),0,1) -> 1 | B130: =IF(A130>0,SUM($A$18:A130)," ") -> 107 | C130: Address
A131: =IF(ISBOLD(C131),0,1) -> 1 | B131: =IF(A131>0,SUM($A$18:A131)," ") -> 108 | C131: Ownership type (i.e., rented, leased, owned)
A132: =IF(ISBOLD(C132),0,1) -> 1 | B132: =IF(A132>0,SUM($A$18:A132)," ") -> 109 | C132: Multiple owners
A133: =IF(ISBOLD(C133),0,1) -> 1 | B133: =IF(A133>0,SUM($A$18:A133)," ") -> 110 | C133: Parent/child relationships
A134: =IF(ISBOLD(C134),0,1) -> 1 | B134: =IF(A134>0,SUM($A$18:A134)," ") -> 111 | C134: Vendor Information
A135: =IF(ISBOLD(C135),0,1) -> 1 | B135: =IF(A135>0,SUM($A$18:A135)," ") -> 112 | C135: Vendor Number
A136: =IF(ISBOLD(C136),0,1) -> 1 | B136: =IF(A136>0,SUM($A$18:A136)," ") -> 113 | C136: Serial Number
A137: =IF(ISBOLD(C137),0,1) -> 1 | B137: =IF(A137>0,SUM($A$18:A137)," ") -> 114 | C137: Vehicle Identification Number (VIN)
A138: =IF(ISBOLD(C138),0,1) -> 1 | B138: =IF(A138>0,SUM($A$18:A138)," ") -> 115 | C138: Building
A139: =IF(ISBOLD(C139),0,1) -> 1 | B139: =IF(A139>0,SUM($A$18:A139)," ") -> 116 | C139: Asset Account #
A140: =IF(ISBOLD(C140),0,1) -> 1 | B140: =IF(A140>0,SUM($A$18:A140)," ") -> 117 | C140: CFDA (multiple)
A141: =IF(ISBOLD(C141),0,1) -> 1 | B141: =IF(A141>0,SUM($A$18:A141)," ") -> 118 | C141: Acquisition Date | D141: x
A142: =IF(ISBOLD(C142),0,1) -> 1 | B142: =IF(A142>0,SUM($A$18:A142)," ") -> 119 | C142: Asset condition
A143: =IF(ISBOLD(C143),0,1) -> 1 | B143: =IF(A143>0,SUM($A$18:A143)," ") -> 120 | C143: Assessment date (when condition was determined)
A144: =IF(ISBOLD(C144),0,1) -> 1 | B144: =IF(A144>0,SUM($A$18:A144)," ") -> 121 | C144: Asset type | D144: x
A145: =IF(ISBOLD(C145),0,1) -> 1 | B145: =IF(A145>0,SUM($A$18:A145)," ") -> 122 | C145: Asset status (e.g., not in service CIP)
A146: =IF(ISBOLD(C146),0,1) -> 1 | B146: =IF(A146>0,SUM($A$18:A146)," ") -> 123 | C146: Purchase price | D146: x
A147: =IF(ISBOLD(C147),0,1) -> 1 | B147: =IF(A147>0,SUM($A$18:A147)," ") -> 124 | C147: Insurance information
A148: =IF(ISBOLD(C148),0,1) -> 1 | B148: =IF(A148>0,SUM($A$18:A148)," ") -> 125 | C148: Manufacturer
A149: =IF(ISBOLD(C149),0,1) -> 1 | B149: =IF(A149>0,SUM($A$18:A149)," ") -> 126 | C149: Warranty/maintenance information
A150: =IF(ISBOLD(C150),0,1) -> 1 | B150: =IF(A150>0,SUM($A$18:A150)," ") -> 127 | C150: Disposal information | D150: x
A151: =IF(ISBOLD(C151),0,1) -> 1 | B151: =IF(A151>0,SUM($A$18:A151)," ") -> 128 | C151: Depreciation schedule | D151: x
A152: =IF(ISBOLD(C152),0,1) -> 1 | B152: =IF(A152>0,SUM($A$18:A152)," ") -> 129 | C152: Funding source
A153: =IF(ISBOLD(C153),0,1) -> 1 | B153: =IF(A153>0,SUM($A$18:A153)," ") -> 130 | C153: Grant information
A154: =IF(ISBOLD(C154),0,1) -> 1 | B154: =IF(A154>0,SUM($A$18:A154)," ") -> 131 | C154: Estimated Useful Life | D154: x
A155: =IF(ISBOLD(C155),0,1) -> 1 | B155: =IF(A155>0,SUM($A$18:A155)," ") -> 132 | C155: Planned replacement date
A156: =IF(ISBOLD(C156),0,1) -> 1 | B156: =IF(A156>0,SUM($A$18:A156)," ") -> 133 | C156: Estimated Residual value/trade in value
A157: =IF(ISBOLD(C157),0,1) -> 1 | B157: =IF(A157>0,SUM($A$18:A157)," ") -> 134 | C157: Service Dates
A158: =IF(ISBOLD(C158),0,1) -> 1 | B158: =IF(A158>0,SUM($A$18:A158)," ") -> 135 | C158: Depreciable or Not
A159: =IF(ISBOLD(C159),0,1) -> 1 | B159: =IF(A159>0,SUM($A$18:A159)," ") -> 136 | C159: Project number
A160: =IF(ISBOLD(C160),0,1) -> 1 | B160: =IF(A160>0,SUM($A$18:A160)," ") -> 137 | C160: Work order number
A161: =IF(ISBOLD(C161),0,1) -> 1 | B161: =IF(A161>0,SUM($A$18:A161)," ") -> 138 | C161: Other user defined
A162: =IF(ISBOLD(C162),0,1) -> 0 | B162: =IF(A162>0,SUM($A$18:A162)," ") ->  | C162: The system tracks asset transactions including:
A163: =IF(ISBOLD(C163),0,1) -> 1 | B163: =IF(A163>0,SUM($A$18:A163)," ") -> 139 | C163: Multiple PO
A164: =IF(ISBOLD(C164),0,1) -> 1 | B164: =IF(A164>0,SUM($A$18:A164)," ") -> 140 | C164: Multiple invoices
A165: =IF(ISBOLD(C165),0,1) -> 1 | B165: =IF(A165>0,SUM($A$18:A165)," ") -> 141 | C165: Purchase cards
A166: =IF(ISBOLD(C166),0,1) -> 1 | B166: =IF(A166>0,SUM($A$18:A166)," ") -> 142 | C166: Other transactions-JVs
A167: =IF(ISBOLD(C167),0,1) -> 1 | B167: =IF(A167>0,SUM($A$18:A167)," ") -> 143 | C167: The system creates a unique asset number
A168: =IF(ISBOLD(C168),0,1) -> 1 | B168: =IF(A168>0,SUM($A$18:A168)," ") -> 144 | C168: The system allows a user to assign an asset number manually as needed (e.g., existing assets where coding will not be changed)
A169: =IF(ISBOLD(C169),0,1) -> 1 | B169: =IF(A169>0,SUM($A$18:A169)," ") -> 145 | C169: The system enters a short narrative description of each asset item
A170: =IF(ISBOLD(C170),0,1) -> 1 | B170: =IF(A170>0,SUM($A$18:A170)," ") -> 146 | C170: The system enters a long narrative description of each asset item
A171: =IF(ISBOLD(C171),0,1) -> 1 | B171: =IF(A171>0,SUM($A$18:A171)," ") -> 147 | C171: The system purges disposed assets at the end of the year from the master file
A172: =IF(ISBOLD(C172),0,1) -> 0 | B172: =IF(A172>0,SUM($A$18:A172)," ") ->  | C172: The system transfers assets or groups of assets by:
A173: =IF(ISBOLD(C173),0,1) -> 1 | B173: =IF(A173>0,SUM($A$18:A173)," ") -> 148 | C173: Class Type
A174: =IF(ISBOLD(C174),0,1) -> 1 | B174: =IF(A174>0,SUM($A$18:A174)," ") -> 149 | C174: Location code (location, building, room)
A175: =IF(ISBOLD(C175),0,1) -> 1 | B175: =IF(A175>0,SUM($A$18:A175)," ") -> 150 | C175: Fund
A176: =IF(ISBOLD(C176),0,1) -> 1 | B176: =IF(A176>0,SUM($A$18:A176)," ") -> 151 | C176: Department
A177: =IF(ISBOLD(C177),0,1) -> 1 | B177: =IF(A177>0,SUM($A$18:A177)," ") -> 152 | C177: Cost Center
A178: =IF(ISBOLD(C178),0,1) -> 1 | B178: =IF(A178>0,SUM($A$18:A178)," ") -> 153 | C178: Account Number
A179: =IF(ISBOLD(C179),0,1) -> 1 | B179: =IF(A179>0,SUM($A$18:A179)," ") -> 154 | C179: Grant Number
A180: =IF(ISBOLD(C180),0,1) -> 1 | B180: =IF(A180>0,SUM($A$18:A180)," ") -> 155 | C180: Other User Defined
A181: =IF(ISBOLD(C181),0,1) -> 0 | B181: =IF(A181>0,SUM($A$18:A181)," ") ->  | C181: The system groups assets by any segment of the account string for:
A182: =IF(ISBOLD(C182),0,1) -> 1 | B182: =IF(A182>0,SUM($A$18:A182)," ") -> 156 | C182: Historical Cost
A183: =IF(ISBOLD(C183),0,1) -> 1 | B183: =IF(A183>0,SUM($A$18:A183)," ") -> 157 | C183: Book value
A184: =IF(ISBOLD(C184),0,1) -> 1 | B184: =IF(A184>0,SUM($A$18:A184)," ") -> 158 | C184: YTD depreciation
A185: =IF(ISBOLD(C185),0,1) -> 1 | B185: =IF(A185>0,SUM($A$18:A185)," ") -> 159 | C185: Accumulated depreciation
A186: =IF(ISBOLD(C186),0,1) -> 0 | B186: =IF(A186>0,SUM($A$18:A186)," ") ->  | C186: The system reports and tracks assets by:
A187: =IF(ISBOLD(C187),0,1) -> 1 | B187: =IF(A187>0,SUM($A$18:A187)," ") -> 160 | C187: Financial statement category (major asset type code) | D187: x
A188: =IF(ISBOLD(C188),0,1) -> 1 | B188: =IF(A188>0,SUM($A$18:A188)," ") -> 161 | C188: Minor asset type code
A189: =IF(ISBOLD(C189),0,1) -> 1 | B189: =IF(A189>0,SUM($A$18:A189)," ") -> 162 | C189: Fund | D189: x
A190: =IF(ISBOLD(C190),0,1) -> 1 | B190: =IF(A190>0,SUM($A$18:A190)," ") -> 163 | C190: Line of business
A191: =IF(ISBOLD(C191),0,1) -> 1 | B191: =IF(A191>0,SUM($A$18:A191)," ") -> 164 | C191: Department
A192: =IF(ISBOLD(C192),0,1) -> 1 | B192: =IF(A192>0,SUM($A$18:A192)," ") -> 165 | C192: Division
A193: =IF(ISBOLD(C193),0,1) -> 1 | B193: =IF(A193>0,SUM($A$18:A193)," ") -> 166 | C193: Program
A194: =IF(ISBOLD(C194),0,1) -> 1 | B194: =IF(A194>0,SUM($A$18:A194)," ") -> 167 | C194: Location
A195: =IF(ISBOLD(C195),0,1) -> 1 | B195: =IF(A195>0,SUM($A$18:A195)," ") -> 168 | C195: Project
A196: =IF(ISBOLD(C196),0,1) -> 1 | B196: =IF(A196>0,SUM($A$18:A196)," ") -> 169 | C196: Expenditure object
A197: =IF(ISBOLD(C197),0,1) -> 1 | B197: =IF(A197>0,SUM($A$18:A197)," ") -> 170 | C197: Source of revenue (donations, contributions)
A198: =IF(ISBOLD(C198),0,1) -> 1 | B198: =IF(A198>0,SUM($A$18:A198)," ") -> 171 | C198: Grant
A199: =IF(ISBOLD(C199),0,1) -> 1 | B199: =IF(A199>0,SUM($A$18:A199)," ") -> 172 | C199: Manufacturer
A200: =IF(ISBOLD(C200),0,1) -> 1 | B200: =IF(A200>0,SUM($A$18:A200)," ") -> 173 | C200: Cost center
A201: =IF(ISBOLD(C201),0,1) -> 0 | B201: =IF(A201>0,SUM($A$18:A201)," ") ->  | C201: The system performs asset changes including:
A202: =IF(ISBOLD(C202),0,1) -> 1 | B202: =IF(A202>0,SUM($A$18:A202)," ") -> 174 | C202: Additions
A203: =IF(ISBOLD(C203),0,1) -> 1 | B203: =IF(A203>0,SUM($A$18:A203)," ") -> 175 | C203: Improvements
A204: =IF(ISBOLD(C204),0,1) -> 1 | B204: =IF(A204>0,SUM($A$18:A204)," ") -> 176 | C204: Changes
A205: =IF(ISBOLD(C205),0,1) -> 1 | B205: =IF(A205>0,SUM($A$18:A205)," ") -> 177 | C205: Disposals in full and partial
A206: =IF(ISBOLD(C206),0,1) -> 1 | B206: =IF(A206>0,SUM($A$18:A206)," ") -> 178 | C206: Donation/Contributions
A207: =IF(ISBOLD(C207),0,1) -> 1 | B207: =IF(A207>0,SUM($A$18:A207)," ") -> 179 | C207: Retirement
A208: =IF(ISBOLD(C208),0,1) -> 1 | B208: =IF(A208>0,SUM($A$18:A208)," ") -> 180 | C208: Transfers
A209: =IF(ISBOLD(C209),0,1) -> 1 | B209: =IF(A209>0,SUM($A$18:A209)," ") -> 181 | C209: Annexations
... 112 more rows

Sheet Accounts Receivable
C1: Requirements Survey
C2: Accounts Receivable and Cashiering | E2: Requirements Response Rules:
C3: The following functional, technical, workflow and reporting needs provide the minimum requirements of the Town of Colma. Please review the items carefully and respond in accordance with the requirements response rules provided. Any partial response will be deemed as an invalid response. MANDATORY: EVERY REQUIREMENT (Req#) MUST HAVE A RESPONSE TO BE CONSIDERED COMPLETE. | E3: Column #1. Mandatory: Proposers are required to input one response per requirement using the drop down list provided. Response Types: F=Fully provided out of the box, or fully provided out of the box through basic configuration Mod= Provided through a technical modification of the software (i.e. a customization) TP = Provided through a proposed third party application or capability CR= Custom report requiring development SR = Standard report provided through a built in or proposed reporting tool NA = Not Available Column #2. Proposers are requested to itemize estimated costs for all modification requirements. Column #3. Proposers are requested to list the third party product name for all Third Party Product requirements. Column #4. Mandatory: Proposers are required to mark yes or no to whether the implementation costs of this functionality is included in their cost proposal. Column #5. Mandatory: Proposers are required to mark yes or no to whether the training costs of this functionality is included in their cost proposal. Column #6. If a subcontractor is implementing or providing training for this functionality, please indicate the name of the subcontracting firm responsible for this functionality. Column #7. Mandatory: Proposers are required to list the version number for all functionality proposed to the Town.
C13: PROCESS | D13: High Priority | E13: 1.Response | F13: 2.Costs for Mod response | G13: 3.Third Party Application for TP response | H13: 4. Included in Implementation Costs | I13: 5. Included in training costs | J13: 6. Subcontractor | K13: 7. Version Number | L13: Comments/Narrative
B14: Req#
H15: Yes/No | I15: Yes/No
C16: Accounts Receivable
C17: Accounts Receivable Set Up, Tracking and Billing
A18: =IF(ISBOLD(C18),0,1) -> 0 | B18: =IF(A18>0,SUM($A$18:A18)," ") ->  | C18: The system sets up and tracks master customer files, including the following:
A19: =IF(ISBOLD(C19),0,1) -> 1 | B19: =IF(A19>0,SUM($A$18:A19)," ") -> 1 | C19: Customer name
A20: =IF(ISBOLD(C20),0,1) -> 1 | B20: =IF(A20>0,SUM($A$18:A20)," ") -> 2 | C20: Multiple names
A21: =IF(ISBOLD(C21),0,1) -> 1 | B21: =IF(A21>0,SUM($A$18:A21)," ") -> 3 | C21: Previous names
A22: =IF(ISBOLD(C22),0,1) -> 1 | B22: =IF(A22>0,SUM($A$18:A22)," ") -> 4 | C22: Entity/Organization
A23: =IF(ISBOLD(C23),0,1) -> 1 | B23: =IF(A23>0,SUM($A$18:A23)," ") -> 5 | C23: Unique Customer number
A24: =IF(ISBOLD(C24),0,1) -> 1 | B24: =IF(A24>0,SUM($A$18:A24)," ") -> 6 | C24: Multiple user defined numbers
A25: =IF(ISBOLD(C25),0,1) -> 1 | B25: =IF(A25>0,SUM($A$18:A25)," ") -> 7 | C25: Social Security/tax ID number
A26: =IF(ISBOLD(C26),0,1) -> 1 | B26: =IF(A26>0,SUM($A$18:A26)," ") -> 8 | C26: Multiple addresses (main address, secondary address, and other addresses)
A27: =IF(ISBOLD(C27),0,1) -> 1 | B27: =IF(A27>0,SUM($A$18:A27)," ") -> 9 | C27: Multiple previous addresses
A28: =IF(ISBOLD(C28),0,1) -> 1 | B28: =IF(A28>0,SUM($A$18:A28)," ") -> 10 | C28: Contact name (Multiple contact names)
A29: =IF(ISBOLD(C29),0,1) -> 1 | B29: =IF(A29>0,SUM($A$18:A29)," ") -> 11 | C29: Telephone number, fax or email address
A30: =IF(ISBOLD(C30),0,1) -> 1 | B30: =IF(A30>0,SUM($A$18:A30)," ") -> 12 | C30: Third-party payer information
A31: =IF(ISBOLD(C31),0,1) -> 1 | B31: =IF(A31>0,SUM($A$18:A31)," ") -> 13 | C31: Billing address
A32: =IF(ISBOLD(C32),0,1) -> 1 | B32: =IF(A32>0,SUM($A$18:A32)," ") -> 14 | C32: Billed to date
A33: =IF(ISBOLD(C33),0,1) -> 1 | B33: =IF(A33>0,SUM($A$18:A33)," ") -> 15 | C33: Dollars received to date
A34: =IF(ISBOLD(C34),0,1) -> 1 | B34: =IF(A34>0,SUM($A$18:A34)," ") -> 16 | C34: Penalties and Late Fees
A35: =IF(ISBOLD(C35),0,1) -> 1 | B35: =IF(A35>0,SUM($A$18:A35)," ") -> 17 | C35: Aged outstanding balance
A36: =IF(ISBOLD(C36),0,1) -> 1 | B36: =IF(A36>0,SUM($A$18:A36)," ") -> 18 | C36: Outstanding billings
A37: =IF(ISBOLD(C37),0,1) -> 1 | B37: =IF(A37>0,SUM($A$18:A37)," ") -> 19 | C37: Previous balance
A38: =IF(ISBOLD(C38),0,1) -> 1 | B38: =IF(A38>0,SUM($A$18:A38)," ") -> 20 | C38: Carry forward balance
A39: =IF(ISBOLD(C39),0,1) -> 1 | B39: =IF(A39>0,SUM($A$18:A39)," ") -> 21 | C39: Date of last payment
A40: =IF(ISBOLD(C40),0,1) -> 1 | B40: =IF(A40>0,SUM($A$18:A40)," ") -> 22 | C40: Amount of last payment
A41: =IF(ISBOLD(C41),0,1) -> 1 | B41: =IF(A41>0,SUM($A$18:A41)," ") -> 23 | C41: Average elapsed time for payment of billings
A42: =IF(ISBOLD(C42),0,1) -> 1 | B42: =IF(A42>0,SUM($A$18:A42)," ") -> 24 | C42: Adjustments
A43: =IF(ISBOLD(C43),0,1) -> 1 | B43: =IF(A43>0,SUM($A$18:A43)," ") -> 25 | C43: Write-offs
A44: =IF(ISBOLD(C44),0,1) -> 1 | B44: =IF(A44>0,SUM($A$18:A44)," ") -> 26 | C44: Cancellations
A45: =IF(ISBOLD(C45),0,1) -> 1 | B45: =IF(A45>0,SUM($A$18:A45)," ") -> 27 | C45: Parent child relationships
A46: =IF(ISBOLD(C46),0,1) -> 1 | B46: =IF(A46>0,SUM($A$18:A46)," ") -> 28 | C46: Confidentiality flag (e.g., juvenile flag)
A47: =IF(ISBOLD(C47),0,1) -> 1 | B47: =IF(A47>0,SUM($A$18:A47)," ") -> 29 | C47: Indicator that the customer is a Town resident
A48: =IF(ISBOLD(C48),0,1) -> 1 | B48: =IF(A48>0,SUM($A$18:A48)," ") -> 30 | C48: Other user defined fields (please note any limitations on the number or type of user defined fields)
A49: =IF(ISBOLD(C49),0,1) -> 1 | B49: =IF(A49>0,SUM($A$18:A49)," ") -> 31 | C49: The system sets up references to customers in other modules (e.g. AP vendors, permitting)
A50: =IF(ISBOLD(C50),0,1) -> 1 | B50: =IF(A50>0,SUM($A$18:A50)," ") -> 32 | C50: The system sets up references to employees who are customers (e.g. HR or Payroll modules)
A51: =IF(ISBOLD(C51),0,1) -> 1 | B51: =IF(A51>0,SUM($A$18:A51)," ") -> 33 | C51: The system pulls addresses from the GIS/parcel management database to validate address authenticity
A52: =IF(ISBOLD(C52),0,1) -> 1 | B52: =IF(A52>0,SUM($A$18:A52)," ") -> 34 | C52: The system sets up multiple invoice templates
A53: =IF(ISBOLD(C53),0,1) -> 1 | B53: =IF(A53>0,SUM($A$18:A53)," ") -> 35 | C53: The system sets up multiple workflows and approvals based upon invoice type, invoice amounts, commodity codes, service types, project information, grant information, cost centers, program area and other criteria
A54: =IF(ISBOLD(C54),0,1) -> 0 | B54: =IF(A54>0,SUM($A$18:A54)," ") ->  | C54: The system sets up flexible and user defined billing rules, including:
A55: =IF(ISBOLD(C55),0,1) -> 1 | B55: =IF(A55>0,SUM($A$18:A55)," ") -> 36 | C55: Type of receivable
A56: =IF(ISBOLD(C56),0,1) -> 1 | B56: =IF(A56>0,SUM($A$18:A56)," ") -> 37 | C56: Rates
A57: =IF(ISBOLD(C57),0,1) -> 1 | B57: =IF(A57>0,SUM($A$18:A57)," ") -> 38 | C57: Rate tables
A58: =IF(ISBOLD(C58),0,1) -> 1 | B58: =IF(A58>0,SUM($A$18:A58)," ") -> 39 | C58: Multiple dates (e.g. service date)
A59: =IF(ISBOLD(C59),0,1) -> 1 | B59: =IF(A59>0,SUM($A$18:A59)," ") -> 40 | C59: Multiple types of services
A60: =IF(ISBOLD(C60),0,1) -> 1 | B60: =IF(A60>0,SUM($A$18:A60)," ") -> 41 | C60: Multiple expense types
A61: =IF(ISBOLD(C61),0,1) -> 1 | B61: =IF(A61>0,SUM($A$18:A61)," ") -> 42 | C61: Terms
A62: =IF(ISBOLD(C62),0,1) -> 1 | B62: =IF(A62>0,SUM($A$18:A62)," ") -> 43 | C62: Other user defined fields (please note any limitations on the number or type of user defined fields)
A63: =IF(ISBOLD(C63),0,1) -> 1 | B63: =IF(A63>0,SUM($A$18:A63)," ") -> 44 | C63: The system sets up electronic, mail or fax invoices
A64: =IF(ISBOLD(C64),0,1) -> 1 | B64: =IF(A64>0,SUM($A$18:A64)," ") -> 45 | C64: The system identifies invoice delivery method based on the service type
A65: =IF(ISBOLD(C65),0,1) -> 1 | B65: =IF(A65>0,SUM($A$18:A65)," ") -> 46 | C65: The system flags invoices that contain confidential information, by type of service, provider and other user defined criteria
A66: =IF(ISBOLD(C66),0,1) -> 1 | B66: =IF(A66>0,SUM($A$18:A66)," ") -> 47 | C66: The system overrides standard invoice delivery method by invoice (e.g., change from e-mail to mail for a single invoice)
A67: =IF(ISBOLD(C67),0,1) -> 1 | B67: =IF(A67>0,SUM($A$18:A67)," ") -> 48 | C67: The system consolidates multiple line items into one invoice
A68: =IF(ISBOLD(C68),0,1) -> 1 | B68: =IF(A68>0,SUM($A$18:A68)," ") -> 49 | C68: The system consolidates receivables from multiple departments into one invoice per customer number or miscellaneous numbers
A69: =IF(ISBOLD(C69),0,1) -> 1 | B69: =IF(A69>0,SUM($A$18:A69)," ") -> 50 | C69: The system splits out revenue to cost centers based on percentage allocation or flat dollar allocation
A70: =IF(ISBOLD(C70),0,1) -> 1 | B70: =IF(A70>0,SUM($A$18:A70)," ") -> 51 | C70: The system automatically generates periodic or recurring invoices, statements, collection notices and replacement bills on a user defined basis
A71: =IF(ISBOLD(C71),0,1) -> 1 | B71: =IF(A71>0,SUM($A$18:A71)," ") -> 52 | C71: The system sets up invoices as recurring or nonrecurring
A72: =IF(ISBOLD(C72),0,1) -> 1 | B72: =IF(A72>0,SUM($A$18:A72)," ") -> 53 | C72: The system sets up charges as interdepartmental electronic transfers instead of invoicing
A73: =IF(ISBOLD(C73),0,1) -> 0 | B73: =IF(A73>0,SUM($A$18:A73)," ") ->  | C73: The system sets up A/R aging rules based on:
A74: =IF(ISBOLD(C74),0,1) -> 1 | B74: =IF(A74>0,SUM($A$18:A74)," ") -> 54 | C74: Service date
A75: =IF(ISBOLD(C75),0,1) -> 1 | B75: =IF(A75>0,SUM($A$18:A75)," ") -> 55 | C75: Due date
A76: =IF(ISBOLD(C76),0,1) -> 1 | B76: =IF(A76>0,SUM($A$18:A76)," ") -> 56 | C76: Type of receivable
A77: =IF(ISBOLD(C77),0,1) -> 1 | B77: =IF(A77>0,SUM($A$18:A77)," ") -> 57 | C77: Other user defined dates
A78: =IF(ISBOLD(C78),0,1) -> 0 | B78: =IF(A78>0,SUM($A$18:A78)," ") ->  | C78: The system sets up A/R escalation rules and penalties at the:
A79: =IF(ISBOLD(C79),0,1) -> 1 | B79: =IF(A79>0,SUM($A$18:A79)," ") -> 58 | C79: Account level
A80: =IF(ISBOLD(C80),0,1) -> 1 | B80: =IF(A80>0,SUM($A$18:A80)," ") -> 59 | C80: Program level
A81: =IF(ISBOLD(C81),0,1) -> 1 | B81: =IF(A81>0,SUM($A$18:A81)," ") -> 60 | C81: Receivable type
A82: =IF(ISBOLD(C82),0,1) -> 1 | B82: =IF(A82>0,SUM($A$18:A82)," ") -> 61 | C82: Other user defined levels
A83: =IF(ISBOLD(C83),0,1) -> 1 | B83: =IF(A83>0,SUM($A$18:A83)," ") -> 62 | C83: The system sets up A/R aging templates for billing
A84: =IF(ISBOLD(C84),0,1) -> 1 | B84: =IF(A84>0,SUM($A$18:A84)," ") -> 63 | C84: The system sets up collection rules and tracking of collections efforts
A85: =IF(ISBOLD(C85),0,1) -> 1 | B85: =IF(A85>0,SUM($A$18:A85)," ") -> 64 | C85: The system updates accounts receivable records as cash is received and recorded (single entry) in real-time
A86: =IF(ISBOLD(C86),0,1) -> 1 | B86: =IF(A86>0,SUM($A$18:A86)," ") -> 65 | C86: The system sets up and receives electronic payments from multiple credit card processors. In the comments section, indicate which credit card processors your system integrates with
A87: =IF(ISBOLD(C87),0,1) -> 1 | B87: =IF(A87>0,SUM($A$18:A87)," ") -> 66 | C87: The system notifies the issuing department upon receipt of payment
A88: =IF(ISBOLD(C88),0,1) -> 1 | B88: =IF(A88>0,SUM($A$18:A88)," ") -> 67 | C88: The system sets up and receives payments via ACH
A89: =IF(ISBOLD(C89),0,1) -> 1 | B89: =IF(A89>0,SUM($A$18:A89)," ") -> 68 | C89: The system accepts remittance advices through various systems (e.g., point of sale system)
A90: =IF(ISBOLD(C90),0,1) -> 1 | B90: =IF(A90>0,SUM($A$18:A90)," ") -> 69 | C90: The system receives online payments via web interface, or customer portal
A91: =IF(ISBOLD(C91),0,1) -> 1 | B91: =IF(A91>0,SUM($A$18:A91)," ") -> 70 | C91: The system sets up interfaces with various point of sale systems and allow for input from cash registers, credit card machines, scanners and bar-coded items
A92: =IF(ISBOLD(C92),0,1) -> 0 | B92: =IF(A92>0,SUM($A$18:A92)," ") ->  | C92: The system sets up and inputs the following invoice information:
A93: =IF(ISBOLD(C93),0,1) -> 1 | B93: =IF(A93>0,SUM($A$18:A93)," ") -> 71 | C93: Accounting distribution
A94: =IF(ISBOLD(C94),0,1) -> 1 | B94: =IF(A94>0,SUM($A$18:A94)," ") -> 72 | C94: Department reference number
A95: =IF(ISBOLD(C95),0,1) -> 1 | B95: =IF(A95>0,SUM($A$18:A95)," ") -> 73 | C95: Customer purchase order number
A96: =IF(ISBOLD(C96),0,1) -> 1 | B96: =IF(A96>0,SUM($A$18:A96)," ") -> 74 | C96: Invoice/credit memo number
A97: =IF(ISBOLD(C97),0,1) -> 1 | B97: =IF(A97>0,SUM($A$18:A97)," ") -> 75 | C97: Invoice/credit memo processing date
A98: =IF(ISBOLD(C98),0,1) -> 1 | B98: =IF(A98>0,SUM($A$18:A98)," ") -> 76 | C98: Invoice due date
A99: =IF(ISBOLD(C99),0,1) -> 1 | B99: =IF(A99>0,SUM($A$18:A99)," ") -> 77 | C99: Invoice/credit memo amount
A100: =IF(ISBOLD(C100),0,1) -> 1 | B100: =IF(A100>0,SUM($A$18:A100)," ") -> 78 | C100: Type of service rendered
A101: =IF(ISBOLD(C101),0,1) -> 1 | B101: =IF(A101>0,SUM($A$18:A101)," ") -> 79 | C101: Payment terms
A102: =IF(ISBOLD(C102),0,1) -> 1 | B102: =IF(A102>0,SUM($A$18:A102)," ") -> 80 | C102: Late charge information
A103: =IF(ISBOLD(C103),0,1) -> 1 | B103: =IF(A103>0,SUM($A$18:A103)," ") -> 81 | C103: Good faith deposit
A104: =IF(ISBOLD(C104),0,1) -> 1 | B104: =IF(A104>0,SUM($A$18:A104)," ") -> 82 | C104: Flag for collections vs. department invoice
A105: =IF(ISBOLD(C105),0,1) -> 1 | B105: =IF(A105>0,SUM($A$18:A105)," ") -> 83 | C105: Flag for referral to collections division
A106: =IF(ISBOLD(C106),0,1) -> 1 | B106: =IF(A106>0,SUM($A$18:A106)," ") -> 84 | C106: Flag to determine whether or not invoice should be printed
A107: =IF(ISBOLD(C107),0,1) -> 1 | B107: =IF(A107>0,SUM($A$18:A107)," ") -> 85 | C107: Flag for revenue recapture
A108: =IF(ISBOLD(C108),0,1) -> 1 | B108: =IF(A108>0,SUM($A$18:A108)," ") -> 86 | C108: Flag for payment plans
A109: =IF(ISBOLD(C109),0,1) -> 1 | B109: =IF(A109>0,SUM($A$18:A109)," ") -> 87 | C109: Flag for project numbers
A110: =IF(ISBOLD(C110),0,1) -> 1 | B110: =IF(A110>0,SUM($A$18:A110)," ") -> 88 | C110: Flag for judgments
A111: =IF(ISBOLD(C111),0,1) -> 1 | B111: =IF(A111>0,SUM($A$18:A111)," ") -> 89 | C111: Comments/Narrative Information
A112: =IF(ISBOLD(C112),0,1) -> 1 | B112: =IF(A112>0,SUM($A$18:A112)," ") -> 90 | C112: Other user defined fields (please note any limitations on the number or type of user defined fields)
A113: =IF(ISBOLD(C113),0,1) -> 1 | B113: =IF(A113>0,SUM($A$18:A113)," ") -> 91 | C113: The system attaches scanned documents to a customer record
A114: =IF(ISBOLD(C114),0,1) -> 1 | B114: =IF(A114>0,SUM($A$18:A114)," ") -> 92 | C114: The system creates individualized barcode scanning to track all invoices to tie back to the GL when receivable is paid
A115: =IF(ISBOLD(C115),0,1) -> 0 | B115: =IF(A115>0,SUM($A$18:A115)," ") ->  | C115: The system sets up and inputs the following cash receipt information:
A116: =IF(ISBOLD(C116),0,1) -> 1 | B116: =IF(A116>0,SUM($A$18:A116)," ") -> 93 | C116: Amount received
A117: =IF(ISBOLD(C117),0,1) -> 1 | B117: =IF(A117>0,SUM($A$18:A117)," ") -> 94 | C117: Partial amount received
A118: =IF(ISBOLD(C118),0,1) -> 1 | B118: =IF(A118>0,SUM($A$18:A118)," ") -> 95 | C118: Check number
A119: =IF(ISBOLD(C119),0,1) -> 1 | B119: =IF(A119>0,SUM($A$18:A119)," ") -> 96 | C119: Receipt number
A120: =IF(ISBOLD(C120),0,1) -> 1 | B120: =IF(A120>0,SUM($A$18:A120)," ") -> 97 | C120: Date of receipt
A121: =IF(ISBOLD(C121),0,1) -> 1 | B121: =IF(A121>0,SUM($A$18:A121)," ") -> 98 | C121: Payment type (e.g., check, cash, ACH)
A122: =IF(ISBOLD(C122),0,1) -> 1 | B122: =IF(A122>0,SUM($A$18:A122)," ") -> 99 | C122: Comments/Narrative Information
A123: =IF(ISBOLD(C123),0,1) -> 1 | B123: =IF(A123>0,SUM($A$18:A123)," ") -> 100 | C123: Other user defined fields (please note any limitations on the number or type of user defined fields)
A124: =IF(ISBOLD(C124),0,1) -> 1 | B124: =IF(A124>0,SUM($A$18:A124)," ") -> 101 | C124: The system attaches scanned images of checks to a payment or invoice
A125: =IF(ISBOLD(C125),0,1) -> 1 | B125: =IF(A125>0,SUM($A$18:A125)," ") -> 102 | C125: The system allocates accounts receivables to multiple account codes, cost centers, project and fund
A126: =IF(ISBOLD(C126),0,1) -> 1 | B126: =IF(A126>0,SUM($A$18:A126)," ") -> 103 | C126: The system assigns specific adjustments and credit memos to specific billings and billing line items
A127: =IF(ISBOLD(C127),0,1) -> 0 | B127: =IF(A127>0,SUM($A$18:A127)," ") ->  | C127: The system performs alpha numeric searches and searches on embedded character strings within a field for:
A128: =IF(ISBOLD(C128),0,1) -> 1 | B128: =IF(A128>0,SUM($A$18:A128)," ") -> 104 | C128: Multiple customer names
A129: =IF(ISBOLD(C129),0,1) -> 1 | B129: =IF(A129>0,SUM($A$18:A129)," ") -> 105 | C129: Multiple customer address
A130: =IF(ISBOLD(C130),0,1) -> 1 | B130: =IF(A130>0,SUM($A$18:A130)," ") -> 106 | C130: Social security/ tax ID number
A131: =IF(ISBOLD(C131),0,1) -> 1 | B131: =IF(A131>0,SUM($A$18:A131)," ") -> 107 | C131: Birth date
A132: =IF(ISBOLD(C132),0,1) -> 1 | B132: =IF(A132>0,SUM($A$18:A132)," ") -> 108 | C132: Invoice number
A133: =IF(ISBOLD(C133),0,1) -> 1 | B133: =IF(A133>0,SUM($A$18:A133)," ") -> 109 | C133: Other user defined fields (please note any limitations on the number or type of user defined fields)
A134: =IF(ISBOLD(C134),0,1) -> 0 | B134: =IF(A134>0,SUM($A$18:A134)," ") ->  | C134: The system suppresses invoices and statements for any account/customer with:
A135: =IF(ISBOLD(C135),0,1) -> 1 | B135: =IF(A135>0,SUM($A$18:A135)," ") -> 110 | C135: Zero balance
A136: =IF(ISBOLD(C136),0,1) -> 1 | B136: =IF(A136>0,SUM($A$18:A136)," ") -> 111 | C136: Credit balance
A137: =IF(ISBOLD(C137),0,1) -> 1 | B137: =IF(A137>0,SUM($A$18:A137)," ") -> 112 | C137: User defined minimum balance
A138: =IF(ISBOLD(C138),0,1) -> 1 | B138: =IF(A138>0,SUM($A$18:A138)," ") -> 113 | C138: The system sets up and inputs multiple dunning messages or letters
A139: =IF(ISBOLD(C139),0,1) -> 1 | B139: =IF(A139>0,SUM($A$18:A139)," ") -> 114 | C139: The system sets up and inputs user defined dunning messages
A140: =IF(ISBOLD(C140),0,1) -> 1 | B140: =IF(A140>0,SUM($A$18:A140)," ") -> 115 | C140: The system sets up dunning standards for different customer types
A141: =IF(ISBOLD(C141),0,1) -> 1 | B141: =IF(A141>0,SUM($A$18:A141)," ") -> 116 | C141: The system overrides dunning for customers, with security and approval
A142: =IF(ISBOLD(C142),0,1) -> 1 | B142: =IF(A142>0,SUM($A$18:A142)," ") -> 117 | C142: The system flags a bad address
A143: =IF(ISBOLD(C143),0,1) -> 1 | B143: =IF(A143>0,SUM($A$18:A143)," ") -> 118 | C143: The system suppresses invoices with bad addresses
A144: =IF(ISBOLD(C144),0,1) -> 1 | B144: =IF(A144>0,SUM($A$18:A144)," ") -> 119 | C144: The system generates or reissues a duplicate bill on request
A145: =IF(ISBOLD(C145),0,1) -> 0 | B145: =IF(A145>0,SUM($A$18:A145)," ") ->  | C145: The system generates account/customer statements on demand for:
A146: =IF(ISBOLD(C146),0,1) -> 1 | B146: =IF(A146>0,SUM($A$18:A146)," ") -> 120 | C146: Specific account/customer
A147: =IF(ISBOLD(C147),0,1) -> 1 | B147: =IF(A147>0,SUM($A$18:A147)," ") -> 121 | C147: All accounts in a department or specific groups
A148: =IF(ISBOLD(C148),0,1) -> 1 | B148: =IF(A148>0,SUM($A$18:A148)," ") -> 122 | C148: A range of account/customer numbers
A149: =IF(ISBOLD(C149),0,1) -> 1 | B149: =IF(A149>0,SUM($A$18:A149)," ") -> 123 | C149: All delinquent accounts
A150: =IF(ISBOLD(C150),0,1) -> 1 | B150: =IF(A150>0,SUM($A$18:A150)," ") -> 124 | C150: Billing date
A151: =IF(ISBOLD(C151),0,1) -> 1 | B151: =IF(A151>0,SUM($A$18:A151)," ") -> 125 | C151: One or multiple cost centers (e.g. range of cost centers)
A152: =IF(ISBOLD(C152),0,1) -> 1 | B152: =IF(A152>0,SUM($A$18:A152)," ") -> 126 | C152: Social security/Tax ID number
A153: =IF(ISBOLD(C153),0,1) -> 1 | B153: =IF(A153>0,SUM($A$18:A153)," ") -> 127 | C153: Fund
A154: =IF(ISBOLD(C154),0,1) -> 1 | B154: =IF(A154>0,SUM($A$18:A154)," ") -> 128 | C154: Project
A155: =IF(ISBOLD(C155),0,1) -> 1 | B155: =IF(A155>0,SUM($A$18:A155)," ") -> 129 | C155: Program
A156: =IF(ISBOLD(C156),0,1) -> 1 | B156: =IF(A156>0,SUM($A$18:A156)," ") -> 130 | C156: Other user defined fields (please note any limitations on the number or type of user defined fields)
A157: =IF(ISBOLD(C157),0,1) -> 0 | B157: =IF(A157>0,SUM($A$18:A157)," ") ->  | C157: The system produces reconciliation billing statements showing:
A158: =IF(ISBOLD(C158),0,1) -> 1 | B158: =IF(A158>0,SUM($A$18:A158)," ") -> 131 | C158: Beginning balance
A159: =IF(ISBOLD(C159),0,1) -> 1 | B159: =IF(A159>0,SUM($A$18:A159)," ") -> 132 | C159: Charges
A160: =IF(ISBOLD(C160),0,1) -> 1 | B160: =IF(A160>0,SUM($A$18:A160)," ") -> 133 | C160: Credits
A161: =IF(ISBOLD(C161),0,1) -> 1 | B161: =IF(A161>0,SUM($A$18:A161)," ") -> 134 | C161: Multiple payment types
A162: =IF(ISBOLD(C162),0,1) -> 1 | B162: =IF(A162>0,SUM($A$18:A162)," ") -> 135 | C162: New balance
A163: =IF(ISBOLD(C163),0,1) -> 1 | B163: =IF(A163>0,SUM($A$18:A163)," ") -> 136 | C163: Comment lines
A164: =IF(ISBOLD(C164),0,1) -> 1 | B164: =IF(A164>0,SUM($A$18:A164)," ") -> 137 | C164: Write-offs
A165: =IF(ISBOLD(C165),0,1) -> 1 | B165: =IF(A165>0,SUM($A$18:A165)," ") -> 138 | C165: Adjustments
A166: =IF(ISBOLD(C166),0,1) -> 1 | B166: =IF(A166>0,SUM($A$18:A166)," ") -> 139 | C166: Multiple write-offs
A167: =IF(ISBOLD(C167),0,1) -> 1 | B167: =IF(A167>0,SUM($A$18:A167)," ") -> 140 | C167: Multiple adjustments
A168: =IF(ISBOLD(C168),0,1) -> 1 | B168: =IF(A168>0,SUM($A$18:A168)," ") -> 141 | C168: The system tracks invoice history
A169: =IF(ISBOLD(C169),0,1) -> 1 | B169: =IF(A169>0,SUM($A$18:A169)," ") -> 142 | C169: The system issues penalties, late fees, or interest on a percentage or flat fee basis
A170: =IF(ISBOLD(C170),0,1) -> 1 | B170: =IF(A170>0,SUM($A$18:A170)," ") -> 143 | C170: The system supports recurring invoice processing (related to contracts) within the system | D170: x
A171: =IF(ISBOLD(C171),0,1) -> 1 | B171: =IF(A171>0,SUM($A$18:A171)," ") -> 144 | C171: The system differentiates through an AR code or transaction type different types of AR (by billing type, etc.) | D171: x
A172: =IF(ISBOLD(C172),0,1) -> 1 | B172: =IF(A172>0,SUM($A$18:A172)," ") -> 145 | C172: The system sets up a recurring AR invoice template for periodic billing
A173: =IF(ISBOLD(C173),0,1) -> 0 | B173: =IF(A173>0,SUM($A$18:A173)," ") ->  | C173: The system queries an invoice by:
A174: =IF(ISBOLD(C174),0,1) -> 1 | B174: =IF(A174>0,SUM($A$18:A174)," ") -> 146 | C174: Invoice number
A175: =IF(ISBOLD(C175),0,1) -> 1 | B175: =IF(A175>0,SUM($A$18:A175)," ") -> 147 | C175: Vendor address
A176: =IF(ISBOLD(C176),0,1) -> 1 | B176: =IF(A176>0,SUM($A$18:A176)," ") -> 148 | C176: Check amount
A177: =IF(ISBOLD(C177),0,1) -> 1 | B177: =IF(A177>0,SUM($A$18:A177)," ") -> 149 | C177: Last name (of vendor contact)
A178: =IF(ISBOLD(C178),0,1) -> 1 | B178: =IF(A178>0,SUM($A$18:A178)," ") -> 150 | C178: The system receives and tracks donations by grant/project
A179: =IF(ISBOLD(C179),0,1) -> 1 | B179: =IF(A179>0,SUM($A$18:A179)," ") -> 151 | C179: The system is integrated with a mobile payment option
A180: =IF(ISBOLD(C180),0,1) -> 0 | B180: =IF(A180>0,SUM($A$18:A180)," ") ->  | C180: Internal Transactions
A181: =IF(ISBOLD(C181),0,1) -> 0 | B181: =IF(A181>0,SUM($A$18:A181)," ") ->  | C181: The system handles automated internal transactions, including:
A182: =IF(ISBOLD(C182),0,1) -> 1 | B182: =IF(A182>0,SUM($A$18:A182)," ") -> 152 | C182: Interdepartmental transfers
A183: =IF(ISBOLD(C183),0,1) -> 1 | B183: =IF(A183>0,SUM($A$18:A183)," ") -> 153 | C183: Interfund transfers
A184: =IF(ISBOLD(C184),0,1) -> 1 | B184: =IF(A184>0,SUM($A$18:A184)," ") -> 154 | C184: Cost Center transfers
A185: =IF(ISBOLD(C185),0,1) -> 1 | B185: =IF(A185>0,SUM($A$18:A185)," ") -> 155 | C185: Other user defined transfers
A186: =IF(ISBOLD(C186),0,1) -> 1 | B186: =IF(A186>0,SUM($A$18:A186)," ") -> 156 | C186: Line of business transfers
A187: =IF(ISBOLD(C187),0,1) -> 0 | B187: =IF(A187>0,SUM($A$18:A187)," ") ->  | C187: Cash Receipts / Remittance
A188: =IF(ISBOLD(C188),0,1) -> 1 | B188: =IF(A188>0,SUM($A$18:A188)," ") -> 157 | C188: The system will accept payment in multiple forms for the same transaction
A189: =IF(ISBOLD(C189),0,1) -> 1 | B189: =IF(A189>0,SUM($A$18:A189)," ") -> 158 | C189: The system processes receipts in batch | D189: x
A190: 1 | B190: =IF(A190>0,SUM($A$18:A190)," ") -> 159 | C190: The system allows the user to make updates prior to processing a batch
A191: =IF(ISBOLD(C191),0,1) -> 1 | B191: =IF(A191>0,SUM($A$18:A191)," ") -> 160 | C191: The system batches all automated call-in and online payments
A192: =IF(ISBOLD(C192),0,1) -> 1 | B192: =IF(A192>0,SUM($A$18:A192)," ") -> 161 | C192: The system adjusts cash receipt batch totals, based upon security
A193: =IF(ISBOLD(C193),0,1) -> 1 | B193: =IF(A193>0,SUM($A$18:A193)," ") -> 162 | C193: The system has multiple cash receipt entry templates (e.g. templates by department)
A194: =IF(ISBOLD(C194),0,1) -> 1 | B194: =IF(A194>0,SUM($A$18:A194)," ") -> 163 | C194: The system defines approval or status of cash receipt batch
A195: =IF(ISBOLD(C195),0,1) -> 1 | B195: =IF(A195>0,SUM($A$18:A195)," ") -> 164 | C195: The system reconciles cash receipts by user/day/batch
A196: =IF(ISBOLD(C196),0,1) -> 1 | B196: =IF(A196>0,SUM($A$18:A196)," ") -> 165 | C196: The system matches cash receipt payment to outstanding AR
A197: =IF(ISBOLD(C197),0,1) -> 1 | B197: =IF(A197>0,SUM($A$18:A197)," ") -> 166 | C197: The system posts to a clearing account, if an outstanding receivable cannot be identified at the time the cash is received
A198: =IF(ISBOLD(C198),0,1) -> 1 | B198: =IF(A198>0,SUM($A$18:A198)," ") -> 167 | C198: The system reconciles cash receipt transactions to the deposit data provided to the banks and identifies any discrepancies
A199: =IF(ISBOLD(C199),0,1) -> 1 | B199: =IF(A199>0,SUM($A$18:A199)," ") -> 168 | C199: The system tracks partial payments
A200: =IF(ISBOLD(C200),0,1) -> 0 | B200: =IF(A200>0,SUM($A$18:A200)," ") ->  | C200: The system applies or allocates partial payments, which are not identified to a specific invoice, on a predetermined basis, such as:
A201: =IF(ISBOLD(C201),0,1) -> 1 | B201: =IF(A201>0,SUM($A$18:A201)," ") -> 169 | C201: Age
A202: =IF(ISBOLD(C202),0,1) -> 1 | B202: =IF(A202>0,SUM($A$18:A202)," ") -> 170 | C202: Principal
A203: =IF(ISBOLD(C203),0,1) -> 1 | B203: =IF(A203>0,SUM($A$18:A203)," ") -> 171 | C203: Interest
A204: =IF(ISBOLD(C204),0,1) -> 1 | B204: =IF(A204>0,SUM($A$18:A204)," ") -> 172 | C204: Penalty
A205: =IF(ISBOLD(C205),0,1) -> 1 | B205: =IF(A205>0,SUM($A$18:A205)," ") -> 173 | C205: Other user defined fields (please note any limitations on the number or type of user defined fields)
A206: =IF(ISBOLD(C206),0,1) -> 1 | B206: =IF(A206>0,SUM($A$18:A206)," ") -> 174 | C206: The system stores partial payments and overpayments as separate open items against the original billed amount until the bill is fully cleared
A207: =IF(ISBOLD(C207),0,1) -> 1 | B207: =IF(A207>0,SUM($A$18:A207)," ") -> 175 | C207: The system reverses a receipt
A208: =IF(ISBOLD(C208),0,1) -> 1 | B208: =IF(A208>0,SUM($A$18:A208)," ") -> 176 | C208: The system processes miscellaneous cash receipts | D208: x
A209: =IF(ISBOLD(C209),0,1) -> 1 | B209: =IF(A209>0,SUM($A$18:A209)," ") -> 177 | C209: The system processes and allocates one payment for multiple charges
... 217 more rows

Sheet Accounts Payable
C1: Requirements Survey
C2: Accounts Payable | E2: Requirements Response Rules:
C3: The following functional, technical, workflow and reporting needs provide the minimum requirements of the Town of Colma. Please review the items carefully and respond in accordance with the requirements response rules provided. Any partial response will be deemed as an invalid response. MANDATORY: EVERY REQUIREMENT (Req#) MUST HAVE A RESPONSE TO BE CONSIDERED COMPLETE. | E3: Column #1. Mandatory: Proposers are required to input one response per requirement using the drop down list provided. Response Types: F=Fully provided out of the box, or fully provided out of the box through basic configuration Mod= Provided through a technical modification of the software (i.e. a customization) TP = Provided through a proposed third party application or capability CR= Custom report requiring development SR = Standard report provided through a built in or proposed reporting tool NA = Not Available Column #2. Proposers are requested to itemize estimated costs for all modification requirements. Column #3. Proposers are requested to list the third party product name for all Third Party Product requirements. Column #4. Mandatory: Proposers are required to mark yes or no to whether the implementation costs of this functionality is included in their cost proposal. Column #5. Mandatory: Proposers are required to mark yes or no to whether the training costs of this functionality is included in their cost proposal. Column #6. If a subcontractor is implementing or providing training for this functionality, please indicate the name of the subcontracting firm responsible for this functionality. Column #7. Mandatory: Proposers are required to list the version number for all functionality proposed to the Town.
C13: PROCESS | D13: High Priority | E13: 1.Response | F13: 2.Costs for Mod response | G13: 3.Third Party Application for TP response | H13: 4. Included in Implementation Costs | I13: 5. Included in training costs | J13: 6. Subcontractor | K13: 7. Version Number | L13: Comments/Narrative
B14: Req#
H15: Yes/No | I15: Yes/No
C16: Accounts Payable
C17: Accounts Payable Set Up
A18: =IF(ISBOLD(C18),0,1) -> 1 | B18: =IF(A18>0,SUM($A18:A$18)," ") -> 1 | C18: The system sets up and administers accounts payable approval workflow that includes routing rules that can be set up by any account code segment, dollar amount, and other user defined field
A19: =IF(ISBOLD(C19),0,1) -> 1 | B19: =IF(A19>0,SUM($A$18:A19)," ") -> 2 | C19: The system sets-up and administers work flow that routes transactions based upon combinations of account segment codes (e.g., fund and center)
A20: =IF(ISBOLD(C20),0,1) -> 1 | B20: =IF(A20>0,SUM($A$18:A20)," ") -> 3 | C20: The system searches for vendors used by different departments, searchable by any field associated with the vendor record | D20: X
A21: =IF(ISBOLD(C21),0,1) -> 1 | B21: =IF(A21>0,SUM($A$18:A21)," ") -> 4 | C21: The ability to perform 'fuzzy' searches to more easily locate vendors | D21: X
A22: =IF(ISBOLD(C22),0,1) -> 1 | B22: =IF(A22>0,SUM($A$18:A22)," ") -> 5 | C22: The system prevents the re-use of vendor numbers
A23: =IF(ISBOLD(C23),0,1) -> 1 | B23: =IF(A23>0,SUM($A$18:A23)," ") -> 6 | C23: The system prevents duplicate vendor set up by government assigned vendor number, SSN, or tax ID number.
A24: =IF(ISBOLD(C24),0,1) -> 1 | B24: =IF(A24>0,SUM($A$18:A24)," ") -> 7 | C24: The system accommodates decentralized invoice entry and processing | D24: X
A25: =IF(ISBOLD(C25),0,1) -> 1 | B25: =IF(A25>0,SUM($A$18:A25)," ") -> 8 | C25: The system prevents a single tax ID to be used for multiple vendor set-ups
A26: =IF(ISBOLD(C26),0,1) -> 1 | B26: =IF(A26>0,SUM($A$18:A26)," ") -> 9 | C26: The system prevents the reuse of contract numbers
A27: =IF(ISBOLD(C27),0,1) -> 1 | B27: =IF(A27>0,SUM($A$18:A27)," ") -> 10 | C27: The system prevents the reuse of PO #'s
A28: =IF(ISBOLD(C28),0,1) -> 1 | B28: =IF(A28>0,SUM($A$18:A28)," ") -> 11 | C28: The system utilizes a master supplier file
A29: =IF(ISBOLD(C29),0,1) -> 1 | B29: =IF(A29>0,SUM($A$18:A29)," ") -> 12 | C29: The system sets up payment terms
A30: =IF(ISBOLD(C30),0,1) -> 1 | B30: =IF(A30>0,SUM($A$18:A30)," ") -> 13 | C30: The system allocates payments to multiple GL accounts | D30: X
A31: =IF(ISBOLD(C31),0,1) -> 1 | B31: =IF(A31>0,SUM($A$18:A31)," ") -> 14 | C31: The system sets up aging rules
A32: =IF(ISBOLD(C32),0,1) -> 1 | B32: =IF(A32>0,SUM($A$18:A32)," ") -> 15 | C32: The system sets up notification of past due payments
A33: =IF(ISBOLD(C33),0,1) -> 1 | B33: =IF(A33>0,SUM($A$18:A33)," ") -> 16 | C33: The system sets up bank reconciliation processing rules
A34: =IF(ISBOLD(C34),0,1) -> 1 | B34: =IF(A34>0,SUM($A$18:A34)," ") -> 17 | C34: The system sets up purchasing card processing rules
A35: =IF(ISBOLD(C35),0,1) -> 1 | B35: =IF(A35>0,SUM($A$18:A35)," ") -> 18 | C35: The system defines and edits formulas and schedules (e.g., net 30 payment)
A36: =IF(ISBOLD(C36),0,1) -> 1 | B36: =IF(A36>0,SUM($A$18:A36)," ") -> 19 | C36: The system defines discounts at the vendor record based upon payment schedules (e.g., 10% discount when net 30 payment)
A37: =IF(ISBOLD(C37),0,1) -> 1 | B37: =IF(A37>0,SUM($A$18:A37)," ") -> 20 | C37: The system sets up batch and real time approvals by transaction type
A38: =IF(ISBOLD(C38),0,1) -> 1 | B38: =IF(A38>0,SUM($A$18:A38)," ") -> 21 | C38: The system sets up line item approvals or total invoice based approvals
A39: =IF(ISBOLD(C39),0,1) -> 1 | B39: =IF(A39>0,SUM($A$18:A39)," ") -> 22 | C39: The system sets up line items as reimbursable or not
A40: =IF(ISBOLD(C40),0,1) -> 1 | B40: =IF(A40>0,SUM($A$18:A40)," ") -> 23 | C40: The system tracks deadlines to submit reimbursement requests (e.g., date service performed under a contract that is grant reimbursable)
A41: =IF(ISBOLD(C41),0,1) -> 1 | B41: =IF(A41>0,SUM($A$18:A41)," ") -> 24 | C41: The system automates reimbursements of employee expenses on payroll check
A42: =IF(ISBOLD(C42),0,1) -> 1 | B42: =IF(A42>0,SUM($A$18:A42)," ") -> 25 | C42: The system sets up rules that do not allow contracts/budgets (not to exceeds) to be exceeded
A43: =IF(ISBOLD(C43),0,1) -> 1 | B43: =IF(A43>0,SUM($A$18:A43)," ") -> 26 | C43: The system overrides not to exceed amounts, with security and workflow
A44: =IF(ISBOLD(C44),0,1) -> 1 | B44: =IF(A44>0,SUM($A$18:A44)," ") -> 27 | C44: The system sets up and administers workflow capability that allows invoices to be routed for approval based upon predefined business rules
A45: =IF(ISBOLD(C45),0,1) -> 1 | B45: =IF(A45>0,SUM($A$18:A45)," ") -> 28 | C45: The system establishes automatic workflow approval when items have been received against a purchase order
A46: =IF(ISBOLD(C46),0,1) -> 1 | B46: =IF(A46>0,SUM($A$18:A46)," ") -> 29 | C46: The system imports files (e.g., Excel, Word) or attaches scanned documents at any point in the workflow and approval process
A47: =IF(ISBOLD(C47),0,1) -> 1 | B47: =IF(A47>0,SUM($A$18:A47)," ") -> 30 | C47: The system allows multiple areas to handle the routing of received invoices for approval
A48: =IF(ISBOLD(C48),0,1) -> 0 | B48: =IF(A48>0,SUM($A$18:A48)," ") ->  | C48: AP Transactions
A49: =IF(ISBOLD(C49),0,1) -> 1 | B49: =IF(A49>0,SUM($A$18:A49)," ") -> 31 | C49: The system routes purchase orders for approval, based upon account segment codes, user id, or other user defined field | D49: X
A50: =IF(ISBOLD(C50),0,1) -> 1 | B50: =IF(A50>0,SUM($A$18:A50)," ") -> 32 | C50: The system routes scanned vendor invoice for approval based on relevant chart of account codes, center or project number
A51: =IF(ISBOLD(C51),0,1) -> 1 | B51: =IF(A51>0,SUM($A$18:A51)," ") -> 33 | C51: The system utilizes matching capabilities (e.g. matching of vendor invoice with purchase order) | D51: X
A52: =IF(ISBOLD(C52),0,1) -> 1 | B52: =IF(A52>0,SUM($A$18:A52)," ") -> 34 | C52: The system changes the chart of account code assigned to a payment, with security
A53: =IF(ISBOLD(C53),0,1) -> 1 | B53: =IF(A53>0,SUM($A$18:A53)," ") -> 35 | C53: The system adds or changes PO, invoice, contract information at any point in the workflow or approval process with security (e.g., project number)
A54: =IF(ISBOLD(C54),0,1) -> 1 | B54: =IF(A54>0,SUM($A$18:A54)," ") -> 36 | C54: The system edits the cost center information at the invoice or contract level, with security
A55: =IF(ISBOLD(C55),0,1) -> 1 | B55: =IF(A55>0,SUM($A$18:A55)," ") -> 37 | C55: The system processes transactions online
A56: =IF(ISBOLD(C56),0,1) -> 0 | B56: =IF(A56>0,SUM($A$18:A56)," ") ->  | C56: The system processes the following types of transactions:
A57: =IF(ISBOLD(C57),0,1) -> 1 | B57: =IF(A57>0,SUM($A$18:A57)," ") -> 38 | C57: Check requests
A58: =IF(ISBOLD(C58),0,1) -> 1 | B58: =IF(A58>0,SUM($A$18:A58)," ") -> 39 | C58: Check cancellation and reissue
A59: =IF(ISBOLD(C59),0,1) -> 1 | B59: =IF(A59>0,SUM($A$18:A59)," ") -> 40 | C59: ACH cancellation and reissue
A60: =IF(ISBOLD(C60),0,1) -> 1 | B60: =IF(A60>0,SUM($A$18:A60)," ") -> 41 | C60: Vendor Self-Service
A61: =IF(ISBOLD(C61),0,1) -> 1 | B61: =IF(A61>0,SUM($A$18:A61)," ") -> 42 | C61: One time payments
A62: =IF(ISBOLD(C62),0,1) -> 1 | B62: =IF(A62>0,SUM($A$18:A62)," ") -> 43 | C62: P-card
A63: =IF(ISBOLD(C63),0,1) -> 1 | B63: =IF(A63>0,SUM($A$18:A63)," ") -> 44 | C63: Refunds
A64: =IF(ISBOLD(C64),0,1) -> 1 | B64: =IF(A64>0,SUM($A$18:A64)," ") -> 45 | C64: The system allows entry of recurring invoices
A65: =IF(ISBOLD(C65),0,1) -> 1 | B65: =IF(A65>0,SUM($A$18:A65)," ") -> 46 | C65: The system allows payment to a onetime vendor with abbreviated vendor information in the master file | D65: X
A66: =IF(ISBOLD(C66),0,1) -> 1 | B66: =IF(A66>0,SUM($A$18:A66)," ") -> 47 | C66: The system shows the one-time vendor (recipient) on the check proofing
A67: =IF(ISBOLD(C67),0,1) -> 0 | B67: =IF(A67>0,SUM($A$18:A67)," ") ->  | C67: The system utilizes the following types of accounts payable source documents:
A68: =IF(ISBOLD(C68),0,1) -> 1 | B68: =IF(A68>0,SUM($A$18:A68)," ") -> 48 | C68: Purchase orders/encumbrances | D68: X
A69: =IF(ISBOLD(C69),0,1) -> 1 | B69: =IF(A69>0,SUM($A$18:A69)," ") -> 49 | C69: Invoices | D69: X
A70: =IF(ISBOLD(C70),0,1) -> 1 | B70: =IF(A70>0,SUM($A$18:A70)," ") -> 50 | C70: Debit/credit memos | D70: X
A71: =IF(ISBOLD(C71),0,1) -> 1 | B71: =IF(A71>0,SUM($A$18:A71)," ") -> 51 | C71: Contract, lease or any other fixed payment terms (recurring payable) | D71: X
A72: =IF(ISBOLD(C72),0,1) -> 1 | B72: =IF(A72>0,SUM($A$18:A72)," ") -> 52 | C72: The system drills down from any accounts payable source document to the supporting information (e.g., the contract to the specification document)
A73: =IF(ISBOLD(C73),0,1) -> 1 | B73: =IF(A73>0,SUM($A$18:A73)," ") -> 53 | C73: The system ties credit memos to specific departments (so one department's credit is not used by another department)
A74: =IF(ISBOLD(C74),0,1) -> 1 | B74: =IF(A74>0,SUM($A$18:A74)," ") -> 54 | C74: The system defaults information based upon certain criteria (e.g. default cost center, or project number information)
A75: =IF(ISBOLD(C75),0,1) -> 1 | B75: =IF(A75>0,SUM($A$18:A75)," ") -> 55 | C75: The system accepts contract progress payment schedules and payment documentation-Vendor Self-Service
A76: =IF(ISBOLD(C76),0,1) -> 0 | B76: =IF(A76>0,SUM($A$18:A76)," ") ->  | C76: The system reports on payments to vendors within or across the following categories, for user defined periods such as:
A77: =IF(ISBOLD(C77),0,1) -> 1 | B77: =IF(A77>0,SUM($A$18:A77)," ") -> 56 | C77: Town
A78: =IF(ISBOLD(C78),0,1) -> 1 | B78: =IF(A78>0,SUM($A$18:A78)," ") -> 57 | C78: Line of Business
A79: =IF(ISBOLD(C79),0,1) -> 1 | B79: =IF(A79>0,SUM($A$18:A79)," ") -> 58 | C79: Department
A80: =IF(ISBOLD(C80),0,1) -> 1 | B80: =IF(A80>0,SUM($A$18:A80)," ") -> 59 | C80: Division
A81: =IF(ISBOLD(C81),0,1) -> 1 | B81: =IF(A81>0,SUM($A$18:A81)," ") -> 60 | C81: Cost Center
A82: =IF(ISBOLD(C82),0,1) -> 1 | B82: =IF(A82>0,SUM($A$18:A82)," ") -> 61 | C82: The system identifies a purchase as a fixed asset
A83: =IF(ISBOLD(C83),0,1) -> 1 | B83: =IF(A83>0,SUM($A$18:A83)," ") -> 62 | C83: The system provides an alert if a purchase meets certain criteria (i.e. dollar threshold) to consider use of fixed asset field
A84: =IF(ISBOLD(C84),0,1) -> 1 | B84: =IF(A84>0,SUM($A$18:A84)," ") -> 63 | C84: The system automatically updates the Purchasing and General/Cost Ledger modules | D84: x
A85: =IF(ISBOLD(C85),0,1) -> 1 | B85: =IF(A85>0,SUM($A$18:A85)," ") -> 64 | C85: The system retrieves all documents (receivers, invoices, vouchers and payments) related to a specific contract through an online inquiry
A86: =IF(ISBOLD(C86),0,1) -> 1 | B86: =IF(A86>0,SUM($A$18:A86)," ") -> 65 | C86: The system stores scanned copies of signed contracts and amendments
A87: =IF(ISBOLD(C87),0,1) -> 1 | B87: =IF(A87>0,SUM($A$18:A87)," ") -> 66 | C87: The system cross-references type of goods or service purchased to the type of account being used (inventory account should only pay for inventory items)
A88: =IF(ISBOLD(C88),0,1) -> 1 | B88: =IF(A88>0,SUM($A$18:A88)," ") -> 67 | C88: The system allows payment of an invoice without a purchase order, with appropriate authority | D88: X
A89: =IF(ISBOLD(C89),0,1) -> 0 | B89: =IF(A89>0,SUM($A$18:A89)," ") ->  | C89: Invoice Processing
A90: =IF(ISBOLD(C90),0,1) -> 1 | B90: =IF(A90>0,SUM($A$18:A90)," ") -> 68 | C90: The system can receive invoices electronically from vendors
A91: =IF(ISBOLD(C91),0,1) -> 1 | B91: =IF(A91>0,SUM($A$18:A91)," ") -> 69 | C91: The system transfers vendor information from the government issued purchase order to the vendor payment invoice
A92: =IF(ISBOLD(C92),0,1) -> 1 | B92: =IF(A92>0,SUM($A$18:A92)," ") -> 70 | C92: The system creates a unique document number for an invoice
A93: =IF(ISBOLD(C93),0,1) -> 1 | B93: =IF(A93>0,SUM($A$18:A93)," ") -> 71 | C93: The system adds a comments field in invoices
A94: =IF(ISBOLD(C94),0,1) -> 1 | B94: =IF(A94>0,SUM($A$18:A94)," ") -> 72 | C94: The system enters additional invoice information, such as date invoice received, due date, and other dates and information
A95: =IF(ISBOLD(C95),0,1) -> 1 | B95: =IF(A95>0,SUM($A$18:A95)," ") -> 73 | C95: The system allows users the ability to add additional charges, such as freight
A96: =IF(ISBOLD(C96),0,1) -> 1 | B96: =IF(A96>0,SUM($A$18:A96)," ") -> 74 | C96: The system enters multiple invoices for one purchase order
A97: =IF(ISBOLD(C97),0,1) -> 1 | B97: =IF(A97>0,SUM($A$18:A97)," ") -> 75 | C97: The system enters multiple purchase orders for one invoice
A98: =IF(ISBOLD(C98),0,1) -> 1 | B98: =IF(A98>0,SUM($A$18:A98)," ") -> 76 | C98: The system enters one invoice to multiple contracts
A99: =IF(ISBOLD(C99),0,1) -> 1 | B99: =IF(A99>0,SUM($A$18:A99)," ") -> 77 | C99: The system enters multiple invoices to one contract
A100: =IF(ISBOLD(C100),0,1) -> 1 | B100: =IF(A100>0,SUM($A$18:A100)," ") -> 78 | C100: The system allocates an invoice to multiple cost centers, accounts, funds or projects
A101: =IF(ISBOLD(C101),0,1) -> 1 | B101: =IF(A101>0,SUM($A$18:A101)," ") -> 79 | C101: The system automatically applies discounts based on established criteria
A102: =IF(ISBOLD(C102),0,1) -> 1 | B102: =IF(A102>0,SUM($A$18:A102)," ") -> 80 | C102: The system overrides an automatic payment discount
A103: =IF(ISBOLD(C103),0,1) -> 1 | B103: =IF(A103>0,SUM($A$18:A103)," ") -> 81 | C103: The system receives and processes electronic invoices from vendors
A104: =IF(ISBOLD(C104),0,1) -> 1 | B104: =IF(A104>0,SUM($A$18:A104)," ") -> 82 | C104: The system tracks the status of payments processing for each invoice or contract
A105: =IF(ISBOLD(C105),0,1) -> 1 | B105: =IF(A105>0,SUM($A$18:A105)," ") -> 83 | C105: The system places a voucher/payment on hold and notifies the authorizer
A106: =IF(ISBOLD(C106),0,1) -> 1 | B106: =IF(A106>0,SUM($A$18:A106)," ") -> 84 | C106: The system automatically holds a vendor payment or issues a warning if the vendor has a delinquent receivable account in the system
A107: =IF(ISBOLD(C107),0,1) -> 1 | B107: =IF(A107>0,SUM($A$18:A107)," ") -> 85 | C107: The system converts outstanding credit memo given to the government to accounts receivable record if past an age limit
A108: =IF(ISBOLD(C108),0,1) -> 1 | B108: =IF(A108>0,SUM($A$18:A108)," ") -> 86 | C108: The system updates the general ledger account distribution for the discounts actually taken during check writing
A109: =IF(ISBOLD(C109),0,1) -> 1 | B109: =IF(A109>0,SUM($A$18:A109)," ") -> 87 | C109: The system performs partial or complete liquidation of an encumbrance by payment or completion of order against a vendor invoice (even when the full amount is not being paid)
A110: =IF(ISBOLD(C110),0,1) -> 1 | B110: =IF(A110>0,SUM($A$18:A110)," ") -> 88 | C110: The system allows or restricts charging certain general ledger accounts when payments are made (i.e., revenue accounts)
A111: =IF(ISBOLD(C111),0,1) -> 1 | B111: =IF(A111>0,SUM($A$18:A111)," ") -> 89 | C111: The system allows users to cancel checks and automatically generate general ledger transactions to reverse all accounting distributions associated with that check with the appropriate security
A112: =IF(ISBOLD(C112),0,1) -> 1 | B112: =IF(A112>0,SUM($A$18:A112)," ") -> 90 | C112: The system allows a batch to move forward with items in suspense
A113: =IF(ISBOLD(C113),0,1) -> 1 | B113: =IF(A113>0,SUM($A$18:A113)," ") -> 91 | C113: The system reestablishes, with proper approval, an encumbrance upon cancellation of a check or issuance of a credit memo
A114: =IF(ISBOLD(C114),0,1) -> 1 | B114: =IF(A114>0,SUM($A$18:A114)," ") -> 92 | C114: The system reestablishes, with proper approval, unused contract balances upon cancellation of a check or issuance of a credit memo
A115: =IF(ISBOLD(C115),0,1) -> 1 | B115: =IF(A115>0,SUM($A$18:A115)," ") -> 93 | C115: The system allows the correction of expenditure transactions after check has been generated, if corresponding budget permits
A116: =IF(ISBOLD(C116),0,1) -> 1 | B116: =IF(A116>0,SUM($A$18:A116)," ") -> 94 | C116: The system prepares proper accounting entries to account for accounts payable write off
A117: =IF(ISBOLD(C117),0,1) -> 1 | B117: =IF(A117>0,SUM($A$18:A117)," ") -> 95 | C117: The system lists all accounting entries related to transactions
A118: =IF(ISBOLD(C118),0,1) -> 1 | B118: =IF(A118>0,SUM($A$18:A118)," ") -> 96 | C118: The system voids an invoice
A119: =IF(ISBOLD(C119),0,1) -> 1 | B119: =IF(A119>0,SUM($A$18:A119)," ") -> 97 | C119: User can view the full "remit to" address when entering the invoice information (to confirm address)
A120: =IF(ISBOLD(C120),0,1) -> 1 | B120: =IF(A120>0,SUM($A$18:A120)," ") -> 98 | C120: Upon approval of an invoice, the invoice posts to the vendor record and updates encumbrances in real-time.
A121: =IF(ISBOLD(C121),0,1) -> 1 | B121: =IF(A121>0,SUM($A$18:A121)," ") -> 99 | C121: Invoices pending approval show on a vendor record
A122: =IF(ISBOLD(C122),0,1) -> 1 | B122: =IF(A122>0,SUM($A$18:A122)," ") -> 100 | C122: The system adds an explanation field in the invoice
A123: =IF(ISBOLD(C123),0,1) -> 1 | B123: =IF(A123>0,SUM($A$18:A123)," ") -> 101 | C123: The system prohibits users from editing any paid invoices without security
A124: =IF(ISBOLD(C124),0,1) -> 0 | B124: =IF(A124>0,SUM($A$18:A124)," ") ->  | C124: The system maintains, track and inquire into online payment history including:
A125: =IF(ISBOLD(C125),0,1) -> 1 | B125: =IF(A125>0,SUM($A$18:A125)," ") -> 102 | C125: PO/Voucher number
A126: =IF(ISBOLD(C126),0,1) -> 1 | B126: =IF(A126>0,SUM($A$18:A126)," ") -> 103 | C126: Invoice number
A127: =IF(ISBOLD(C127),0,1) -> 1 | B127: =IF(A127>0,SUM($A$18:A127)," ") -> 104 | C127: Invoice date
A128: =IF(ISBOLD(C128),0,1) -> 1 | B128: =IF(A128>0,SUM($A$18:A128)," ") -> 105 | C128: Invoice amount
A129: =IF(ISBOLD(C129),0,1) -> 1 | B129: =IF(A129>0,SUM($A$18:A129)," ") -> 106 | C129: Invoice date received
A130: =IF(ISBOLD(C130),0,1) -> 1 | B130: =IF(A130>0,SUM($A$18:A130)," ") -> 107 | C130: Date entered
A131: =IF(ISBOLD(C131),0,1) -> 1 | B131: =IF(A131>0,SUM($A$18:A131)," ") -> 108 | C131: Vendor name
A132: =IF(ISBOLD(C132),0,1) -> 1 | B132: =IF(A132>0,SUM($A$18:A132)," ") -> 109 | C132: Vendor ID
A133: =IF(ISBOLD(C133),0,1) -> 1 | B133: =IF(A133>0,SUM($A$18:A133)," ") -> 110 | C133: Contract number
A134: =IF(ISBOLD(C134),0,1) -> 1 | B134: =IF(A134>0,SUM($A$18:A134)," ") -> 111 | C134: Check amount
A135: =IF(ISBOLD(C135),0,1) -> 1 | B135: =IF(A135>0,SUM($A$18:A135)," ") -> 112 | C135: Check request date
A136: =IF(ISBOLD(C136),0,1) -> 1 | B136: =IF(A136>0,SUM($A$18:A136)," ") -> 113 | C136: Check date
A137: =IF(ISBOLD(C137),0,1) -> 1 | B137: =IF(A137>0,SUM($A$18:A137)," ") -> 114 | C137: Check number
A138: =IF(ISBOLD(C138),0,1) -> 1 | B138: =IF(A138>0,SUM($A$18:A138)," ") -> 115 | C138: Reissue check number
A139: =IF(ISBOLD(C139),0,1) -> 1 | B139: =IF(A139>0,SUM($A$18:A139)," ") -> 116 | C139: Accounting distribution coding
A140: =IF(ISBOLD(C140),0,1) -> 1 | B140: =IF(A140>0,SUM($A$18:A140)," ") -> 117 | C140: Last activity date
A141: =IF(ISBOLD(C141),0,1) -> 1 | B141: =IF(A141>0,SUM($A$18:A141)," ") -> 118 | C141: Requisitioner
A142: =IF(ISBOLD(C142),0,1) -> 1 | B142: =IF(A142>0,SUM($A$18:A142)," ") -> 119 | C142: Comments
A143: =IF(ISBOLD(C143),0,1) -> 1 | B143: =IF(A143>0,SUM($A$18:A143)," ") -> 120 | C143: Vendor Tax ID
A144: =IF(ISBOLD(C144),0,1) -> 1 | B144: =IF(A144>0,SUM($A$18:A144)," ") -> 121 | C144: The system prevents payment against duplicate invoices | D144: x
A145: =IF(ISBOLD(C145),0,1) -> 1 | B145: =IF(A145>0,SUM($A$18:A145)," ") -> 122 | C145: The system cross references a purchase order and invoice for the same transaction | D145: x
A146: =IF(ISBOLD(C146),0,1) -> 1 | B146: =IF(A146>0,SUM($A$18:A146)," ") -> 123 | C146: The system automatically matches invoice with purchase order and receiving information
A147: =IF(ISBOLD(C147),0,1) -> 1 | B147: =IF(A147>0,SUM($A$18:A147)," ") -> 124 | C147: The system checks departmental budget availability based on various levels of detail, including budget amounts specified by the department
A148: =IF(ISBOLD(C148),0,1) -> 1 | B148: =IF(A148>0,SUM($A$18:A148)," ") -> 125 | C148: The system allows attachment of the invoice (PDF, Word, etc.) to the vendor record
A149: =IF(ISBOLD(C149),0,1) -> 1 | B149: =IF(A149>0,SUM($A$18:A149)," ") -> 126 | C149: The system allows attachment of the invoice (PDF, Word, etc.) to the purchase order
A150: =IF(ISBOLD(C150),0,1) -> 1 | B150: =IF(A150>0,SUM($A$18:A150)," ") -> 127 | C150: The system allows for entry of invoices for prior year after the year end date has passed (i.e., attributes to the correct fiscal year) | D150: X
A151: =IF(ISBOLD(C151),0,1) -> 0 | B151: =IF(A151>0,SUM($A$18:A151)," ") ->  | C151: Payment and Check Processing
A152: =IF(ISBOLD(C152),0,1) -> 1 | B152: =IF(A152>0,SUM($A$18:A152)," ") -> 128 | C152: The system allows the entry of comments on the remittance advice/check stub
A153: =IF(ISBOLD(C153),0,1) -> 1 | B153: =IF(A153>0,SUM($A$18:A153)," ") -> 129 | C153: The system enters multiple user defined codes which are associated with a message in the description field of the check stub (i.e., mileage, witness fee)
A154: =IF(ISBOLD(C154),0,1) -> 1 | B154: =IF(A154>0,SUM($A$18:A154)," ") -> 130 | C154: The system allows partial payment of an invoice
A155: =IF(ISBOLD(C155),0,1) -> 0 | B155: =IF(A155>0,SUM($A$18:A155)," ") ->  | C155: The system does the following, with the proper security clearance, in the case of discrepancies:
A156: =IF(ISBOLD(C156),0,1) -> 1 | B156: =IF(A156>0,SUM($A$18:A156)," ") -> 131 | C156: Pay the invoice amount
A157: =IF(ISBOLD(C157),0,1) -> 1 | B157: =IF(A157>0,SUM($A$18:A157)," ") -> 132 | C157: Override the invoice amount
A158: =IF(ISBOLD(C158),0,1) -> 1 | B158: =IF(A158>0,SUM($A$18:A158)," ") -> 133 | C158: Identify the invoice as paid in full
A159: =IF(ISBOLD(C159),0,1) -> 1 | B159: =IF(A159>0,SUM($A$18:A159)," ") -> 134 | C159: The system displays remaining balance of the purchase order, invoice and contracts when final payments are being processed online within a predetermined tolerance
A160: =IF(ISBOLD(C160),0,1) -> 1 | B160: =IF(A160>0,SUM($A$18:A160)," ") -> 135 | C160: The system notifies the user prior to payment if a vendor has debit balances (e.g., receivable)
A161: =IF(ISBOLD(C161),0,1) -> 1 | B161: =IF(A161>0,SUM($A$18:A161)," ") -> 136 | C161: The system would allow for override to above requirement
A162: =IF(ISBOLD(C162),0,1) -> 1 | B162: =IF(A162>0,SUM($A$18:A162)," ") -> 137 | C162: The system allocates payments to different dates, accounting periods and fiscal years | D162: x
A163: =IF(ISBOLD(C163),0,1) -> 1 | B163: =IF(A163>0,SUM($A$18:A163)," ") -> 138 | C163: The system automatically ages payables, based on purchase order date, invoice date, purchase date and contract date online or hardcopy
A164: =IF(ISBOLD(C164),0,1) -> 0 | B164: =IF(A164>0,SUM($A$18:A164)," ") ->  | C164: The system schedules payments for approved purchase orders, invoices and contracts based on:
A165: =IF(ISBOLD(C165),0,1) -> 1 | B165: =IF(A165>0,SUM($A$18:A165)," ") -> 139 | C165: Vendor default payment due date
A166: =IF(ISBOLD(C166),0,1) -> 1 | B166: =IF(A166>0,SUM($A$18:A166)," ") -> 140 | C166: User entered payment due date
A167: =IF(ISBOLD(C167),0,1) -> 1 | B167: =IF(A167>0,SUM($A$18:A167)," ") -> 141 | C167: Default payment date entered for all government checks
A168: =IF(ISBOLD(C168),0,1) -> 1 | B168: =IF(A168>0,SUM($A$18:A168)," ") -> 142 | C168: The system automatically pays vendor invoices based on pre-defined contract milestones
A169: =IF(ISBOLD(C169),0,1) -> 1 | B169: =IF(A169>0,SUM($A$18:A169)," ") -> 143 | C169: The system runs invoice financial information, cash requirements, and other criteria prior to check printing
A170: =IF(ISBOLD(C170),0,1) -> 0 | B170: =IF(A170>0,SUM($A$18:A170)," ") ->  | C170: The system accepts and tracks multiple payment types such as:
A171: =IF(ISBOLD(C171),0,1) -> 1 | B171: =IF(A171>0,SUM($A$18:A171)," ") -> 144 | C171: System check | D171: X
A172: =IF(ISBOLD(C172),0,1) -> 1 | B172: =IF(A172>0,SUM($A$18:A172)," ") -> 145 | C172: Manual check | D172: X
A173: =IF(ISBOLD(C173),0,1) -> 1 | B173: =IF(A173>0,SUM($A$18:A173)," ") -> 146 | C173: Adjustments | D173: X
A174: =IF(ISBOLD(C174),0,1) -> 1 | B174: =IF(A174>0,SUM($A$18:A174)," ") -> 147 | C174: Interdepartmental payments (memo entry only) | D174: X
A175: =IF(ISBOLD(C175),0,1) -> 1 | B175: =IF(A175>0,SUM($A$18:A175)," ") -> 148 | C175: Wire transfer (Federal Treasury format) | D175: X
A176: =IF(ISBOLD(C176),0,1) -> 1 | B176: =IF(A176>0,SUM($A$18:A176)," ") -> 149 | C176: Electronic funds transfer (ACH) | D176: X
A177: =IF(ISBOLD(C177),0,1) -> 1 | B177: =IF(A177>0,SUM($A$18:A177)," ") -> 150 | C177: Credit card | D177: X
A178: =IF(ISBOLD(C178),0,1) -> 1 | B178: =IF(A178>0,SUM($A$18:A178)," ") -> 151 | C178: The system provides remittance advice to vendors via e-mail
A179: =IF(ISBOLD(C179),0,1) -> 1 | B179: =IF(A179>0,SUM($A$18:A179)," ") -> 152 | C179: The system maintains a check history file, indicating basic information about checks (e.g., payment date, reference document(s), payee, and amount) and their disposition (e.g., paid, outstanding, stale, and written off) | D179: x
A180: =IF(ISBOLD(C180),0,1) -> 1 | B180: =IF(A180>0,SUM($A$18:A180)," ") -> 153 | C180: The system prints separate checks per invoice
A181: =IF(ISBOLD(C181),0,1) -> 1 | B181: =IF(A181>0,SUM($A$18:A181)," ") -> 154 | C181: The system prints separate checks for the same vendor | D181: x
A182: =IF(ISBOLD(C182),0,1) -> 1 | B182: =IF(A182>0,SUM($A$18:A182)," ") -> 155 | C182: The system combines multiple invoices into one check
A183: =IF(ISBOLD(C183),0,1) -> 1 | B183: =IF(A183>0,SUM($A$18:A183)," ") -> 156 | C183: The system cancels a check that has been written with user defined access and proper level of security
A184: =IF(ISBOLD(C184),0,1) -> 1 | B184: =IF(A184>0,SUM($A$18:A184)," ") -> 157 | C184: The system deducts amount of canceled checks from appropriate check register
A185: =IF(ISBOLD(C185),0,1) -> 1 | B185: =IF(A185>0,SUM($A$18:A185)," ") -> 158 | C185: The system cancels and reissues checks when the payee needs to be changed, with the proper security
A186: =IF(ISBOLD(C186),0,1) -> 1 | B186: =IF(A186>0,SUM($A$18:A186)," ") -> 159 | C186: The system replaces lost checks with reversing and reposting accounting entries, with historical tracking | D186: x
A187: =IF(ISBOLD(C187),0,1) -> 1 | B187: =IF(A187>0,SUM($A$18:A187)," ") -> 160 | C187: The system reissues individual checks that have been canceled or have stop payments issued against them
A188: =IF(ISBOLD(C188),0,1) -> 1 | B188: =IF(A188>0,SUM($A$18:A188)," ") -> 161 | C188: The system archives voided or corrected payments to adjust to year-to-date vendor totals and purchasing information
A189: =IF(ISBOLD(C189),0,1) -> 1 | B189: =IF(A189>0,SUM($A$18:A189)," ") -> 162 | C189: They system allows viewing of voided payment details (amount, date, payee, etc.)
A190: =IF(ISBOLD(C190),0,1) -> 1 | B190: =IF(A190>0,SUM($A$18:A190)," ") -> 163 | C190: The system stores scanned copies
A191: =IF(ISBOLD(C191),0,1) -> 1 | B191: =IF(A191>0,SUM($A$18:A191)," ") -> 164 | C191: The system notes reason for void on check record
A192: =IF(ISBOLD(C192),0,1) -> 1 | B192: =IF(A192>0,SUM($A$18:A192)," ") -> 165 | C192: The system inputs data file containing cleared checks from banks | D192: x
A193: =IF(ISBOLD(C193),0,1) -> 1 | B193: =IF(A193>0,SUM($A$18:A193)," ") -> 166 | C193: The system sets up default bank accounts for each type of transaction and allow user to override this at time of posting with security
A194: =IF(ISBOLD(C194),0,1) -> 1 | B194: =IF(A194>0,SUM($A$18:A194)," ") -> 167 | C194: The system corrects online all rejected check reconciliation transactions
A195: =IF(ISBOLD(C195),0,1) -> 1 | B195: =IF(A195>0,SUM($A$18:A195)," ") -> 168 | C195: The system flags checks as being stale based on user defined check date range
A196: =IF(ISBOLD(C196),0,1) -> 1 | B196: =IF(A196>0,SUM($A$18:A196)," ") -> 169 | C196: The system allows funds from stale checks to be automatically transferred to a defined account
A197: =IF(ISBOLD(C197),0,1) -> 1 | B197: =IF(A197>0,SUM($A$18:A197)," ") -> 170 | C197: The system enters miscellaneous journal entries to process corrections and adjustments, such as writing off old outstanding checks
A198: =IF(ISBOLD(C198),0,1) -> 1 | B198: =IF(A198>0,SUM($A$18:A198)," ") -> 171 | C198: The system establishes rules in the three-way matching process. If the match passes these rules, ability to automatically generate a voucher. If match fails these rules, ability to reject voucher creation
A199: =IF(ISBOLD(C199),0,1) -> 1 | B199: =IF(A199>0,SUM($A$18:A199)," ") -> 172 | C199: The system facilitates auditing of quantity, price, and other information
A200: =IF(ISBOLD(C200),0,1) -> 1 | B200: =IF(A200>0,SUM($A$18:A200)," ") -> 173 | C200: The system sets up tolerances (e.g. amount or quantity tolerances) for 3 way matching
A201: =IF(ISBOLD(C201),0,1) -> 1 | B201: =IF(A201>0,SUM($A$18:A201)," ") -> 174 | C201: The system processes pre-defined payment categories without a match process
A202: =IF(ISBOLD(C202),0,1) -> 1 | B202: =IF(A202>0,SUM($A$18:A202)," ") -> 175 | C202: The system lists exceptions if the entered invoice amount differs from associated purchase order amount
A203: =IF(ISBOLD(C203),0,1) -> 1 | B203: =IF(A203>0,SUM($A$18:A203)," ") -> 176 | C203: The system sets up and tracks retainage for contracts and projects, by amount or percentage
A204: =IF(ISBOLD(C204),0,1) -> 1 | B204: =IF(A204>0,SUM($A$18:A204)," ") -> 177 | C204: The system receives budget variance messages on accounts where additional funds are required to make payment to invoice and prohibit completion of the transaction
A205: =IF(ISBOLD(C205),0,1) -> 1 | B205: =IF(A205>0,SUM($A$18:A205)," ") -> 178 | C205: The system overrides above requirement with the appropriate authority
A206: =IF(ISBOLD(C206),0,1) -> 1 | B206: =IF(A206>0,SUM($A$18:A206)," ") -> 179 | C206: The system tracks multiple payments by release against a blanket purchase order or contract
A207: =IF(ISBOLD(C207),0,1) -> 1 | B207: =IF(A207>0,SUM($A$18:A207)," ") -> 180 | C207: The system tracks deposits and their offsetting payments
A208: =IF(ISBOLD(C208),0,1) -> 1 | B208: =IF(A208>0,SUM($A$18:A208)," ") -> 181 | C208: The system compares contract payment amounts to approved contract value to assure proper payment levels
A209: =IF(ISBOLD(C209),0,1) -> 1 | B209: =IF(A209>0,SUM($A$18:A209)," ") -> 182 | C209: The system accommodates petty cash transactions
... 207 more rows

Sheet Purchasing
C1: Requirements Survey
C2: Purchasing and Contract Management | E2: Requirements Response Rules:
C3: The following functional, technical, workflow and reporting needs provide the minimum requirements of the Town of Colma. Please review the items carefully and respond in accordance with the requirements response rules provided. Any partial response will be deemed as an invalid response. MANDATORY: EVERY REQUIREMENT (Req#) MUST HAVE A RESPONSE TO BE CONSIDERED COMPLETE. | E3: Column #1. Mandatory: Proposers are required to input one response per requirement using the drop down list provided. Response Types: F=Fully provided out of the box, or fully provided out of the box through basic configuration Mod= Provided through a technical modification of the software (i.e. a customization) TP = Provided through a proposed third party application or capability CR= Custom report requiring development SR = Standard report provided through a built in or proposed reporting tool NA = Not Available Column #2. Proposers are requested to itemize estimated costs for all modification requirements. Column #3. Proposers are requested to list the third party product name for all Third Party Product requirements. Column #4. Mandatory: Proposers are required to mark yes or no to whether the implementation costs of this functionality is included in their cost proposal. Column #5. Mandatory: Proposers are required to mark yes or no to whether the training costs of this functionality is included in their cost proposal. Column #6. If a subcontractor is implementing or providing training for this functionality, please indicate the name of the subcontracting firm responsible for this functionality. Column #7. Mandatory: Proposers are required to list the version number for all functionality proposed to the Town.
C13: PROCESS | D13: High Priority | E13: 1.Response | F13: 2.Costs for Mod response | G13: 3.Third Party Application for TP response | H13: 4. Included in Implementation Costs | I13: 5. Included in training costs | J13: 6. Subcontractor | K13: 7. Version Number | L13: Comments/Narrative
B14: Req#
H15: Yes/No | I15: Yes/No
C16: Purchasing
C17: Procurement - Commodities Set Up
A18: =IF(ISBOLD(C18),0,1) -> 0 | B18: =IF(A18>0,SUM($A$18:A18)," ") ->  | C18: The system sets up and tracks purchasing transactions, documents and data, including solicitations such as:
A19: =IF(ISBOLD(C19),0,1) -> 1 | B19: =IF(A19>0,SUM($A$18:A19)," ") -> 1 | C19: Requisitions
A20: =IF(ISBOLD(C20),0,1) -> 1 | B20: =IF(A20>0,SUM($A$18:A20)," ") -> 2 | C20: Request for Proposals
A21: =IF(ISBOLD(C21),0,1) -> 1 | B21: =IF(A21>0,SUM($A$18:A21)," ") -> 3 | C21: Request for Qualifications
A22: =IF(ISBOLD(C22),0,1) -> 1 | B22: =IF(A22>0,SUM($A$18:A22)," ") -> 4 | C22: Request for Quotes
A23: =IF(ISBOLD(C23),0,1) -> 1 | B23: =IF(A23>0,SUM($A$18:A23)," ") -> 5 | C23: Request for Bids
A24: =IF(ISBOLD(C24),0,1) -> 1 | B24: =IF(A24>0,SUM($A$18:A24)," ") -> 6 | C24: Request for Information
A25: =IF(ISBOLD(C25),0,1) -> 0 | B25: =IF(A25>0,SUM($A$18:A25)," ") ->  | C25: Vendor bid list creation and maintenance and ability to track the following:
A26: =IF(ISBOLD(C26),0,1) -> 1 | B26: =IF(A26>0,SUM($A$18:A26)," ") -> 7 | C26: Organization name & address
A27: =IF(ISBOLD(C27),0,1) -> 1 | B27: =IF(A27>0,SUM($A$18:A27)," ") -> 8 | C27: Several user defined fields (please note any limitations on the number or type of user defined fields)
A28: =IF(ISBOLD(C28),0,1) -> 1 | B28: =IF(A28>0,SUM($A$18:A28)," ") -> 9 | C28: NIGP commodity codes. Notate any limitations in the comments field.
A29: =IF(ISBOLD(C29),0,1) -> 1 | B29: =IF(A29>0,SUM($A$18:A29)," ") -> 10 | C29: Last bid
A30: =IF(ISBOLD(C30),0,1) -> 1 | B30: =IF(A30>0,SUM($A$18:A30)," ") -> 11 | C30: Last award
A31: =IF(ISBOLD(C31),0,1) -> 1 | B31: =IF(A31>0,SUM($A$18:A31)," ") -> 12 | C31: Email address
A32: =IF(ISBOLD(C32),0,1) -> 1 | B32: =IF(A32>0,SUM($A$18:A32)," ") -> 13 | C32: Phone, Fax, and Mobile Numbers
A33: =IF(ISBOLD(C33),0,1) -> 1 | B33: =IF(A33>0,SUM($A$18:A33)," ") -> 14 | C33: Contact Information
A34: =IF(ISBOLD(C34),0,1) -> 1 | B34: =IF(A34>0,SUM($A$18:A34)," ") -> 15 | C34: Electronic posting and distribution (electronically by system)
A35: =IF(ISBOLD(C35),0,1) -> 1 | B35: =IF(A35>0,SUM($A$18:A35)," ") -> 16 | C35: Electronic bid receipt, including alternate bid
A36: =IF(ISBOLD(C36),0,1) -> 1 | B36: =IF(A36>0,SUM($A$18:A36)," ") -> 17 | C36: Response tabulation (fed by electronic receipt)
A37: =IF(ISBOLD(C37),0,1) -> 1 | B37: =IF(A37>0,SUM($A$18:A37)," ") -> 18 | C37: Award notification
A38: =IF(ISBOLD(C38),0,1) -> 1 | B38: =IF(A38>0,SUM($A$18:A38)," ") -> 19 | C38: PO/Contract
A39: =IF(ISBOLD(C39),0,1) -> 1 | B39: =IF(A39>0,SUM($A$18:A39)," ") -> 20 | C39: Requisition to solicitation to PO
A40: =IF(ISBOLD(C40),0,1) -> 1 | B40: =IF(A40>0,SUM($A$18:A40)," ") -> 21 | C40: Requisition to contract or PO
A41: =IF(ISBOLD(C41),0,1) -> 1 | B41: =IF(A41>0,SUM($A$18:A41)," ") -> 22 | C41: Solicitation to contract or PO (no requisition --optional; subject to proper authorizations)
A42: =IF(ISBOLD(C42),0,1) -> 1 | B42: =IF(A42>0,SUM($A$18:A42)," ") -> 23 | C42: PO to Contract (release against contract)
A43: =IF(ISBOLD(C43),0,1) -> 1 | B43: =IF(A43>0,SUM($A$18:A43)," ") -> 24 | C43: PO or Contract (without requisition or solicitation)
A44: =IF(ISBOLD(C44),0,1) -> 1 | B44: =IF(A44>0,SUM($A$18:A44)," ") -> 25 | C44: Goods receipt, shipment notification, returns, quarantines, and shipment cancellations
A45: =IF(ISBOLD(C45),0,1) -> 1 | B45: =IF(A45>0,SUM($A$18:A45)," ") -> 26 | C45: Invoice receipt
A46: =IF(ISBOLD(C46),0,1) -> 1 | B46: =IF(A46>0,SUM($A$18:A46)," ") -> 27 | C46: Matching (3-way: PO, Invoice and Goods/Services Receipt)
A47: =IF(ISBOLD(C47),0,1) -> 1 | B47: =IF(A47>0,SUM($A$18:A47)," ") -> 28 | C47: The system can provide pre-populated NIGP codes
A48: =IF(ISBOLD(C48),0,1) -> 1 | B48: =IF(A48>0,SUM($A$18:A48)," ") -> 29 | C48: The system defaults vendor information from the vendor master file when choosing a vendor on purchasing transactions and documents
A49: =IF(ISBOLD(C49),0,1) -> 1 | B49: =IF(A49>0,SUM($A$18:A49)," ") -> 30 | C49: The system designates comments as private (unable to be seen by the vendor)
A50: =IF(ISBOLD(C50),0,1) -> 1 | B50: =IF(A50>0,SUM($A$18:A50)," ") -> 31 | C50: The system attaches and retrieves multiple files to all purchasing documents and carries forward files to subsequent purchasing documents, including scanned images, PDF, Word and Excel, pictures and other documents
A51: =IF(ISBOLD(C51),0,1) -> 0 | B51: =IF(A51>0,SUM($A$18:A51)," ") ->  | C51: The system routes the following purchasing documents through transactions with multiple workflow and approvals:
A52: =IF(ISBOLD(C52),0,1) -> 1 | B52: =IF(A52>0,SUM($A$18:A52)," ") -> 32 | C52: Requisitions | D52: X
A53: =IF(ISBOLD(C53),0,1) -> 1 | B53: =IF(A53>0,SUM($A$18:A53)," ") -> 33 | C53: Solicitations and addendums
A54: =IF(ISBOLD(C54),0,1) -> 1 | B54: =IF(A54>0,SUM($A$18:A54)," ") -> 34 | C54: Solicitation responses
A55: =IF(ISBOLD(C55),0,1) -> 1 | B55: =IF(A55>0,SUM($A$18:A55)," ") -> 35 | C55: Purchase Orders/PO change notices
A56: =IF(ISBOLD(C56),0,1) -> 1 | B56: =IF(A56>0,SUM($A$18:A56)," ") -> 36 | C56: Contracts/Work Orders
A57: =IF(ISBOLD(C57),0,1) -> 1 | B57: =IF(A57>0,SUM($A$18:A57)," ") -> 37 | C57: Receiving Documents
A58: =IF(ISBOLD(C58),0,1) -> 1 | B58: =IF(A58>0,SUM($A$18:A58)," ") -> 38 | C58: Invoices
A59: =IF(ISBOLD(C59),0,1) -> 1 | B59: =IF(A59>0,SUM($A$18:A59)," ") -> 39 | C59: Credit Memos
A60: =IF(ISBOLD(C60),0,1) -> 1 | B60: =IF(A60>0,SUM($A$18:A60)," ") -> 40 | C60: Voucher Requests
A61: =IF(ISBOLD(C61),0,1) -> 1 | B61: =IF(A61>0,SUM($A$18:A61)," ") -> 41 | C61: Performance/Surety Bonds/Letters of Credit
A62: =IF(ISBOLD(C62),0,1) -> 1 | B62: =IF(A62>0,SUM($A$18:A62)," ") -> 42 | C62: Insurance certificates
A63: =IF(ISBOLD(C63),0,1) -> 1 | B63: =IF(A63>0,SUM($A$18:A63)," ") -> 43 | C63: Other documents
A64: =IF(ISBOLD(C64),0,1) -> 1 | B64: =IF(A64>0,SUM($A$18:A64)," ") -> 44 | C64: The system establishes repetitive transactions and transaction templates (e.g. requisitions, solicitations, purchase orders)
A65: =IF(ISBOLD(C65),0,1) -> 1 | B65: =IF(A65>0,SUM($A$18:A65)," ") -> 45 | C65: The system tracks vendor's insurance expiration
A66: =IF(ISBOLD(C66),0,1) -> 1 | B66: =IF(A66>0,SUM($A$18:A66)," ") -> 46 | C66: The system saves and flags (on hold) incomplete and/or complete purchasing documents (requisitions, solicitation, bid responses, PO, receipt, and other)
A67: =IF(ISBOLD(C67),0,1) -> 0 | B67: =IF(A67>0,SUM($A$18:A67)," ") ->  | C67: The system allows workflow based upon data elements and rules, including:
A68: =IF(ISBOLD(C68),0,1) -> 1 | B68: =IF(A68>0,SUM($A$18:A68)," ") -> 47 | C68: Dollar thresholds | D68: X
A69: =IF(ISBOLD(C69),0,1) -> 1 | B69: =IF(A69>0,SUM($A$18:A69)," ") -> 48 | C69: Transaction types
A70: =IF(ISBOLD(C70),0,1) -> 1 | B70: =IF(A70>0,SUM($A$18:A70)," ") -> 49 | C70: Commodity Code
A71: 1 | B71: =IF(A71>0,SUM($A$18:A71)," ") -> 50 | C71: Department | D71: X
A72: =IF(ISBOLD(C72),0,1) -> 1 | B72: =IF(A72>0,SUM($A$18:A72)," ") -> 51 | C72: Cost Center
A73: =IF(ISBOLD(C73),0,1) -> 1 | B73: =IF(A73>0,SUM($A$18:A73)," ") -> 52 | C73: Object of Expense | D73: X
A74: =IF(ISBOLD(C74),0,1) -> 1 | B74: =IF(A74>0,SUM($A$18:A74)," ") -> 53 | C74: Fund
A75: =IF(ISBOLD(C75),0,1) -> 1 | B75: =IF(A75>0,SUM($A$18:A75)," ") -> 54 | C75: Project Code
A76: =IF(ISBOLD(C76),0,1) -> 1 | B76: =IF(A76>0,SUM($A$18:A76)," ") -> 55 | C76: W9 received
A77: =IF(ISBOLD(C77),0,1) -> 1 | B77: =IF(A77>0,SUM($A$18:A77)," ") -> 56 | C77: Grants
A78: 1 | B78: =IF(A78>0,SUM($A$18:A78)," ") -> 57 | C78: Other user defined
A79: =IF(ISBOLD(C79),0,1) -> 0 | B79: =IF(A79>0,SUM($A$18:A79)," ") ->  | C79: The system sets up approval paths based upon the approval required, including:
A80: =IF(ISBOLD(C80),0,1) -> 1 | B80: =IF(A80>0,SUM($A$18:A80)," ") -> 58 | C80: Flexibility to configure and change
A81: =IF(ISBOLD(C81),0,1) -> 1 | B81: =IF(A81>0,SUM($A$18:A81)," ") -> 59 | C81: Obtain additional approvals when dollar limitations have been exceeded
A82: =IF(ISBOLD(C82),0,1) -> 1 | B82: =IF(A82>0,SUM($A$18:A82)," ") -> 60 | C82: Technology purchases
A83: =IF(ISBOLD(C83),0,1) -> 1 | B83: =IF(A83>0,SUM($A$18:A83)," ") -> 61 | C83: Sole source purchases
A84: =IF(ISBOLD(C84),0,1) -> 1 | B84: =IF(A84>0,SUM($A$18:A84)," ") -> 62 | C84: Multi-year purchases
A85: =IF(ISBOLD(C85),0,1) -> 1 | B85: =IF(A85>0,SUM($A$18:A85)," ") -> 63 | C85: Amendments to and withdrawals of bids
A86: =IF(ISBOLD(C86),0,1) -> 1 | B86: =IF(A86>0,SUM($A$18:A86)," ") -> 64 | C86: Construction purchases and contracts
A87: =IF(ISBOLD(C87),0,1) -> 1 | B87: =IF(A87>0,SUM($A$18:A87)," ") -> 65 | C87: Grants
A88: =IF(ISBOLD(C88),0,1) -> 1 | B88: =IF(A88>0,SUM($A$18:A88)," ") -> 66 | C88: The system maintains a list of all bidders who respond to bid solicitations
A89: =IF(ISBOLD(C89),0,1) -> 1 | B89: =IF(A89>0,SUM($A$18:A89)," ") -> 67 | C89: The system automatically conducts bid tabulations in the system
A90: =IF(ISBOLD(C90),0,1) -> 1 | B90: =IF(A90>0,SUM($A$18:A90)," ") -> 68 | C90: The system electronically attaches files (i.e.: xls, doc, jpg, tif, etc.) in the bidding process
A91: =IF(ISBOLD(C91),0,1) -> 1 | B91: =IF(A91>0,SUM($A$18:A91)," ") -> 69 | C91: The system maintains a list of all details related to the award (award date, award vendor, amount, other details)
A92: =IF(ISBOLD(C92),0,1) -> 1 | B92: =IF(A92>0,SUM($A$18:A92)," ") -> 70 | C92: The system calculates recognition of vendor credits against encumbrance related to a PO
A93: =IF(ISBOLD(C93),0,1) -> 1 | B93: =IF(A93>0,SUM($A$18:A93)," ") -> 71 | C93: The system accommodates a decentralized purchasing process | D93: X
A94: =IF(ISBOLD(C94),0,1) -> 1 | B94: =IF(A94>0,SUM($A$18:A94)," ") -> 72 | C94: The system provides alert to prepare a change order when an invoice is greater than the purchase amount on record
A95: =IF(ISBOLD(C95),0,1) -> 1 | B95: =IF(A95>0,SUM($A$18:A95)," ") -> 73 | C95: The system bars vendors from contracting with the government
A96: =IF(ISBOLD(C96),0,1) -> 0 | B96: =IF(A96>0,SUM($A$18:A96)," ") ->  | C96: Vendor Self Service
A97: 1 | B97: =IF(A97>0,SUM($A$18:A97)," ") -> 74 | C97: The system provides vendor self service website to provide ease of doing business with the government (vendor self service should allow lookup of open purchases and invoice information)
A98: =IF(ISBOLD(C98),0,1) -> 0 | B98: =IF(A98>0,SUM($A$18:A98)," ") ->  | C98: The system accommodates vendor access and self service portal and the ability to:
A99: =IF(ISBOLD(C99),0,1) -> 1 | B99: =IF(A99>0,SUM($A$18:A99)," ") -> 75 | C99: Register (with required fields)
A100: =IF(ISBOLD(C100),0,1) -> 1 | B100: =IF(A100>0,SUM($A$18:A100)," ") -> 76 | C100: Enter vendor type (type of services provided)
A101: =IF(ISBOLD(C101),0,1) -> 1 | B101: =IF(A101>0,SUM($A$18:A101)," ") -> 77 | C101: Vendor registrations or change in information goes through workflow approval (example: address, contact, etc.)
A102: =IF(ISBOLD(C102),0,1) -> 1 | B102: =IF(A102>0,SUM($A$18:A102)," ") -> 78 | C102: Select commodity codes of items supplied (from pre-loaded NIGP codes)
A103: =IF(ISBOLD(C103),0,1) -> 1 | B103: =IF(A103>0,SUM($A$18:A103)," ") -> 79 | C103: The system allows vendors to download registration forms via self service
A104: =IF(ISBOLD(C104),0,1) -> 1 | B104: =IF(A104>0,SUM($A$18:A104)," ") -> 80 | C104: The system allows vendors to view registration instructions and view, search and select from a commodity listing
A105: =IF(ISBOLD(C105),0,1) -> 1 | B105: =IF(A105>0,SUM($A$18:A105)," ") -> 81 | C105: The system alerts vendors already registered (e.g. search by TIN, SSN, address, and other fields)
A106: =IF(ISBOLD(C106),0,1) -> 1 | B106: =IF(A106>0,SUM($A$18:A106)," ") -> 82 | C106: The system sends registration confirmation email or letter to vendors, with user defined criteria, such as vendor information, commodity codes and other data
A107: =IF(ISBOLD(C107),0,1) -> 1 | B107: =IF(A107>0,SUM($A$18:A107)," ") -> 83 | C107: The system allows vendors to access invoice information on web via self-service
A108: =IF(ISBOLD(C108),0,1) -> 1 | B108: =IF(A108>0,SUM($A$18:A108)," ") -> 84 | C108: The system inactivates self-registering vendors without activity for a user-defined period of time from vendor file
A109: =IF(ISBOLD(C109),0,1) -> 1 | B109: =IF(A109>0,SUM($A$18:A109)," ") -> 85 | C109: The system allows self-registering vendors to be notified when they have a required action that is initiated from a user workflow
A110: =IF(ISBOLD(C110),0,1) -> 0 | B110: =IF(A110>0,SUM($A$18:A110)," ") ->  | C110: Vendor Record
A111: =IF(ISBOLD(C111),0,1) -> 1 | B111: =IF(A111>0,SUM($A$18:A111)," ") -> 86 | C111: The system attaches a completed W-9 record to the vendor file
A112: =IF(ISBOLD(C112),0,1) -> 1 | B112: =IF(A112>0,SUM($A$18:A112)," ") -> 87 | C112: The system flags vendors without a completed W-9
A113: s | B113: =IF(A113>0,SUM($A$18:A113)," ") -> 87 | C113: The system flags vendors as sole source providers
A114: =IF(ISBOLD(C114),0,1) -> 1 | B114: =IF(A114>0,SUM($A$18:A114)," ") -> 88 | C114: The system sets up rules for payment processing and scheduling of payments
A115: =IF(ISBOLD(C115),0,1) -> 1 | B115: =IF(A115>0,SUM($A$18:A115)," ") -> 89 | C115: The system enters multiple addresses (remit to, billing, etc.) in the vendor file | D115: X
A116: =IF(ISBOLD(C116),0,1) -> 1 | B116: =IF(A116>0,SUM($A$18:A116)," ") -> 90 | C116: The system provides vendor self service for 1099 transactions, accessing and printing 1099 documents
A117: =IF(ISBOLD(C117),0,1) -> 1 | B117: =IF(A117>0,SUM($A$18:A117)," ") -> 91 | C117: The system classifies vendors by user-defined categories
A118: =IF(ISBOLD(C118),0,1) -> 1 | B118: =IF(A118>0,SUM($A$18:A118)," ") -> 92 | C118: The system supports parent/child relationships for vendor records
A119: =IF(ISBOLD(C119),0,1) -> 1 | B119: =IF(A119>0,SUM($A$18:A119)," ") -> 93 | C119: The system flags bid projects by vendor for required waivers and certified payroll to make payment
A120: =IF(ISBOLD(C120),0,1) -> 0 | B120: =IF(A120>0,SUM($A$18:A120)," ") ->  | C120: The system accommodates searches by:
A121: =IF(ISBOLD(C121),0,1) -> 1 | B121: =IF(A121>0,SUM($A$18:A121)," ") -> 94 | C121: Vendor ID | D121: X
A122: =IF(ISBOLD(C122),0,1) -> 1 | B122: =IF(A122>0,SUM($A$18:A122)," ") -> 95 | C122: Vendor Name | D122: X
A123: =IF(ISBOLD(C123),0,1) -> 1 | B123: =IF(A123>0,SUM($A$18:A123)," ") -> 96 | C123: Vendor Address
A124: =IF(ISBOLD(C124),0,1) -> 1 | B124: =IF(A124>0,SUM($A$18:A124)," ") -> 97 | C124: Dollar Amount
A125: =IF(ISBOLD(C125),0,1) -> 1 | B125: =IF(A125>0,SUM($A$18:A125)," ") -> 98 | C125: Invoice number | D125: X
A126: =IF(ISBOLD(C126),0,1) -> 1 | B126: =IF(A126>0,SUM($A$18:A126)," ") -> 99 | C126: Tax ID #
A127: =IF(ISBOLD(C127),0,1) -> 1 | B127: =IF(A127>0,SUM($A$18:A127)," ") -> 100 | C127: Phone Number
A128: =IF(ISBOLD(C128),0,1) -> 1 | B128: =IF(A128>0,SUM($A$18:A128)," ") -> 101 | C128: Project Number
A129: =IF(ISBOLD(C129),0,1) -> 1 | B129: =IF(A129>0,SUM($A$18:A129)," ") -> 102 | C129: PO Number | D129: X
A130: =IF(ISBOLD(C130),0,1) -> 1 | B130: =IF(A130>0,SUM($A$18:A130)," ") -> 103 | C130: Work Order Number
A131: 1 | B131: =IF(A131>0,SUM($A$18:A131)," ") -> 104 | C131: The system accommodates 'fuzzy searches' | D131: x
A132: =IF(ISBOLD(C132),0,1) -> 1 | B132: =IF(A132>0,SUM($A$18:A132)," ") -> 105 | C132: The system accommodates field for "country" (e.g., Canadian vendors)
A133: =IF(ISBOLD(C133),0,1) -> 1 | B133: =IF(A133>0,SUM($A$18:A133)," ") -> 106 | C133: The system accommodates field for foreign postal codes
A134: =IF(ISBOLD(C134),0,1) -> 1 | B134: =IF(A134>0,SUM($A$18:A134)," ") -> 107 | C134: The system accommodates US Zip plus 4
A135: =IF(ISBOLD(C135),0,1) -> 1 | B135: =IF(A135>0,SUM($A$18:A135)," ") -> 108 | C135: The system accommodates numeric vendor numbers
A136: =IF(ISBOLD(C136),0,1) -> 1 | B136: =IF(A136>0,SUM($A$18:A136)," ") -> 109 | C136: The system accommodates alphanumeric vendor numbers
A137: =IF(ISBOLD(C137),0,1) -> 1 | B137: =IF(A137>0,SUM($A$18:A137)," ") -> 110 | C137: The system flags vendor record as “one-time” vendor
A138: =IF(ISBOLD(C138),0,1) -> 1 | B138: =IF(A138>0,SUM($A$18:A138)," ") -> 111 | C138: The system requires a reason code when a vendor is inactivated
A139: =IF(ISBOLD(C139),0,1) -> 0 | B139: =IF(A139>0,SUM($A$18:A139)," ") ->  | C139: The system rejects and generate alerts when the following is entered:
A140: =IF(ISBOLD(C140),0,1) -> 1 | B140: =IF(A140>0,SUM($A$18:A140)," ") -> 112 | C140: Duplicate names
A141: =IF(ISBOLD(C141),0,1) -> 1 | B141: =IF(A141>0,SUM($A$18:A141)," ") -> 113 | C141: Duplicate tax IDs (with override capabilities with reason)
A142: =IF(ISBOLD(C142),0,1) -> 1 | B142: =IF(A142>0,SUM($A$18:A142)," ") -> 114 | C142: Duplicate addresses
A143: =IF(ISBOLD(C143),0,1) -> 1 | B143: =IF(A143>0,SUM($A$18:A143)," ") -> 115 | C143: Duplicate invoices (with override capabilities with reason)
A144: =IF(ISBOLD(C144),0,1) -> 1 | B144: =IF(A144>0,SUM($A$18:A144)," ") -> 116 | C144: Other user-defined criteria
A145: 1 | B145: =IF(A145>0,SUM($A$18:A145)," ") -> 117 | C145: The system merges vendor records if a duplication is determined | D145: X
A146: =IF(ISBOLD(C146),0,1) -> 1 | B146: =IF(A146>0,SUM($A$18:A146)," ") -> 118 | C146: The system overrides the rejection with appropriate security
A147: =IF(ISBOLD(C147),0,1) -> 1 | B147: =IF(A147>0,SUM($A$18:A147)," ") -> 119 | C147: The system flags vendors that are 1099 eligible | D147: X
A148: =IF(ISBOLD(C148),0,1) -> 1 | B148: =IF(A148>0,SUM($A$18:A148)," ") -> 120 | C148: The system suspends payment until all 1099 information is available | D148: x
A149: =IF(ISBOLD(C149),0,1) -> 1 | B149: =IF(A149>0,SUM($A$18:A149)," ") -> 121 | C149: The system allows for an override of the suspension listed, with appropriate security
A150: =IF(ISBOLD(C150),0,1) -> 1 | B150: =IF(A150>0,SUM($A$18:A150)," ") -> 122 | C150: The system supports unlimited number of codes for vendor commodities
A151: =IF(ISBOLD(C151),0,1) -> 1 | B151: =IF(A151>0,SUM($A$18:A151)," ") -> 123 | C151: The system updates address data through the internet vendor self-service with proper security
A152: =IF(ISBOLD(C152),0,1) -> 1 | B152: =IF(A152>0,SUM($A$18:A152)," ") -> 124 | C152: The system allows a vendor to record changes via the internet and are routed through internal workflow approvals
A153: =IF(ISBOLD(C153),0,1) -> 1 | B153: =IF(A153>0,SUM($A$18:A153)," ") -> 125 | C153: The system tracks vendor insurance information and insurance certificate
A154: =IF(ISBOLD(C154),0,1) -> 1 | B154: =IF(A154>0,SUM($A$18:A154)," ") -> 126 | C154: The system can provide a stop or alert at point of payment if vendor requires specific format (i.e. credit card only)
A155: =IF(ISBOLD(C155),0,1) -> 0 | B155: =IF(A155>0,SUM($A$18:A155)," ") ->  | C155: The system sets up and tracks the following vendor information:
A156: =IF(ISBOLD(C156),0,1) -> 1 | B156: =IF(A156>0,SUM($A$18:A156)," ") -> 127 | C156: Unique vendor number
A157: =IF(ISBOLD(C157),0,1) -> 1 | B157: =IF(A157>0,SUM($A$18:A157)," ") -> 128 | C157: Required payment form (i.e. vendor payment via credit card only)
A158: =IF(ISBOLD(C158),0,1) -> 1 | B158: =IF(A158>0,SUM($A$18:A158)," ") -> 129 | C158: Prior vendor number
A159: =IF(ISBOLD(C159),0,1) -> 1 | B159: =IF(A159>0,SUM($A$18:A159)," ") -> 130 | C159: Vendor name
A160: =IF(ISBOLD(C160),0,1) -> 1 | B160: =IF(A160>0,SUM($A$18:A160)," ") -> 131 | C160: Vendor status (active, inactive, on hold, debarred, and other statuses)
A161: 1 | B161: =IF(A161>0,SUM($A$18:A161)," ") -> 132 | C161: DBA name
A162: 1 | B162: =IF(A162>0,SUM($A$18:A162)," ") -> 133 | C162: Alias name
A163: =IF(ISBOLD(C163),0,1) -> 1 | B163: =IF(A163>0,SUM($A$18:A163)," ") -> 134 | C163: Date debarred
A164: =IF(ISBOLD(C164),0,1) -> 1 | B164: =IF(A164>0,SUM($A$18:A164)," ") -> 135 | C164: Date debarred vendor eligible for reinstatement
A165: =IF(ISBOLD(C165),0,1) -> 1 | B165: =IF(A165>0,SUM($A$18:A165)," ") -> 136 | C165: Debarred reason
A166: =IF(ISBOLD(C166),0,1) -> 1 | B166: =IF(A166>0,SUM($A$18:A166)," ") -> 137 | C166: Change orders
A167: =IF(ISBOLD(C167),0,1) -> 1 | B167: =IF(A167>0,SUM($A$18:A167)," ") -> 138 | C167: Registration valid date on
A168: =IF(ISBOLD(C168),0,1) -> 1 | B168: =IF(A168>0,SUM($A$18:A168)," ") -> 139 | C168: Registration valid date off
A169: =IF(ISBOLD(C169),0,1) -> 1 | B169: =IF(A169>0,SUM($A$18:A169)," ") -> 140 | C169: Registration reinstatement date
A170: =IF(ISBOLD(C170),0,1) -> 1 | B170: =IF(A170>0,SUM($A$18:A170)," ") -> 141 | C170: Federal tax ID number
A171: =IF(ISBOLD(C171),0,1) -> 1 | B171: =IF(A171>0,SUM($A$18:A171)," ") -> 142 | C171: Multiple contact names
A172: =IF(ISBOLD(C172),0,1) -> 1 | B172: =IF(A172>0,SUM($A$18:A172)," ") -> 143 | C172: Multiple contact titles
A173: =IF(ISBOLD(C173),0,1) -> 1 | B173: =IF(A173>0,SUM($A$18:A173)," ") -> 144 | C173: Multiple contact email addresses
A174: =IF(ISBOLD(C174),0,1) -> 1 | B174: =IF(A174>0,SUM($A$18:A174)," ") -> 145 | C174: Multiple remittance addresses
A175: =IF(ISBOLD(C175),0,1) -> 1 | B175: =IF(A175>0,SUM($A$18:A175)," ") -> 146 | C175: Multiple contact phone numbers (office, cell, fax)
A176: =IF(ISBOLD(C176),0,1) -> 1 | B176: =IF(A176>0,SUM($A$18:A176)," ") -> 147 | C176: Free-form text fields/comments
A177: =IF(ISBOLD(C177),0,1) -> 1 | B177: =IF(A177>0,SUM($A$18:A177)," ") -> 148 | C177: Address type (e.g., ordering, remittance)
A178: =IF(ISBOLD(C178),0,1) -> 1 | B178: =IF(A178>0,SUM($A$18:A178)," ") -> 149 | C178: Physical address
A179: =IF(ISBOLD(C179),0,1) -> 1 | B179: =IF(A179>0,SUM($A$18:A179)," ") -> 150 | C179: Mailing address (should handle foreign addresses)
A180: =IF(ISBOLD(C180),0,1) -> 1 | B180: =IF(A180>0,SUM($A$18:A180)," ") -> 151 | C180: Other address
A181: =IF(ISBOLD(C181),0,1) -> 1 | B181: =IF(A181>0,SUM($A$18:A181)," ") -> 152 | C181: E-mail address
A182: =IF(ISBOLD(C182),0,1) -> 1 | B182: =IF(A182>0,SUM($A$18:A182)," ") -> 153 | C182: Website address
A183: =IF(ISBOLD(C183),0,1) -> 1 | B183: =IF(A183>0,SUM($A$18:A183)," ") -> 154 | C183: Bank Transit Code (ABA/Routing number)
A184: =IF(ISBOLD(C184),0,1) -> 1 | B184: =IF(A184>0,SUM($A$18:A184)," ") -> 155 | C184: Bank Account Number
A185: =IF(ISBOLD(C185),0,1) -> 1 | B185: =IF(A185>0,SUM($A$18:A185)," ") -> 156 | C185: Bank Name
A186: =IF(ISBOLD(C186),0,1) -> 1 | B186: =IF(A186>0,SUM($A$18:A186)," ") -> 157 | C186: Direct Deposit Status/EFT Status
A187: =IF(ISBOLD(C187),0,1) -> 1 | B187: =IF(A187>0,SUM($A$18:A187)," ") -> 158 | C187: Accept credit card flag (yes/no)
A188: =IF(ISBOLD(C188),0,1) -> 1 | B188: =IF(A188>0,SUM($A$18:A188)," ") -> 159 | C188: Hold Reason and Hold Source
A189: =IF(ISBOLD(C189),0,1) -> 1 | B189: =IF(A189>0,SUM($A$18:A189)," ") -> 160 | C189: Date of last purchase and codes of products purchased
A190: =IF(ISBOLD(C190),0,1) -> 1 | B190: =IF(A190>0,SUM($A$18:A190)," ") -> 161 | C190: Contact information
A191: =IF(ISBOLD(C191),0,1) -> 1 | B191: =IF(A191>0,SUM($A$18:A191)," ") -> 162 | C191: Approval date
A192: =IF(ISBOLD(C192),0,1) -> 1 | B192: =IF(A192>0,SUM($A$18:A192)," ") -> 163 | C192: Scheduled expiration date
A193: =IF(ISBOLD(C193),0,1) -> 1 | B193: =IF(A193>0,SUM($A$18:A193)," ") -> 164 | C193: Inactivation date
A194: =IF(ISBOLD(C194),0,1) -> 1 | B194: =IF(A194>0,SUM($A$18:A194)," ") -> 165 | C194: Certification date
A195: =IF(ISBOLD(C195),0,1) -> 1 | B195: =IF(A195>0,SUM($A$18:A195)," ") -> 166 | C195: Ownership type/Business structure code
A196: =IF(ISBOLD(C196),0,1) -> 1 | B196: =IF(A196>0,SUM($A$18:A196)," ") -> 167 | C196: Audit Occurrence (number of audits)
A197: =IF(ISBOLD(C197),0,1) -> 1 | B197: =IF(A197>0,SUM($A$18:A197)," ") -> 168 | C197: Audit Type
A198: =IF(ISBOLD(C198),0,1) -> 1 | B198: =IF(A198>0,SUM($A$18:A198)," ") -> 169 | C198: Reason for audit (description field)
A199: =IF(ISBOLD(C199),0,1) -> 1 | B199: =IF(A199>0,SUM($A$18:A199)," ") -> 170 | C199: Auditor
A200: =IF(ISBOLD(C200),0,1) -> 1 | B200: =IF(A200>0,SUM($A$18:A200)," ") -> 171 | C200: Initiated audit date
A201: =IF(ISBOLD(C201),0,1) -> 1 | B201: =IF(A201>0,SUM($A$18:A201)," ") -> 172 | C201: Date received by auditor
A202: =IF(ISBOLD(C202),0,1) -> 1 | B202: =IF(A202>0,SUM($A$18:A202)," ") -> 173 | C202: Notification date
A203: =IF(ISBOLD(C203),0,1) -> 1 | B203: =IF(A203>0,SUM($A$18:A203)," ") -> 174 | C203: Onsite date
A204: =IF(ISBOLD(C204),0,1) -> 1 | B204: =IF(A204>0,SUM($A$18:A204)," ") -> 175 | C204: Appeal date
A205: =IF(ISBOLD(C205),0,1) -> 1 | B205: =IF(A205>0,SUM($A$18:A205)," ") -> 176 | C205: Determination date
A206: =IF(ISBOLD(C206),0,1) -> 1 | B206: =IF(A206>0,SUM($A$18:A206)," ") -> 177 | C206: Closed audit date
A207: =IF(ISBOLD(C207),0,1) -> 1 | B207: =IF(A207>0,SUM($A$18:A207)," ") -> 178 | C207: Reason codes
A208: =IF(ISBOLD(C208),0,1) -> 1 | B208: =IF(A208>0,SUM($A$18:A208)," ") -> 179 | C208: Comment field
A209: =IF(ISBOLD(C209),0,1) -> 1 | B209: =IF(A209>0,SUM($A$18:A209)," ") -> 180 | C209: SSN / FEIN
... 507 more rows

Sheet Payroll
C1: Requirements Survey
C2: Payroll Process | E2: Requirements Response Rules:
C3: The following functional, technical, workflow and reporting needs provide the minimum requirements of the Town of Colma. Please review the items carefully and respond in accordance with the requirements response rules provided. Any partial response will be deemed as an invalid response. MANDATORY: EVERY REQUIREMENT (Req#) MUST HAVE A RESPONSE TO BE CONSIDERED COMPLETE. | E3: Column #1. Mandatory: Proposers are required to input one response per requirement using the drop down list provided. Response Types: F=Fully provided out of the box, or fully provided out of the box through basic configuration Mod= Provided through a technical modification of the software (i.e. a customization) TP = Provided through a proposed third party application or capability CR= Custom report requiring development SR = Standard report provided through a built in or proposed reporting tool NA = Not Available Column #2. Proposers are requested to itemize estimated costs for all modification requirements. Column #3. Proposers are requested to list the third party product name for all Third Party Product requirements. Column #4. Mandatory: Proposers are required to mark yes or no to whether the implementation costs of this functionality is included in their cost proposal. Column #5. Mandatory: Proposers are required to mark yes or no to whether the training costs of this functionality is included in their cost proposal. Column #6. If a subcontractor is implementing or providing training for this functionality, please indicate the name of the subcontracting firm responsible for this functionality. Column #7. Mandatory: Proposers are required to list the version number for all functionality proposed to the Town.
C13: PROCESS | D13: High Priority | E13: 1.Response | F13: 2.Costs for Mod response | G13: 3.Third Party Application for TP response | H13: 4. Included in Implementation Costs | I13: 5. Included in training costs | J13: 6. Subcontractor | K13: 7. Version Number | L13: Comments/Narrative
B14: Req#
H15: Yes/No | I15: Yes/No
C16: Compensation & Payroll
C17: Salary and Compensation Set Up
A18: =IF(ISBOLD(C18),0,1) -> 0 | B18: =IF(A18>0,SUM($A$18:A18)," ") ->  | C18: The system defines and updates compensation plan rules by one or more of the following classifications:
A19: =IF(ISBOLD(C19),0,1) -> 1 | B19: =IF(A19>0,SUM($A$18:A19)," ") -> 1 | C19: Department
A20: =IF(ISBOLD(C20),0,1) -> 1 | B20: =IF(A20>0,SUM($A$18:A20)," ") -> 2 | C20: Job Class
A21: =IF(ISBOLD(C21),0,1) -> 1 | B21: =IF(A21>0,SUM($A$18:A21)," ") -> 3 | C21: Position
A22: =IF(ISBOLD(C22),0,1) -> 0 | B22: =IF(A22>0,SUM($A$18:A22)," ") ->  | C22: The system groups employees by the following types:
A23: =IF(ISBOLD(C23),0,1) -> 1 | B23: =IF(A23>0,SUM($A$18:A23)," ") -> 4 | C23: Town employees
A24: =IF(ISBOLD(C24),0,1) -> 1 | B24: =IF(A24>0,SUM($A$18:A24)," ") -> 5 | C24: Other user defined groups (e.g. sister agency employees)
A25: =IF(ISBOLD(C25),0,1) -> 1 | B25: =IF(A25>0,SUM($A$18:A25)," ") -> 6 | C25: The system calculates costs and percentage change of step-to-step increases for job classes with defined salary steps
A26: =IF(ISBOLD(C26),0,1) -> 1 | B26: =IF(A26>0,SUM($A$18:A26)," ") -> 7 | C26: The system links promotional increases with salary step increases
A27: =IF(ISBOLD(C27),0,1) -> 1 | B27: =IF(A27>0,SUM($A$18:A27)," ") -> 8 | C27: The system ties salary to salary tables
A28: =IF(ISBOLD(C28),0,1) -> 1 | B28: =IF(A28>0,SUM($A$18:A28)," ") -> 9 | C28: The system accommodates multiple payroll schedules | D28: X
A29: =IF(ISBOLD(C29),0,1) -> 1 | B29: =IF(A29>0,SUM($A$18:A29)," ") -> 10 | C29: The system links salary increases to performance reviews
A30: =IF(ISBOLD(C30),0,1) -> 1 | B30: =IF(A30>0,SUM($A$18:A30)," ") -> 11 | C30: The system links salary increases to completion of probationary periods
A31: =IF(ISBOLD(C31),0,1) -> 1 | B31: =IF(A31>0,SUM($A$18:A31)," ") -> 12 | C31: The system overrides the link between salary table and start date, with appropriate security (i.e. Police Department will move someone to 18 month pay after 12 months under certain circumstances and completion of other requirements)
A32: =IF(ISBOLD(C32),0,1) -> 1 | B32: =IF(A32>0,SUM($A$18:A32)," ") -> 13 | C32: The system links salary increases to one step increase or greater than one step increase
A33: =IF(ISBOLD(C33),0,1) -> 1 | B33: =IF(A33>0,SUM($A$18:A33)," ") -> 14 | C33: The system calculates on call pay
A34: =IF(ISBOLD(C34),0,1) -> 1 | B34: =IF(A34>0,SUM($A$18:A34)," ") -> 15 | C34: The system calculates premium pay
A35: =IF(ISBOLD(C35),0,1) -> 1 | B35: =IF(A35>0,SUM($A$18:A35)," ") -> 16 | C35: The system requires a certain number of hours worked (or days from start date) prior to receiving salary increases (e.g. 2,080 hours worked prior to receiving step increase)
A36: =IF(ISBOLD(C36),0,1) -> 1 | B36: =IF(A36>0,SUM($A$18:A36)," ") -> 17 | C36: The system processes a salary increase based on a special (non-scheduled) review
A37: =IF(ISBOLD(C37),0,1) -> 1 | B37: =IF(A37>0,SUM($A$18:A37)," ") -> 18 | C37: The system updates position title (job code) and pay range based upon the passage of time
A38: =IF(ISBOLD(C38),0,1) -> 1 | B38: =IF(A38>0,SUM($A$18:A38)," ") -> 19 | C38: The system allows salary to be linked to acting appointments and define and update special rules related to salary when in an acting appointment
A39: =IF(ISBOLD(C39),0,1) -> 1 | B39: =IF(A39>0,SUM($A$18:A39)," ") -> 20 | C39: The system defines positions as non exempt and exempt (FLSA) for overtime rules
A40: =IF(ISBOLD(C40),0,1) -> 1 | B40: =IF(A40>0,SUM($A$18:A40)," ") -> 21 | C40: The system identifies overtime cash or compensatory time eligibility for exempt employees by job class, department, position
A41: =IF(ISBOLD(C41),0,1) -> 1 | B41: =IF(A41>0,SUM($A$18:A41)," ") -> 22 | C41: The system calculates and pays overtime to exempt and non exempt employees
A42: =IF(ISBOLD(C42),0,1) -> 1 | B42: =IF(A42>0,SUM($A$18:A42)," ") -> 23 | C42: The system defines overtime rules for exempt positions/employees by department, rep code, job class, position, and in accordance with FLSA overtime requirements
A43: =IF(ISBOLD(C43),0,1) -> 1 | B43: =IF(A43>0,SUM($A$18:A43)," ") -> 24 | C43: The system limits compensatory time accruals biweekly
A44: =IF(ISBOLD(C44),0,1) -> 1 | B44: =IF(A44>0,SUM($A$18:A44)," ") -> 25 | C44: The system automatically pays off compensatory time accruals when a specified balance is reached
A45: =IF(ISBOLD(C45),0,1) -> 1 | B45: =IF(A45>0,SUM($A$18:A45)," ") -> 26 | C45: The system allows for an override of automatic compensatory time payouts, with appropriate security
A46: =IF(ISBOLD(C46),0,1) -> 1 | B46: =IF(A46>0,SUM($A$18:A46)," ") -> 27 | C46: The system inputs and tracks additional compensation (e.g., when an employee reaches the maximum of the pay range for the job class)
A47: =IF(ISBOLD(C47),0,1) -> 1 | B47: =IF(A47>0,SUM($A$18:A47)," ") -> 28 | C47: The system defines and updates severance pay rules by representation code and/or job class and/or position
A48: =IF(ISBOLD(C48),0,1) -> 1 | B48: =IF(A48>0,SUM($A$18:A48)," ") -> 29 | C48: The system defines and updates deceased employee payment of wages and pay rules
A49: =IF(ISBOLD(C49),0,1) -> 1 | B49: =IF(A49>0,SUM($A$18:A49)," ") -> 30 | C49: The system inputs and tracks compensation adjustments based upon security and workflow
A50: =IF(ISBOLD(C50),0,1) -> 0 | B50: =IF(A50>0,SUM($A$18:A50)," ") ->  | C50: The system maintains the following salary information:
A51: =IF(ISBOLD(C51),0,1) -> 1 | B51: =IF(A51>0,SUM($A$18:A51)," ") -> 31 | C51: Effective dates
A52: =IF(ISBOLD(C52),0,1) -> 1 | B52: =IF(A52>0,SUM($A$18:A52)," ") -> 32 | C52: Base Salary - Monthly
A53: =IF(ISBOLD(C53),0,1) -> 1 | B53: =IF(A53>0,SUM($A$18:A53)," ") -> 33 | C53: Base Salary - Bi-weekly
A54: =IF(ISBOLD(C54),0,1) -> 1 | B54: =IF(A54>0,SUM($A$18:A54)," ") -> 34 | C54: Salary range
A55: =IF(ISBOLD(C55),0,1) -> 1 | B55: =IF(A55>0,SUM($A$18:A55)," ") -> 35 | C55: Step and half steps
A56: =IF(ISBOLD(C56),0,1) -> 1 | B56: =IF(A56>0,SUM($A$18:A56)," ") -> 36 | C56: Pay change reason code (specific to payroll with user definable fields)
A57: =IF(ISBOLD(C57),0,1) -> 1 | B57: =IF(A57>0,SUM($A$18:A57)," ") -> 37 | C57: Amount of change and percentage of change
A58: =IF(ISBOLD(C58),0,1) -> 1 | B58: =IF(A58>0,SUM($A$18:A58)," ") -> 38 | C58: Previous salary
A59: =IF(ISBOLD(C59),0,1) -> 1 | B59: =IF(A59>0,SUM($A$18:A59)," ") -> 39 | C59: Hourly Rates to 4 decimal places
A60: =IF(ISBOLD(C60),0,1) -> 1 | B60: =IF(A60>0,SUM($A$18:A60)," ") -> 40 | C60: Other user defined fields (please note any limitations on the number or type of user defined fields)
A61: =IF(ISBOLD(C61),0,1) -> 1 | B61: =IF(A61>0,SUM($A$18:A61)," ") -> 41 | C61: The system sets up and tracks multiple salary schedules | D61: X
A62: =IF(ISBOLD(C62),0,1) -> 1 | B62: =IF(A62>0,SUM($A$18:A62)," ") -> 42 | C62: The system accommodates salary table linked to job classification
A63: =IF(ISBOLD(C63),0,1) -> 1 | B63: =IF(A63>0,SUM($A$18:A63)," ") -> 43 | C63: The system has effective date salary increases for employee, job class, and other criteria
A64: =IF(ISBOLD(C64),0,1) -> 1 | B64: =IF(A64>0,SUM($A$18:A64)," ") -> 44 | C64: The system tracks and reports on job classes and bargaining unit of job classes who received special adjustments, effective date, implementation date and reason for special adjustment
A65: =IF(ISBOLD(C65),0,1) -> 1 | B65: =IF(A65>0,SUM($A$18:A65)," ") -> 45 | C65: The system amends classification plans and/or titles, such as those resulting from an organization change, new position or any other change
A66: =IF(ISBOLD(C66),0,1) -> 1 | B66: =IF(A66>0,SUM($A$18:A66)," ") -> 46 | C66: The system tracks and reports on changes to salary rates for a job class and bargaining unit including effective date of changes and implementation date of change. Example: How many and which job classes received salary changes different from the general adjustment applied to all classes (Note: focus is on changes to the salary range/steps and not the employee's rates)
A67: =IF(ISBOLD(C67),0,1) -> 1 | B67: =IF(A67>0,SUM($A$18:A67)," ") -> 47 | C67: The system applies mass changes to salary rates and to employee base rates
A68: 1 | B68: =IF(A68>0,SUM($A$18:A68)," ") -> 48 | C68: The system allows the user to select a subset of employees and/or employee groups to make mass changes to salary tables
A69: =IF(ISBOLD(C69),0,1) -> 1 | B69: =IF(A69>0,SUM($A$18:A69)," ") -> 49 | C69: The system pays employee for multiple different positions/ multiple different rates
A70: =IF(ISBOLD(C70),0,1) -> 1 | B70: =IF(A70>0,SUM($A$18:A70)," ") -> 50 | C70: The system calculates a "work out of class" or "step up" rate based on a user defined formula (i.e. 50% of difference between normal rate and acting rate/position being back-filled)
A71: =IF(ISBOLD(C71),0,1) -> 1 | B71: =IF(A71>0,SUM($A$18:A71)," ") -> 51 | C71: The system converts a temporary employee to a permanent employee
A72: =IF(ISBOLD(C72),0,1) -> 1 | B72: =IF(A72>0,SUM($A$18:A72)," ") -> 52 | C72: The system limits access to confidential information (e.g., SSN)
A73: =IF(ISBOLD(C73),0,1) -> 1 | B73: =IF(A73>0,SUM($A$18:A73)," ") -> 53 | C73: The system tracks/reports on employee by 52 week moving period for: sick usage, gross wages, hours worked
A74: =IF(ISBOLD(C74),0,1) -> 1 | B74: =IF(A74>0,SUM($A$18:A74)," ") -> 54 | C74: The system incorporates IRS changes to payroll rules | D74: X
A75: =IF(ISBOLD(C75),0,1) -> 1 | B75: =IF(A75>0,SUM($A$18:A75)," ") -> 55 | C75: The system integrates payroll with scheduling and work orders
A76: =IF(ISBOLD(C76),0,1) -> 1 | B76: =IF(A76>0,SUM($A$18:A76)," ") -> 56 | C76: The system caps overtime at specific limit (for example: 40 hours)
A77: =IF(ISBOLD(C77),0,1) -> 1 | B77: =IF(A77>0,SUM($A$18:A77)," ") -> 57 | C77: The system allows for override of an overtime cap, with appropriate security
A78: =IF(ISBOLD(C78),0,1) -> 0 | B78: =IF(A78>0,SUM($A$18:A78)," ") ->  | C78: Additional Payments including Fringe Benefits
A79: =IF(ISBOLD(C79),0,1) -> 0 | B79: =IF(A79>0,SUM($A$18:A79)," ") ->  | C79: The system defines earnings codes including:
A80: =IF(ISBOLD(C80),0,1) -> 1 | B80: =IF(A80>0,SUM($A$18:A80)," ") -> 58 | C80: Type
A81: =IF(ISBOLD(C81),0,1) -> 1 | B81: =IF(A81>0,SUM($A$18:A81)," ") -> 59 | C81: Prioritization
A82: =IF(ISBOLD(C82),0,1) -> 1 | B82: =IF(A82>0,SUM($A$18:A82)," ") -> 60 | C82: Calculation method
A83: =IF(ISBOLD(C83),0,1) -> 1 | B83: =IF(A83>0,SUM($A$18:A83)," ") -> 61 | C83: Deductions
A84: =IF(ISBOLD(C84),0,1) -> 1 | B84: =IF(A84>0,SUM($A$18:A84)," ") -> 62 | C84: Frequency
A85: =IF(ISBOLD(C85),0,1) -> 1 | B85: =IF(A85>0,SUM($A$18:A85)," ") -> 63 | C85: Other data
A86: =IF(ISBOLD(C86),0,1) -> 1 | B86: =IF(A86>0,SUM($A$18:A86)," ") -> 64 | C86: The system defines earnings codes as eligible or ineligible for CalPERS retirement deductions
A87: =IF(ISBOLD(C87),0,1) -> 1 | B87: =IF(A87>0,SUM($A$18:A87)," ") -> 65 | C87: The system defines earnings codes as for benefits that are based on a calculation of percent of earnings
A88: =IF(ISBOLD(C88),0,1) -> 1 | B88: =IF(A88>0,SUM($A$18:A88)," ") -> 66 | C88: The system sets up earnings code tables, with vary by job class or bargaining unit
A89: =IF(ISBOLD(C89),0,1) -> 1 | B89: =IF(A89>0,SUM($A$18:A89)," ") -> 67 | C89: The system automatically assigns specific earnings codes to an employee/position based on bargaining unit, job class, and other user defined
A90: =IF(ISBOLD(C90),0,1) -> 1 | B90: =IF(A90>0,SUM($A$18:A90)," ") -> 68 | C90: The system sets up and processes multiple overtime based on FLSA
A91: =IF(ISBOLD(C91),0,1) -> 1 | B91: =IF(A91>0,SUM($A$18:A91)," ") -> 69 | C91: The system processes multiple additional pay types in one pay period
A92: =IF(ISBOLD(C92),0,1) -> 1 | B92: =IF(A92>0,SUM($A$18:A92)," ") -> 70 | C92: The system tracks additional pay in order to eliminate any duplicate payments
A93: =IF(ISBOLD(C93),0,1) -> 1 | B93: =IF(A93>0,SUM($A$18:A93)," ") -> 71 | C93: The system makes mass additional payments
A94: =IF(ISBOLD(C94),0,1) -> 1 | B94: =IF(A94>0,SUM($A$18:A94)," ") -> 72 | C94: The system performs electronic approval for online entry of payroll transactions
A95: =IF(ISBOLD(C95),0,1) -> 0 | B95: =IF(A95>0,SUM($A$18:A95)," ") ->  | C95: The system performs calculations and processing required for employee terminations including:
A96: =IF(ISBOLD(C96),0,1) -> 1 | B96: =IF(A96>0,SUM($A$18:A96)," ") -> 73 | C96: Salary and additional pay
A97: =IF(ISBOLD(C97),0,1) -> 1 | B97: =IF(A97>0,SUM($A$18:A97)," ") -> 74 | C97: Payoff of vacation and personal leave
A98: =IF(ISBOLD(C98),0,1) -> 1 | B98: =IF(A98>0,SUM($A$18:A98)," ") -> 75 | C98: Payoff of compensatory time balance
A99: =IF(ISBOLD(C99),0,1) -> 1 | B99: =IF(A99>0,SUM($A$18:A99)," ") -> 76 | C99: Payoff of deferred holiday balance
A100: =IF(ISBOLD(C100),0,1) -> 1 | B100: =IF(A100>0,SUM($A$18:A100)," ") -> 77 | C100: Combine last regular check and payoff check
A101: =IF(ISBOLD(C101),0,1) -> 1 | B101: =IF(A101>0,SUM($A$18:A101)," ") -> 78 | C101: Imputed GTL
A102: =IF(ISBOLD(C102),0,1) -> 1 | B102: =IF(A102>0,SUM($A$18:A102)," ") -> 79 | C102: Imputed vehicle use
A103: =IF(ISBOLD(C103),0,1) -> 1 | B103: =IF(A103>0,SUM($A$18:A103)," ") -> 80 | C103: The system pays an employee after termination
A104: =IF(ISBOLD(C104),0,1) -> 1 | B104: =IF(A104>0,SUM($A$18:A104)," ") -> 81 | C104: The system tracks and reports on sick leave hours not paid out because employee is at maximum conversion amount
A105: =IF(ISBOLD(C105),0,1) -> 1 | B105: =IF(A105>0,SUM($A$18:A105)," ") -> 82 | C105: The system converts leave into dollar value for post employment health benefits
A106: =IF(ISBOLD(C106),0,1) -> 1 | B106: =IF(A106>0,SUM($A$18:A106)," ") -> 83 | C106: The system bases conversion of leave for post employment health benefits, specific to department rules
A107: =IF(ISBOLD(C107),0,1) -> 1 | B107: =IF(A107>0,SUM($A$18:A107)," ") -> 84 | C107: The system prorates conversion of sick leave upon termination based on part-time employee hours
A108: =IF(ISBOLD(C108),0,1) -> 1 | B108: =IF(A108>0,SUM($A$18:A108)," ") -> 85 | C108: The system decreases sick leave and converts hours into a lump sum based upon the employee's pay rate and decreases the employee's sick leave balance, based upon employee's program eligibility.
A109: =IF(ISBOLD(C109),0,1) -> 1 | B109: =IF(A109>0,SUM($A$18:A109)," ") -> 86 | C109: The system allows payout for sick leave balances earned in full, half or other partial payment when employees reach a given number of days or hours. Sick leave balances shall be decreased and any remaining balances carried forward or deleted
A110: =IF(ISBOLD(C110),0,1) -> 1 | B110: =IF(A110>0,SUM($A$18:A110)," ") -> 87 | C110: The system has multiple sick leave balances that may be frozen at different pay periods throughout a fiscal period and available for future benefit calculations
A111: =IF(ISBOLD(C111),0,1) -> 1 | B111: =IF(A111>0,SUM($A$18:A111)," ") -> 88 | C111: The system sets up and tracks annual caps for payments made from programs, such as uniform allowance
A112: =IF(ISBOLD(C112),0,1) -> 1 | B112: =IF(A112>0,SUM($A$18:A112)," ") -> 89 | C112: The system processes payroll for deceased employees
A113: =IF(ISBOLD(C113),0,1) -> 1 | B113: =IF(A113>0,SUM($A$18:A113)," ") -> 90 | C113: The system accumulates, stores, and maintains creditable service by employee in order to calculate the amount of an annual longevity payment | D113: X
A114: =IF(ISBOLD(C114),0,1) -> 1 | B114: =IF(A114>0,SUM($A$18:A114)," ") -> 91 | C114: The system inputs and tracks retroactive adjustments to earning codes | D114: X
A115: =IF(ISBOLD(C115),0,1) -> 1 | B115: =IF(A115>0,SUM($A$18:A115)," ") -> 92 | C115: The system adjusts leave accruals and hours based on retro adjustments
A116: =IF(ISBOLD(C116),0,1) -> 1 | B116: =IF(A116>0,SUM($A$18:A116)," ") -> 93 | C116: The system inputs and tracks retroactive adjustments for one employee, based upon criteria such as a performance review and late merit increase
A117: =IF(ISBOLD(C117),0,1) -> 1 | B117: =IF(A117>0,SUM($A$18:A117)," ") -> 94 | C117: The system inputs and tracks retroactive adjustments for a group of employees, based upon criteria such as job class | D117: X
A118: =IF(ISBOLD(C118),0,1) -> 1 | B118: =IF(A118>0,SUM($A$18:A118)," ") -> 95 | C118: The system calculates retroactive pay for an employee who has changed bargaining units while the expired contract was under negotiation
A119: =IF(ISBOLD(C119),0,1) -> 1 | B119: =IF(A119>0,SUM($A$18:A119)," ") -> 96 | C119: The system designates taxes or deductions on retroactive payments, by pay period, or percentage or at the current tax rate
A120: =IF(ISBOLD(C120),0,1) -> 1 | B120: =IF(A120>0,SUM($A$18:A120)," ") -> 97 | C120: The system inputs and tracks all additional payments (e.g., fringe benefits)
A121: =IF(ISBOLD(C121),0,1) -> 1 | B121: =IF(A121>0,SUM($A$18:A121)," ") -> 98 | C121: The system forecasts projections of the grievance payment amount (Civil Service Settlement?)
A122: =IF(ISBOLD(C122),0,1) -> 1 | B122: =IF(A122>0,SUM($A$18:A122)," ") -> 99 | C122: The system identifies, calculates, and pays lump sum payments by bargaining unit, job class, employee base rate, hours of service, benefit eligible, and other user defined
A123: =IF(ISBOLD(C123),0,1) -> 0 | B123: =IF(A123>0,SUM($A$18:A123)," ") ->  | C123: The system can set up the following payout codes for lump sum payments:
A124: =IF(ISBOLD(C124),0,1) -> 1 | B124: =IF(A124>0,SUM($A$18:A124)," ") -> 100 | C124: Grievance pay
A125: =IF(ISBOLD(C125),0,1) -> 1 | B125: =IF(A125>0,SUM($A$18:A125)," ") -> 101 | C125: Severance/termination pay
A126: =IF(ISBOLD(C126),0,1) -> 1 | B126: =IF(A126>0,SUM($A$18:A126)," ") -> 102 | C126: Uniform allowance
A127: =IF(ISBOLD(C127),0,1) -> 1 | B127: =IF(A127>0,SUM($A$18:A127)," ") -> 103 | C127: Expense reimbursement including travel expenses
A128: =IF(ISBOLD(C128),0,1) -> 1 | B128: =IF(A128>0,SUM($A$18:A128)," ") -> 104 | C128: Non-overnight meals (subject to tax)
A129: =IF(ISBOLD(C129),0,1) -> 1 | B129: =IF(A129>0,SUM($A$18:A129)," ") -> 105 | C129: Tuition reimbursement
A130: =IF(ISBOLD(C130),0,1) -> 1 | B130: =IF(A130>0,SUM($A$18:A130)," ") -> 106 | C130: Professional license reimbursement
A131: =IF(ISBOLD(C131),0,1) -> 1 | B131: =IF(A131>0,SUM($A$18:A131)," ") -> 107 | C131: Mileage reimbursement
A132: =IF(ISBOLD(C132),0,1) -> 1 | B132: =IF(A132>0,SUM($A$18:A132)," ") -> 108 | C132: Parking reimbursement
A133: =IF(ISBOLD(C133),0,1) -> 1 | B133: =IF(A133>0,SUM($A$18:A133)," ") -> 109 | C133: Retroactive pay
A134: =IF(ISBOLD(C134),0,1) -> 1 | B134: =IF(A134>0,SUM($A$18:A134)," ") -> 110 | C134: Vacation Donor Program
A135: =IF(ISBOLD(C135),0,1) -> 1 | B135: =IF(A135>0,SUM($A$18:A135)," ") -> 111 | C135: Longevity Pay
A136: =IF(ISBOLD(C136),0,1) -> 1 | B136: =IF(A136>0,SUM($A$18:A136)," ") -> 112 | C136: Special activity pay
A137: =IF(ISBOLD(C137),0,1) -> 1 | B137: =IF(A137>0,SUM($A$18:A137)," ") -> 113 | C137: Education credit incentive
A138: =IF(ISBOLD(C138),0,1) -> 1 | B138: =IF(A138>0,SUM($A$18:A138)," ") -> 114 | C138: Cell phone allowance
A139: =IF(ISBOLD(C139),0,1) -> 1 | B139: =IF(A139>0,SUM($A$18:A139)," ") -> 115 | C139: Vehicle allowance
A140: =IF(ISBOLD(C140),0,1) -> 1 | B140: =IF(A140>0,SUM($A$18:A140)," ") -> 116 | C140: State supplemental
A141: =IF(ISBOLD(C141),0,1) -> 1 | B141: =IF(A141>0,SUM($A$18:A141)," ") -> 117 | C141: Tool allowance
A142: =IF(ISBOLD(C142),0,1) -> 1 | B142: =IF(A142>0,SUM($A$18:A142)," ") -> 118 | C142: Cash for Comp time (annual payout at end of year)
A143: =IF(ISBOLD(C143),0,1) -> 1 | B143: =IF(A143>0,SUM($A$18:A143)," ") -> 119 | C143: Other user defined pay codes
A144: =IF(ISBOLD(C144),0,1) -> 1 | B144: =IF(A144>0,SUM($A$18:A144)," ") -> 120 | C144: The system allocates a percent of salary to a specific funding source (i.e., a specific grant)
A145: =IF(ISBOLD(C145),0,1) -> 1 | B145: =IF(A145>0,SUM($A$18:A145)," ") -> 121 | C145: The system allocates a percent of benefits to a specific funding source (i.e. a specific grant)
A146: =IF(ISBOLD(C146),0,1) -> 0 | B146: =IF(A146>0,SUM($A$18:A146)," ") ->  | C146: Total Compensation
A147: =IF(ISBOLD(C147),0,1) -> 1 | B147: =IF(A147>0,SUM($A$18:A147)," ") -> 122 | C147: The system automates compensation and benefits information updates with automated workflow approvals
A148: =IF(ISBOLD(C148),0,1) -> 1 | B148: =IF(A148>0,SUM($A$18:A148)," ") -> 123 | C148: The system sets up start dates for deductions based upon benefit types
A149: =IF(ISBOLD(C149),0,1) -> 1 | B149: =IF(A149>0,SUM($A$18:A149)," ") -> 124 | C149: The system automates pretax deduction refunds
A150: =IF(ISBOLD(C150),0,1) -> 1 | B150: =IF(A150>0,SUM($A$18:A150)," ") -> 125 | C150: The system adjusts pretax deductions
A151: =IF(ISBOLD(C151),0,1) -> 1 | B151: =IF(A151>0,SUM($A$18:A151)," ") -> 126 | C151: The system maintains salary compensation group and range by position
A152: =IF(ISBOLD(C152),0,1) -> 1 | B152: =IF(A152>0,SUM($A$18:A152)," ") -> 127 | C152: The system sets up accrual eligibility rules by pay code
A153: =IF(ISBOLD(C153),0,1) -> 1 | B153: =IF(A153>0,SUM($A$18:A153)," ") -> 128 | C153: The system allows employees to continue accruals even if on leave (e.g. military leave, time off due to workers compensation injury)
A154: =IF(ISBOLD(C154),0,1) -> 1 | B154: =IF(A154>0,SUM($A$18:A154)," ") -> 129 | C154: The system tracks and reports paid military leave
A155: =IF(ISBOLD(C155),0,1) -> 1 | B155: =IF(A155>0,SUM($A$18:A155)," ") -> 130 | C155: The system sets up multiple pay out rules by department, job class for comp and deferred holiday time
A156: =IF(ISBOLD(C156),0,1) -> 1 | B156: =IF(A156>0,SUM($A$18:A156)," ") -> 131 | C156: The system accommodates unlimited deduction codes. List any limitations in the comments field.
A157: =IF(ISBOLD(C157),0,1) -> 1 | B157: =IF(A157>0,SUM($A$18:A157)," ") -> 132 | C157: The system accommodates the creation of new deduction codes
A158: =IF(ISBOLD(C158),0,1) -> 1 | B158: =IF(A158>0,SUM($A$18:A158)," ") -> 133 | C158: The system restricts\ the deduction of specific benefits from lump sum pay-outs at transition/termination
A159: =IF(ISBOLD(C159),0,1) -> 1 | B159: =IF(A159>0,SUM($A$18:A159)," ") -> 134 | C159: The system sets up multiple pay out schedules by department or job class for comp and deferred holiday time
A160: =IF(ISBOLD(C160),0,1) -> 1 | B160: =IF(A160>0,SUM($A$18:A160)," ") -> 135 | C160: The system processes paid time off by:
A161: =IF(ISBOLD(C161),0,1) -> 1 | B161: =IF(A161>0,SUM($A$18:A161)," ") -> 136 | C161: A lump sum
A162: =IF(ISBOLD(C162),0,1) -> 1 | B162: =IF(A162>0,SUM($A$18:A162)," ") -> 137 | C162: Hours
A163: =IF(ISBOLD(C163),0,1) -> 1 | B163: =IF(A163>0,SUM($A$18:A163)," ") -> 138 | C163: The system converts an employee's vacation hours into a dollar amount
A164: =IF(ISBOLD(C164),0,1) -> 0 | B164: =IF(A164>0,SUM($A$18:A164)," ") ->  | C164: Payroll Process
A165: =IF(ISBOLD(C165),0,1) -> 1 | B165: =IF(A165>0,SUM($A$18:A165)," ") -> 139 | C165: System produces variance reports
A166: =IF(ISBOLD(C166),0,1) -> 1 | B166: =IF(A166>0,SUM($A$18:A166)," ") -> 140 | C166: The system processes payroll on multiple time cycles (e.g. bi-weekly, monthly, and random manual payrolls) | D166: x
A167: =IF(ISBOLD(C167),0,1) -> 1 | B167: =IF(A167>0,SUM($A$18:A167)," ") -> 141 | C167: The system processes on demand payroll
A168: =IF(ISBOLD(C168),0,1) -> 1 | B168: =IF(A168>0,SUM($A$18:A168)," ") -> 142 | C168: The system calculates additional pay as defined in compensation (flat rate, % of base, skills & certificates)
A169: =IF(ISBOLD(C169),0,1) -> 1 | B169: =IF(A169>0,SUM($A$18:A169)," ") -> 143 | C169: The system requires designated user to approve benefits processed by HR and employee self service requests prior to entering into live payroll processing
A170: =IF(ISBOLD(C170),0,1) -> 1 | B170: =IF(A170>0,SUM($A$18:A170)," ") -> 144 | C170: The system computes and re-computes benefits (leave balances) for when part-time employees are recertified to different work percentages (i.e. certified 75% to 60% part-time)
A171: =IF(ISBOLD(C171),0,1) -> 1 | B171: =IF(A171>0,SUM($A$18:A171)," ") -> 145 | C171: The system calculates salary employee effective date step ups, as a result of actions changes (e.g., promotions, demotions, acting appointments, and other actions)
A172: =IF(ISBOLD(C172),0,1) -> 1 | B172: =IF(A172>0,SUM($A$18:A172)," ") -> 146 | C172: The system allows one employee to be paid by more than one position
A173: =IF(ISBOLD(C173),0,1) -> 1 | B173: =IF(A173>0,SUM($A$18:A173)," ") -> 147 | C173: The system calculates benefit deductions for an employee in more than one position
A174: =IF(ISBOLD(C174),0,1) -> 1 | B174: =IF(A174>0,SUM($A$18:A174)," ") -> 148 | C174: The system calculates leave accruals on employees in more than one position
A175: =IF(ISBOLD(C175),0,1) -> 1 | B175: =IF(A175>0,SUM($A$18:A175)," ") -> 149 | C175: The system has leave accruals based on all benefit eligible hours worked in multiple positions
A176: =IF(ISBOLD(C176),0,1) -> 1 | B176: =IF(A176>0,SUM($A$18:A176)," ") -> 150 | C176: The system allows employees to use vacation, sick leave, and personal leave accruals for the current payroll period (example: employee has zero vacation balance, use vacation on day 1 of payroll period, will accrue 8 hours for the payroll period, therefore, will have enough to cover day 1)
A177: =IF(ISBOLD(C177),0,1) -> 1 | B177: =IF(A177>0,SUM($A$18:A177)," ") -> 151 | C177: The system allows an employee to use prior year sick leave accrual if the employee has used all current year accruals (with Town defined allowable prior year amount.)
A178: =IF(ISBOLD(C178),0,1) -> 1 | B178: =IF(A178>0,SUM($A$18:A178)," ") -> 152 | C178: They system allows the user to be negative on the Annual Sick Leave Accrual, with proper approvals | D178: x
A179: =IF(ISBOLD(C179),0,1) -> 1 | B179: =IF(A179>0,SUM($A$18:A179)," ") -> 153 | C179: The system calculates pay for multiple positions for one employee that transfers during a pay period
A180: =IF(ISBOLD(C180),0,1) -> 1 | B180: =IF(A180>0,SUM($A$18:A180)," ") -> 154 | C180: The system calculates pay for employees paid from more than position
A181: =IF(ISBOLD(C181),0,1) -> 1 | B181: =IF(A181>0,SUM($A$18:A181)," ") -> 155 | C181: The system calculates/verifies overtime and shift differential consistent with FLSA rules, including:
A182: =IF(ISBOLD(C182),0,1) -> 1 | B182: =IF(A182>0,SUM($A$18:A182)," ") -> 156 | C182: Overtime calculations for employees in more than one position (regardless of department)
A183: =IF(ISBOLD(C183),0,1) -> 1 | B183: =IF(A183>0,SUM($A$18:A183)," ") -> 157 | C183: Overtime across multiple cost centers
A184: =IF(ISBOLD(C184),0,1) -> 1 | B184: =IF(A184>0,SUM($A$18:A184)," ") -> 158 | C184: Overtime calculations for other user defined rules
A185: =IF(ISBOLD(C185),0,1) -> 1 | B185: =IF(A185>0,SUM($A$18:A185)," ") -> 159 | C185: Overtime by job class
A186: =IF(ISBOLD(C186),0,1) -> 0 | B186: =IF(A186>0,SUM($A$18:A186)," ") ->  | C186: The system allows for complex pay calculations including:
A187: =IF(ISBOLD(C187),0,1) -> 1 | B187: =IF(A187>0,SUM($A$18:A187)," ") -> 160 | C187: Compound pay
A188: =IF(ISBOLD(C188),0,1) -> 1 | B188: =IF(A188>0,SUM($A$18:A188)," ") -> 161 | C188: Multiple compound pay
A189: =IF(ISBOLD(C189),0,1) -> 1 | B189: =IF(A189>0,SUM($A$18:A189)," ") -> 162 | C189: Premium pay
A190: =IF(ISBOLD(C190),0,1) -> 1 | B190: =IF(A190>0,SUM($A$18:A190)," ") -> 163 | C190: Base plus
A191: =IF(ISBOLD(C191),0,1) -> 1 | B191: =IF(A191>0,SUM($A$18:A191)," ") -> 164 | C191: The system calculates longevity payment
A192: =IF(ISBOLD(C192),0,1) -> 1 | B192: =IF(A192>0,SUM($A$18:A192)," ") -> 165 | C192: The system charges overtime to a funding source, with security
A193: =IF(ISBOLD(C193),0,1) -> 1 | B193: =IF(A193>0,SUM($A$18:A193)," ") -> 166 | C193: The system processes partial deductions (if an employee's pay is insufficient) and tracks arrears
A194: =IF(ISBOLD(C194),0,1) -> 0 | B194: =IF(A194>0,SUM($A$18:A194)," ") ->  | C194: The system calculates employee deductions and Town contributions based on the following:
A195: =IF(ISBOLD(C195),0,1) -> 1 | B195: =IF(A195>0,SUM($A$18:A195)," ") -> 167 | C195: Fixed amount
A196: =IF(ISBOLD(C196),0,1) -> 1 | B196: =IF(A196>0,SUM($A$18:A196)," ") -> 168 | C196: Percent amount of taxable pay (base pay, all pay, departmental pay, other amounts of pay)
A197: =IF(ISBOLD(C197),0,1) -> 1 | B197: =IF(A197>0,SUM($A$18:A197)," ") -> 169 | C197: Maximum amounts (State defined and employee defined)
A198: =IF(ISBOLD(C198),0,1) -> 1 | B198: =IF(A198>0,SUM($A$18:A198)," ") -> 170 | C198: Start dates
A199: =IF(ISBOLD(C199),0,1) -> 1 | B199: =IF(A199>0,SUM($A$18:A199)," ") -> 171 | C199: End dates
A200: =IF(ISBOLD(C200),0,1) -> 1 | B200: =IF(A200>0,SUM($A$18:A200)," ") -> 172 | C200: The system deducts, processes, and tracks CalPERS withholdings based on a defined set of earnings codes that are considered "PERSable" compensation
A201: =IF(ISBOLD(C201),0,1) -> 1 | B201: =IF(A201>0,SUM($A$18:A201)," ") -> 173 | C201: The system deducts, processes, and tracks deferred compensation (including monitoring of multiple contributions)
A202: =IF(ISBOLD(C202),0,1) -> 1 | B202: =IF(A202>0,SUM($A$18:A202)," ") -> 174 | C202: The system produces an annual statement of total compensation (employee salary and employer paid benefits)
A203: =IF(ISBOLD(C203),0,1) -> 1 | B203: =IF(A203>0,SUM($A$18:A203)," ") -> 175 | C203: The paycheck advice lists benefits that are employer paid only
A204: =IF(ISBOLD(C204),0,1) -> 1 | B204: =IF(A204>0,SUM($A$18:A204)," ") -> 176 | C204: The system sets up and processes predefined deductions for a designated group of employees (example: .X% of pay period gross earnings for employees in a specific bargaining unit with a specific minimum base wage to a Health Savings Account or X% of severance pay to a Health Savings Account)
A205: =IF(ISBOLD(C205),0,1) -> 0 | B205: =IF(A205>0,SUM($A$18:A205)," ") ->  | C205: The system processes the following flexible benefits:
A206: =IF(ISBOLD(C206),0,1) -> 1 | B206: =IF(A206>0,SUM($A$18:A206)," ") -> 177 | C206: Track flexible benefit amounts - contributed and reimbursed on the payroll stub
A207: =IF(ISBOLD(C207),0,1) -> 1 | B207: =IF(A207>0,SUM($A$18:A207)," ") -> 178 | C207: Pre-tax amounts
A208: =IF(ISBOLD(C208),0,1) -> 1 | B208: =IF(A208>0,SUM($A$18:A208)," ") -> 179 | C208: Payment of reimbursed amounts when elected (i.e. unintentional use of current year flex funds to pay prior year flex expenses, or use of flex funds on ineligible expenses)
A209: =IF(ISBOLD(C209),0,1) -> 1 | B209: =IF(A209>0,SUM($A$18:A209)," ") -> 180 | C209: The system inputs, deducts and tracks garnishment rules
... 241 more rows

Sheet Time & Attendance
C1: Requirements Survey
C3: Time & Attendance | E3: Requirements Response Rules:
C4: The following functional, technical, workflow and reporting needs provide the minimum requirements of the Town of Colma. Please review the items carefully and respond in accordance with the requirements response rules provided. Any partial response will be deemed as an invalid response. MANDATORY: EVERY REQUIREMENT (Req#) MUST HAVE A RESPONSE TO BE CONSIDERED COMPLETE. | E4: Column #1. Mandatory: Proposers are required to input one response per requirement using the drop down list provided. Response Types: F=Fully provided out of the box, or fully provided out of the box through basic configuration Mod= Provided through a technical modification of the software (i.e. a customization) TP = Provided through a proposed third party application or capability CR= Custom report requiring development SR = Standard report provided through a built in or proposed reporting tool NA = Not Available Column #2. Proposers are requested to itemize estimated costs for all modification requirements. Column #3. Proposers are requested to list the third party product name for all Third Party Product requirements. Column #4. Mandatory: Proposers are required to mark yes or no to whether the implementation costs of this functionality is included in their cost proposal. Column #5. Mandatory: Proposers are required to mark yes or no to whether the training costs of this functionality is included in their cost proposal. Column #6. If a subcontractor is implementing or providing training for this functionality, please indicate the name of the subcontracting firm responsible for this functionality. Column #7. Mandatory: Proposers are required to list the version number for all functionality proposed to the Town.
C14: PROCESS | D14: High Priority | E14: 1.Response | F14: 2.Costs for Mod response | G14: 3.Third Party Application for TP response | H14: 4. Included in Implementation Costs | I14: 5. Included in training costs | J14: 6. Subcontractor | K14: 7. Version Number | L14: Comments/Narrative
B15: Req#
H16: Yes/No | I16: Yes/No
C17: Time Entry and Capture
C18: Time Entry and Capture Set Up
A19: =IF(ISBOLD(C19),0,1) -> 1 | B19: =IF(A19>0,SUM($A$18:A19)," ") -> 1 | C19: The system allows for multiple weekday start dates based on department
A20: =IF(ISBOLD(C20),0,1) -> 1 | B20: =IF(A20>0,SUM($A$18:A20)," ") -> 2 | C20: The system supports electronic time entry processes (various methods by level and employee type) AND allows for supervisor approval through workflow process
A21: =IF(ISBOLD(C21),0,1) -> 1 | B21: =IF(A21>0,SUM($A$18:A21)," ") -> 3 | C21: Unlimited pay code types
A22: =IF(ISBOLD(C22),0,1) -> 1 | B22: =IF(A22>0,SUM($A$18:A22)," ") -> 4 | C22: The system provides self-service employee time entry that incorporates complex work/payroll time entry and validation rules List any limitations in the comments field.
A23: =IF(ISBOLD(C23),0,1) -> 1 | B23: =IF(A23>0,SUM($A$18:A23)," ") -> 5 | C23: The system tracks time for non-paid employees (volunteers), without impacting payroll
A24: =IF(ISBOLD(C24),0,1) -> 1 | B24: =IF(A24>0,SUM($A$18:A24)," ") -> 6 | C24: The system can require employees to enter relationship to deceased, if selecting bereavement leave
A25: =IF(ISBOLD(C25),0,1) -> 1 | B25: =IF(A25>0,SUM($A$18:A25)," ") -> 7 | C25: The system can require employee to enter date of death, if selecting bereavement leave
A26: =IF(ISBOLD(C26),0,1) -> 1 | B26: =IF(A26>0,SUM($A$18:A26)," ") -> 8 | C26: The system alerts HR (email notification) if employee selects bereavement leave
A27: =IF(ISBOLD(C27),0,1) -> 1 | B27: =IF(A27>0,SUM($A$18:A27)," ") -> 9 | C27: The system restricts types of time entry (OT, comp, etc.) based on funding source (grants, etc.)
A28: =IF(ISBOLD(C28),0,1) -> 1 | B28: =IF(A28>0,SUM($A$18:A28)," ") -> 10 | C28: The system notifies approver, if time entered by employee does not equal hours expected per pay period
A29: =IF(ISBOLD(C29),0,1) -> 1 | B29: =IF(A29>0,SUM($A$18:A29)," ") -> 11 | C29: The system provides user-specific view, so only appropriate time codes are viewable for that user
A30: =IF(ISBOLD(C30),0,1) -> 0 | B30: =IF(A30>0,SUM($A$18:A30)," ") ->  | C30: The system sets up maximum caps (annual, pay period, week, occurrence, day, hours) per pay code:
A31: =IF(ISBOLD(C31),0,1) -> 1 | B31: =IF(A31>0,SUM($A$18:A31)," ") -> 12 | C31: Compensation Group unit
A32: =IF(ISBOLD(C32),0,1) -> 1 | B32: =IF(A32>0,SUM($A$18:A32)," ") -> 13 | C32: Position
A33: =IF(ISBOLD(C33),0,1) -> 1 | B33: =IF(A33>0,SUM($A$18:A33)," ") -> 14 | C33: Department
A34: =IF(ISBOLD(C34),0,1) -> 1 | B34: =IF(A34>0,SUM($A$18:A34)," ") -> 15 | C34: Exempt
A35: =IF(ISBOLD(C35),0,1) -> 1 | B35: =IF(A35>0,SUM($A$18:A35)," ") -> 16 | C35: Non-exempt
A36: =IF(ISBOLD(C36),0,1) -> 1 | B36: =IF(A36>0,SUM($A$18:A36)," ") -> 17 | C36: Job class
A37: =IF(ISBOLD(C37),0,1) -> 1 | B37: =IF(A37>0,SUM($A$18:A37)," ") -> 18 | C37: By employee (including multiple jobs)
A38: =IF(ISBOLD(C38),0,1) -> 1 | B38: =IF(A38>0,SUM($A$18:A38)," ") -> 19 | C38: Other user defined rules and controls
A39: =IF(ISBOLD(C39),0,1) -> 1 | B39: =IF(A39>0,SUM($A$18:A39)," ") -> 20 | C39: The system charges hours worked without pay, for management tracking and analysis, for exempt employees (e.g. tracking hours over 80 hours for exempt employees)
A40: =IF(ISBOLD(C40),0,1) -> 1 | B40: =IF(A40>0,SUM($A$18:A40)," ") -> 21 | C40: The system accommodates multiple payroll schedules (for departments and employee groups)
A41: =IF(ISBOLD(C41),0,1) -> 1 | B41: =IF(A41>0,SUM($A$18:A41)," ") -> 22 | C41: The system limits chargeability to FMLA, if an employee has not worked enough hours for eligibility (e.g. 1,250 hours in a rolling year)
A42: =IF(ISBOLD(C42),0,1) -> 0 | B42: =IF(A42>0,SUM($A$18:A42)," ") ->  | C42: The system sets up pay codes by:
A43: =IF(ISBOLD(C43),0,1) -> 1 | B43: =IF(A43>0,SUM($A$18:A43)," ") -> 23 | C43: Day
A44: =IF(ISBOLD(C44),0,1) -> 1 | B44: =IF(A44>0,SUM($A$18:A44)," ") -> 24 | C44: Pay Period
A45: =IF(ISBOLD(C45),0,1) -> 1 | B45: =IF(A45>0,SUM($A$18:A45)," ") -> 25 | C45: Hour
A46: =IF(ISBOLD(C46),0,1) -> 1 | B46: =IF(A46>0,SUM($A$18:A46)," ") -> 26 | C46: Week
A47: =IF(ISBOLD(C47),0,1) -> 1 | B47: =IF(A47>0,SUM($A$18:A47)," ") -> 27 | C47: Year
A48: =IF(ISBOLD(C48),0,1) -> 1 | B48: =IF(A48>0,SUM($A$18:A48)," ") -> 28 | C48: The system identifies employee eligibility for holiday benefit (paid hours on the scheduled work day immediately preceding and the scheduled work day immediately following a holiday)
A49: =IF(ISBOLD(C49),0,1) -> 1 | B49: =IF(A49>0,SUM($A$18:A49)," ") -> 29 | C49: The system identifies holiday benefit eligibility for intermittent employees based on hours worked in pay period.-Hourly
A50: =IF(ISBOLD(C50),0,1) -> 1 | B50: =IF(A50>0,SUM($A$18:A50)," ") -> 30 | C50: The system calculates holiday benefit for part time employees by different methods depending on position classification (Example: based on hours worked in a pay period or based on average hours worked in previous payroll quarter)
A51: =IF(ISBOLD(C51),0,1) -> 1 | B51: =IF(A51>0,SUM($A$18:A51)," ") -> 31 | C51: The system flags observed holidays on the employee time sheet based upon employee schedule (e.g. Monday through Friday)
A52: =IF(ISBOLD(C52),0,1) -> 1 | B52: =IF(A52>0,SUM($A$18:A52)," ") -> 32 | C52: The system flags actual holidays on the employee time sheet based upon employee schedule (e.g. 24/7 employees)
A53: =IF(ISBOLD(C53),0,1) -> 1 | B53: =IF(A53>0,SUM($A$18:A53)," ") -> 33 | C53: The system overrides and inputs pay code charges, by employee, with security (e.g. central payroll or payroll contact)
A54: =IF(ISBOLD(C54),0,1) -> 1 | B54: =IF(A54>0,SUM($A$18:A54)," ") -> 34 | C54: The system calculates bank time, such as holiday time, special leave without pay and comp time, in accordance to holiday calendar, union contract, or department overtime plan
A55: =IF(ISBOLD(C55),0,1) -> 1 | B55: =IF(A55>0,SUM($A$18:A55)," ") -> 35 | C55: The system assigns comp time if employee works user-specified holiday days
A56: =IF(ISBOLD(C56),0,1) -> 1 | B56: =IF(A56>0,SUM($A$18:A56)," ") -> 36 | C56: The system banks holiday time if employee works user-specified holiday days
A57: =IF(ISBOLD(C57),0,1) -> 1 | B57: =IF(A57>0,SUM($A$18:A57)," ") -> 37 | C57: The system deletes banked holiday time if not used within a user-defined time frame (e.g. lose it at end of fiscal year)
A58: =IF(ISBOLD(C58),0,1) -> 1 | B58: =IF(A58>0,SUM($A$18:A58)," ") -> 38 | C58: The system calculates overtime on hours worked when employee has worked hours in multiple job classes and/or departments
A59: =IF(ISBOLD(C59),0,1) -> 1 | B59: =IF(A59>0,SUM($A$18:A59)," ") -> 39 | C59: The system assigns staff to supervisors in the system
A60: =IF(ISBOLD(C60),0,1) -> 1 | B60: =IF(A60>0,SUM($A$18:A60)," ") -> 40 | C60: The system is driven by employee self-service
A61: =IF(ISBOLD(C61),0,1) -> 1 | B61: =IF(A61>0,SUM($A$18:A61)," ") -> 41 | C61: The system provides a flag if employee attempts to enter comp time over the predetermined maximum
A62: =IF(ISBOLD(C62),0,1) -> 1 | B62: =IF(A62>0,SUM($A$18:A62)," ") -> 42 | C62: The system blocks access to FMLA codes on timesheet without prior approval
A63: =IF(ISBOLD(C63),0,1) -> 1 | B63: =IF(A63>0,SUM($A$18:A63)," ") -> 43 | C63: The system blocks access to Workers Comp code on timesheet without prior approval
A64: =IF(ISBOLD(C64),0,1) -> 1 | B64: =IF(A64>0,SUM($A$18:A64)," ") -> 44 | C64: The system accommodates time entry from mobile devices
A65: =IF(ISBOLD(C65),0,1) -> 1 | B65: =IF(A65>0,SUM($A$18:A65)," ") -> 45 | C65: The system accommodates sick leave donations
A66: =IF(ISBOLD(C66),0,1) -> 0 | B66: =IF(A66>0,SUM($A$18:A66)," ") ->  | C66: Accrual and Leave Tracking
A67: =IF(ISBOLD(C67),0,1) -> 1 | B67: =IF(A67>0,SUM($A$18:A67)," ") -> 46 | C67: The system tracks multiple accrual schedules for staff
A68: =IF(ISBOLD(C68),0,1) -> 1 | B68: =IF(A68>0,SUM($A$18:A68)," ") -> 47 | C68: The system automates movement of employees in and out of time accrual plans based on any given parameters or membership in employee groups
A69: =IF(ISBOLD(C69),0,1) -> 1 | B69: =IF(A69>0,SUM($A$18:A69)," ") -> 48 | C69: The system accommodates accrual by user-defined date range
A70: =IF(ISBOLD(C70),0,1) -> 1 | B70: =IF(A70>0,SUM($A$18:A70)," ") -> 49 | C70: The system sets up use-it-or-lose-it accruals maximums for various accruals
A71: =IF(ISBOLD(C71),0,1) -> 1 | B71: =IF(A71>0,SUM($A$18:A71)," ") -> 50 | C71: The system overrides use-it-or-lose-it accrual maximums for an employee, with security (e.g. HR director approval)
A72: =IF(ISBOLD(C72),0,1) -> 1 | B72: =IF(A72>0,SUM($A$18:A72)," ") -> 51 | C72: The system accommodates cumulative (rollover) and non-cumulative (use-it-or-lose-it) leave accruals. (e.g., by individual's hire date and bargaining unit)
A73: =IF(ISBOLD(C73),0,1) -> 1 | B73: =IF(A73>0,SUM($A$18:A73)," ") -> 52 | C73: The system updates accrual banks through the Time and Attendance interface
A74: =IF(ISBOLD(C74),0,1) -> 1 | B74: =IF(A74>0,SUM($A$18:A74)," ") -> 53 | C74: The system ages leave accruals
A75: =IF(ISBOLD(C75),0,1) -> 0 | B75: =IF(A75>0,SUM($A$18:A75)," ") ->  | C75: The system sets annual limits on the following:
A76: =IF(ISBOLD(C76),0,1) -> 1 | B76: =IF(A76>0,SUM($A$18:A76)," ") -> 54 | C76: Sick Leave
A77: =IF(ISBOLD(C77),0,1) -> 1 | B77: =IF(A77>0,SUM($A$18:A77)," ") -> 55 | C77: Vacation
A78: =IF(ISBOLD(C78),0,1) -> 1 | B78: =IF(A78>0,SUM($A$18:A78)," ") -> 56 | C78: Comp Time
A79: =IF(ISBOLD(C79),0,1) -> 1 | B79: =IF(A79>0,SUM($A$18:A79)," ") -> 57 | C79: Other personal accruals
A80: =IF(ISBOLD(C80),0,1) -> 1 | B80: =IF(A80>0,SUM($A$18:A80)," ") -> 58 | C80: The system sends alerts or notifications to employee and supervisor when accrual maximum for leave time(s) is approaching
A81: =IF(ISBOLD(C81),0,1) -> 1 | B81: =IF(A81>0,SUM($A$18:A81)," ") -> 59 | C81: The system sends alerts or notifications to employee and supervisor when leave expiration date is approaching year end (use or lose warning), include amount of leave set to expire and date of expiration
A82: =IF(ISBOLD(C82),0,1) -> 1 | B82: =IF(A82>0,SUM($A$18:A82)," ") -> 60 | C82: The system accommodates multiple leave accrual and expiration schedules when notifying employees of expiring accruals
A83: =IF(ISBOLD(C83),0,1) -> 1 | B83: =IF(A83>0,SUM($A$18:A83)," ") -> 61 | C83: The system accommodates notes or descriptions of leave balances to describe the date at which they will expire
A84: =IF(ISBOLD(C84),0,1) -> 1 | B84: =IF(A84>0,SUM($A$18:A84)," ") -> 62 | C84: The system performs edits to previous pay periods and recalculate pay and leave accruals from previous pay period forward
A85: =IF(ISBOLD(C85),0,1) -> 0 | B85: =IF(A85>0,SUM($A$18:A85)," ") ->  | C85: The system generates a "leave file" by user-defined time frame that summarizes the following:
A86: =IF(ISBOLD(C86),0,1) -> 1 | B86: =IF(A86>0,SUM($A$18:A86)," ") -> 63 | C86: Leave taken
A87: =IF(ISBOLD(C87),0,1) -> 1 | B87: =IF(A87>0,SUM($A$18:A87)," ") -> 64 | C87: Current accrual balances
A88: =IF(ISBOLD(C88),0,1) -> 1 | B88: =IF(A88>0,SUM($A$18:A88)," ") -> 65 | C88: Projected accrual balances
A89: =IF(ISBOLD(C89),0,1) -> 1 | B89: =IF(A89>0,SUM($A$18:A89)," ") -> 66 | C89: The system accommodates on-demand accruals of salaries and benefits (for a user-specified date)
A90: =IF(ISBOLD(C90),0,1) -> 1 | B90: =IF(A90>0,SUM($A$18:A90)," ") -> 67 | C90: The system accrues compensated absences by pay period, by a set number of hours, by hire date, month of hire, or by other user defined criteria
A91: =IF(ISBOLD(C91),0,1) -> 1 | B91: =IF(A91>0,SUM($A$18:A91)," ") -> 68 | C91: The system tracks and reports on vacation, sick, and personal hours lost because balance is at the cap
A92: =IF(ISBOLD(C92),0,1) -> 1 | B92: =IF(A92>0,SUM($A$18:A92)," ") -> 69 | C92: The system computes lump sum compensated absences (I.e. sick leave, vacation) at the beginning or during a fiscal period, by a set number of hours, by hire date, by month of hire, or by other user defined criteria
A93: =IF(ISBOLD(C93),0,1) -> 1 | B93: =IF(A93>0,SUM($A$18:A93)," ") -> 70 | C93: The system calculates vacation accrual by most recent start date for specified positions (e.g. PT positions)
A94: =IF(ISBOLD(C94),0,1) -> 1 | B94: =IF(A94>0,SUM($A$18:A94)," ") -> 71 | C94: The system notifies appropriate HR staff (generates an email), if a defined number of consecutive sick days are used by an employee
A95: =IF(ISBOLD(C95),0,1) -> 0 | B95: =IF(A95>0,SUM($A$18:A95)," ") ->  | C95: Project and Time Management
A96: =IF(ISBOLD(C96),0,1) -> 1 | B96: =IF(A96>0,SUM($A$18:A96)," ") -> 72 | C96: The system overrides and inputs project charges, by employee with security (e.g. central payroll)
A97: =IF(ISBOLD(C97),0,1) -> 1 | B97: =IF(A97>0,SUM($A$18:A97)," ") -> 73 | C97: The system records staff time to a specific project and displays this information for reporting purposes
A98: =IF(ISBOLD(C98),0,1) -> 1 | B98: =IF(A98>0,SUM($A$18:A98)," ") -> 74 | C98: The system tracks project and non-project time
A99: =IF(ISBOLD(C99),0,1) -> 1 | B99: =IF(A99>0,SUM($A$18:A99)," ") -> 75 | C99: The system inputs and tracks projects, activities and tasks
A100: =IF(ISBOLD(C100),0,1) -> 1 | B100: =IF(A100>0,SUM($A$18:A100)," ") -> 76 | C100: The system limits chargeability to projects based upon employee, job class, department, and other criteria
A101: =IF(ISBOLD(C101),0,1) -> 1 | B101: =IF(A101>0,SUM($A$18:A101)," ") -> 77 | C101: The system links payroll project information to project billing information
A102: =IF(ISBOLD(C102),0,1) -> 1 | B102: =IF(A102>0,SUM($A$18:A102)," ") -> 78 | C102: The system users create and manage their own lists of frequently used projects
A103: =IF(ISBOLD(C103),0,1) -> 1 | B103: =IF(A103>0,SUM($A$18:A103)," ") -> 79 | C103: The system allows staff to assign time to multiple projects
A104: =IF(ISBOLD(C104),0,1) -> 1 | B104: =IF(A104>0,SUM($A$18:A104)," ") -> 80 | C104: The system creates default timesheet with hours, and allows editing with security
A105: =IF(ISBOLD(C105),0,1) -> 1 | B105: =IF(A105>0,SUM($A$18:A105)," ") -> 81 | C105: The system defaults timesheet options with user preferred codes
A106: =IF(ISBOLD(C106),0,1) -> 1 | B106: =IF(A106>0,SUM($A$18:A106)," ") -> 82 | C106: The system allows sub categories for time entry (e.g.: hire back - sub category sick time)
A107: =IF(ISBOLD(C107),0,1) -> 0 | B107: =IF(A107>0,SUM($A$18:A107)," ") ->  | C107: Time Entry Data Capture
A108: =IF(ISBOLD(C108),0,1) -> 1 | B108: =IF(A108>0,SUM($A$18:A108)," ") -> 83 | C108: The system utilizes web-based time entry
A109: =IF(ISBOLD(C109),0,1) -> 0 | B109: =IF(A109>0,SUM($A$18:A109)," ") ->  | C109: The system supports the following types of time entry:
A110: =IF(ISBOLD(C110),0,1) -> 1 | B110: =IF(A110>0,SUM($A$18:A110)," ") -> 84 | C110: Employee self service
A111: =IF(ISBOLD(C111),0,1) -> 1 | B111: =IF(A111>0,SUM($A$18:A111)," ") -> 85 | C111: Batch entry by payroll contact
A112: =IF(ISBOLD(C112),0,1) -> 1 | B112: =IF(A112>0,SUM($A$18:A112)," ") -> 86 | C112: Current time entry (entering time that will be worked in future days)
A113: =IF(ISBOLD(C113),0,1) -> 1 | B113: =IF(A113>0,SUM($A$18:A113)," ") -> 87 | C113: The system submits time in 15 minute increments
A114: =IF(ISBOLD(C114),0,1) -> 1 | B114: =IF(A114>0,SUM($A$18:A114)," ") -> 88 | C114: The system allows employees to charge to multiple cost centers and projects, with security
A115: =IF(ISBOLD(C115),0,1) -> 1 | B115: =IF(A115>0,SUM($A$18:A115)," ") -> 89 | C115: The system allows employees to assign a project name (either free text input or selected from a pre-defined data set) for each 15 minute increment of time reported
A116: =IF(ISBOLD(C116),0,1) -> 1 | B116: =IF(A116>0,SUM($A$18:A116)," ") -> 90 | C116: The system can record more than 24 hours of time in a single day for emergency situations
A117: =IF(ISBOLD(C117),0,1) -> 1 | B117: =IF(A117>0,SUM($A$18:A117)," ") -> 91 | C117: The system defaults employee timesheet with employee's linked department and cost centers
A118: =IF(ISBOLD(C118),0,1) -> 1 | B118: =IF(A118>0,SUM($A$18:A118)," ") -> 92 | C118: The system overrides default employee cost center charging, with security
A119: =IF(ISBOLD(C119),0,1) -> 1 | B119: =IF(A119>0,SUM($A$18:A119)," ") -> 93 | C119: The system shows multiple detailed and summary timesheet views
A120: =IF(ISBOLD(C120),0,1) -> 1 | B120: =IF(A120>0,SUM($A$18:A120)," ") -> 94 | C120: The system validates time entered against sick leave, personal leave, and vacation balances
A121: =IF(ISBOLD(C121),0,1) -> 1 | B121: =IF(A121>0,SUM($A$18:A121)," ") -> 95 | C121: The system captures vacation, sick leave and personal leave usage on an employee's time record
A122: =IF(ISBOLD(C122),0,1) -> 1 | B122: =IF(A122>0,SUM($A$18:A122)," ") -> 96 | C122: The system automatically calculates/restores sick leave and vacation hours used for worker's compensation
A123: =IF(ISBOLD(C123),0,1) -> 1 | B123: =IF(A123>0,SUM($A$18:A123)," ") -> 97 | C123: The system projects vacation, sick and personal accruals for employees
A124: =IF(ISBOLD(C124),0,1) -> 1 | B124: =IF(A124>0,SUM($A$18:A124)," ") -> 98 | C124: The system allows entry of time into future pay periods
A125: =IF(ISBOLD(C125),0,1) -> 1 | B125: =IF(A125>0,SUM($A$18:A125)," ") -> 99 | C125: The system allows employees to utilize projected sick, personal, and vacation balances before accrual but would be accrued in the current pay period, with proper security
A126: =IF(ISBOLD(C126),0,1) -> 1 | B126: =IF(A126>0,SUM($A$18:A126)," ") -> 100 | C126: The system allows real time leave balances during time entry with warnings
A127: =IF(ISBOLD(C127),0,1) -> 1 | B127: =IF(A127>0,SUM($A$18:A127)," ") -> 101 | C127: The system allows an employee to approve time sheet electronically
A128: =IF(ISBOLD(C128),0,1) -> 1 | B128: =IF(A128>0,SUM($A$18:A128)," ") -> 102 | C128: The system allows multiple supervisors to approve employees' sheet electronically based on employees position and supervisor
A129: =IF(ISBOLD(C129),0,1) -> 1 | B129: =IF(A129>0,SUM($A$18:A129)," ") -> 103 | C129: The system allows for multiple supervisors to approve employee's sheet electronically based on supervisor shift schedule and location
A130: =IF(ISBOLD(C130),0,1) -> 1 | B130: =IF(A130>0,SUM($A$18:A130)," ") -> 104 | C130: The system allows for multiple approval periods for different departments (daily, weekly, bi-weekly)
A131: =IF(ISBOLD(C131),0,1) -> 1 | B131: =IF(A131>0,SUM($A$18:A131)," ") -> 105 | C131: The system allows employee to enter time for multiple positions
A132: =IF(ISBOLD(C132),0,1) -> 1 | B132: =IF(A132>0,SUM($A$18:A132)," ") -> 106 | C132: The system has multiple pay rates for an employee and records time against these multiple pay rates (Example: employees in Public Works may receive a different base rate when working with different equipment or acting as foreman)
A133: =IF(ISBOLD(C133),0,1) -> 1 | B133: =IF(A133>0,SUM($A$18:A133)," ") -> 107 | C133: The system allows authorized users to review, edit and submit changes to employee's electronic time sheet
A134: =IF(ISBOLD(C134),0,1) -> 1 | B134: =IF(A134>0,SUM($A$18:A134)," ") -> 108 | C134: The system has multiple hourly rates in a pay period and at a shift level, and to track changes in one pay period because of salary adjustments during a pay period (e.g. mid pay period salary change such as promotion or demotion)
A135: =IF(ISBOLD(C135),0,1) -> 1 | B135: =IF(A135>0,SUM($A$18:A135)," ") -> 109 | C135: The system allows employees, supervisors and payroll contacts to view historical time sheets
A136: =IF(ISBOLD(C136),0,1) -> 1 | B136: =IF(A136>0,SUM($A$18:A136)," ") -> 110 | C136: The system tracks the source of time input (e.g., supervisor, employee, other inputs)
A137: =IF(ISBOLD(C137),0,1) -> 1 | B137: =IF(A137>0,SUM($A$18:A137)," ") -> 111 | C137: The system allows an employee's time sheet to be populated with projects specific to that individual over consecutive pay periods without having to re-enter each project
A138: =IF(ISBOLD(C138),0,1) -> 1 | B138: =IF(A138>0,SUM($A$18:A138)," ") -> 112 | C138: The system edits/overrides the pre-populated time sheet
A139: =IF(ISBOLD(C139),0,1) -> 1 | B139: =IF(A139>0,SUM($A$18:A139)," ") -> 113 | C139: The system establishes "quick key" data entry for some positions or employees types (key driven not mouse driven)
A140: =IF(ISBOLD(C140),0,1) -> 1 | B140: =IF(A140>0,SUM($A$18:A140)," ") -> 114 | C140: The system tracks how comp time is earned (e.g., call back)
A141: =IF(ISBOLD(C141),0,1) -> 1 | B141: =IF(A141>0,SUM($A$18:A141)," ") -> 115 | C141: The system tracks reason for hire-backs (sick time/comp time)
A142: =IF(ISBOLD(C142),0,1) -> 1 | B142: =IF(A142>0,SUM($A$18:A142)," ") -> 116 | C142: The system allows categorization of over-time codes as pensionable and non-pensionable
A143: =IF(ISBOLD(C143),0,1) -> 0 | B143: =IF(A143>0,SUM($A$18:A143)," ") ->  | C143: Time and Expense Management
A144: =IF(ISBOLD(C144),0,1) -> 1 | B144: =IF(A144>0,SUM($A$18:A144)," ") -> 117 | C144: The system attaches and appends notes to the timesheet
A145: =IF(ISBOLD(C145),0,1) -> 1 | B145: =IF(A145>0,SUM($A$18:A145)," ") -> 118 | C145: The system attaches scanned support to the timesheet
A146: =IF(ISBOLD(C146),0,1) -> 1 | B146: =IF(A146>0,SUM($A$18:A146)," ") -> 119 | C146: The system sets up various timesheet templates
A147: =IF(ISBOLD(C147),0,1) -> 1 | B147: =IF(A147>0,SUM($A$18:A147)," ") -> 120 | C147: The system searches timesheets
A148: =IF(ISBOLD(C148),0,1) -> 1 | B148: =IF(A148>0,SUM($A$18:A148)," ") -> 121 | C148: The system processes retroactive timesheet changes with security
A149: =IF(ISBOLD(C149),0,1) -> 1 | B149: =IF(A149>0,SUM($A$18:A149)," ") -> 122 | C149: The system includes capabilities for vacation, sick, personal, overtime, and other payroll tracking
A150: =IF(ISBOLD(C150),0,1) -> 1 | B150: =IF(A150>0,SUM($A$18:A150)," ") -> 123 | C150: The system locks timesheet periods
A151: =IF(ISBOLD(C151),0,1) -> 1 | B151: =IF(A151>0,SUM($A$18:A151)," ") -> 124 | C151: The system allows the ability to override errors preventing a period close out (e.g., employees are still signed into the system)
A152: =IF(ISBOLD(C152),0,1) -> 1 | B152: =IF(A152>0,SUM($A$18:A152)," ") -> 125 | C152: The system notifies supervisors when employees are approaching an hourly, monthly, and annual work cap with user-defined lead time
A153: =IF(ISBOLD(C153),0,1) -> 0 | B153: =IF(A153>0,SUM($A$18:A153)," ") ->  | C153: Reports, Analysis and Inquiries
A154: =IF(ISBOLD(C154),0,1) -> 1 | B154: =IF(A154>0,SUM($A$18:A154)," ") -> 126 | C154: The system tracks user leave balances by employee
A155: =IF(ISBOLD(C155),0,1) -> 1 | B155: =IF(A155>0,SUM($A$18:A155)," ") -> 127 | C155: The system tracks and rolls up leave balances by division or department for reporting
A156: =IF(ISBOLD(C156),0,1) -> 1 | B156: =IF(A156>0,SUM($A$18:A156)," ") -> 128 | C156: The system tracks labor distribution and accounting
A157: =IF(ISBOLD(C157),0,1) -> 1 | B157: =IF(A157>0,SUM($A$18:A157)," ") -> 129 | C157: The system tracks sick time usage and overtime
A158: =IF(ISBOLD(C158),0,1) -> 1 | B158: =IF(A158>0,SUM($A$18:A158)," ") -> 130 | C158: The system integrates payroll with position control tracking, FTE reporting and other information
A159: =IF(ISBOLD(C159),0,1) -> 1 | B159: =IF(A159>0,SUM($A$18:A159)," ") -> 131 | C159: The system tracks grant related time entry by grant number
A160: =IF(ISBOLD(C160),0,1) -> 1 | B160: =IF(A160>0,SUM($A$18:A160)," ") -> 132 | C160: The system performs historical reporting/trend analysis on earnings
A161: =IF(ISBOLD(C161),0,1) -> 1 | B161: =IF(A161>0,SUM($A$18:A161)," ") -> 133 | C161: The system costs the impact of changes to base rates, special earnings rates, deduction rates based on past usage (by rep code, job class, department, etc.)
A162: =IF(ISBOLD(C162),0,1) -> 1 | B162: =IF(A162>0,SUM($A$18:A162)," ") -> 134 | C162: The system reports on costs for holidays worked and holiday paid
A163: =IF(ISBOLD(C163),0,1) -> 1 | B163: =IF(A163>0,SUM($A$18:A163)," ") -> 135 | C163: The system reports on cost savings from vacation, sick, personal hours lost-floating holidays
A164: =IF(ISBOLD(C164),0,1) -> 1 | B164: =IF(A164>0,SUM($A$18:A164)," ") -> 136 | C164: The system reports on employees by earning codes or special pay codes (e.g. on call employees, or uniform allowance employees)
A165: =IF(ISBOLD(C165),0,1) -> 1 | B165: =IF(A165>0,SUM($A$18:A165)," ") -> 137 | C165: The system reports on source of time input (e.g. employee vs. supervisor)
A166: =IF(ISBOLD(C166),0,1) -> 1 | B166: =IF(A166>0,SUM($A$18:A166)," ") -> 138 | C166: The system reports on individuals who have not entered in time sheet information | D166: x
A167: =IF(ISBOLD(C167),0,1) -> 1 | B167: =IF(A167>0,SUM($A$18:A167)," ") -> 139 | C167: The system reports on and aggregates earnings hours and dollars for a specified period of time by employee (ex: dates and hours of suspension time; workers compensation hours, dates and totals
A168: =IF(ISBOLD(C168),0,1) -> 1 | B168: =IF(A168>0,SUM($A$18:A168)," ") -> 140 | C168: The system produces FLSA reports
A169: =IF(ISBOLD(C169),0,1) -> 1 | B169: =IF(A169>0,SUM($A$18:A169)," ") -> 141 | C169: The system maintains a balance (positive or negative) of hours owed to the government (based on discrepancies between hours scheduled and hours required for the position)
A170: =IF(ISBOLD(C170),0,1) -> 1 | B170: =IF(A170>0,SUM($A$18:A170)," ") -> 142 | C170: The system reports on comp time taken year to date by employee
A171: =IF(ISBOLD(C171),0,1) -> 1 | B171: =IF(A171>0,SUM($A$18:A171)," ") -> 143 | C171: The system reports on time spent issuing tickets for applicable grants (officer, date, ticket, ticket amount)
A172: =IF(ISBOLD(C172),0,1) -> 1 | B172: =IF(A172>0,SUM($A$18:A172)," ") -> 144 | C172: The system batch prints supporting grant report documentation (scanned tickets)
A173: =IF(ISBOLD(C173),0,1) -> 1 | B173: =IF(A173>0,SUM($A$18:A173)," ") -> 145 | C173: The system reports total hours worked per employee based on user-defined date range (e.g. to track CalPERS 960 hour cap)

Sheet Human Resources
C1: Requirements Survey
C2: Human Resources | E2: Requirements Response Rules:
C3: The following functional, technical, workflow and reporting needs provide the minimum requirements of the Town of Colma. Please review the items carefully and respond in accordance with the requirements response rules provided. Any partial response will be deemed as an invalid response. MANDATORY: EVERY REQUIREMENT (Req#) MUST HAVE A RESPONSE TO BE CONSIDERED COMPLETE. | E3: Column #1. Mandatory: Proposers are required to input one response per requirement using the drop down list provided. Response Types: F=Fully provided out of the box, or fully provided out of the box through basic configuration Mod= Provided through a technical modification of the software (i.e. a customization) TP = Provided through a proposed third party application or capability CR= Custom report requiring development SR = Standard report provided through a built in or proposed reporting tool NA = Not Available Column #2. Proposers are requested to itemize estimated costs for all modification requirements. Column #3. Proposers are requested to list the third party product name for all Third Party Product requirements. Column #4. Mandatory: Proposers are required to mark yes or no to whether the implementation costs of this functionality is included in their cost proposal. Column #5. Mandatory: Proposers are required to mark yes or no to whether the training costs of this functionality is included in their cost proposal. Column #6. If a subcontractor is implementing or providing training for this functionality, please indicate the name of the subcontracting firm responsible for this functionality. Column #7. Mandatory: Proposers are required to list the version number for all functionality proposed to the Town.
B13: Req# | C13: PROCESS | D13: High Priority | E13: 1.Response | F13: 2.Costs for Mod response | G13: 3.Third Party Application for TP response | H13: 4. Included in Implementation Costs | I13: 5. Included in training costs | J13: 6. Subcontractor | K13: 7. Version Number | L13: Comments/Narrative
H15: Yes/No | I15: Yes/No
C16: Staffing
C17: Processing Employees
A18: =IF(ISBOLD(C18),0,1) -> 0 | C18: The system defines a checklist based upon employee life cycle changes:
A19: =IF(ISBOLD(C19),0,1) -> 1 | B19: =IF(A19>0,SUM($A$18:A19)," ") -> 1 | C19: New Hire
A20: =IF(ISBOLD(C20),0,1) -> 1 | B20: =IF(A20>0,SUM($A$18:A20)," ") -> 2 | C20: Transfer
A21: =IF(ISBOLD(C21),0,1) -> 1 | B21: =IF(A21>0,SUM($A$18:A21)," ") -> 3 | C21: Terminations
A22: =IF(ISBOLD(C22),0,1) -> 1 | B22: =IF(A22>0,SUM($A$18:A22)," ") -> 4 | C22: Retirements
A23: =IF(ISBOLD(C23),0,1) -> 1 | B23: =IF(A23>0,SUM($A$18:A23)," ") -> 5 | C23: Voluntary leave
A24: =IF(ISBOLD(C24),0,1) -> 1 | B24: =IF(A24>0,SUM($A$18:A24)," ") -> 6 | C24: Exit Interviews
A25: =IF(ISBOLD(C25),0,1) -> 1 | B25: =IF(A25>0,SUM($A$18:A25)," ") -> 7 | C25: The system defines the frequency of items within a checklist (e.g. annual, and other frequencies)
A26: =IF(ISBOLD(C26),0,1) -> 1 | B26: =IF(A26>0,SUM($A$18:A26)," ") -> 8 | C26: The system sends a notification to HR when budgeted positions are established and when new positions are created
A27: =IF(ISBOLD(C27),0,1) -> 1 | B27: =IF(A27>0,SUM($A$18:A27)," ") -> 9 | C27: The system tracks the gender, race (self-identified), and disability for applicants
A28: =IF(ISBOLD(C28),0,1) -> 1 | B28: =IF(A28>0,SUM($A$18:A28)," ") -> 10 | C28: The system searches by credentials for employees (i.e. ability to speak Spanish).
A29: =IF(ISBOLD(C29),0,1) -> 0 | B29: =IF(A29>0,SUM($A$18:A29)," ") ->  | C29: Employee Rights
A30: =IF(ISBOLD(C30),0,1) -> 1 | B30: =IF(A30>0,SUM($A$18:A30)," ") -> 11 | C30: The system tracks placement activities for employees on layoff
A31: =IF(ISBOLD(C31),0,1) -> 1 | B31: =IF(A31>0,SUM($A$18:A31)," ") -> 12 | C31: The system compares layoff employee personnel file to match for potential open positions based upon qualifications, skills, seniority, or other information
A32: =IF(ISBOLD(C32),0,1) -> 1 | B32: =IF(A32>0,SUM($A$18:A32)," ") -> 13 | C32: The system tracks how many employees are currently on layoff to how many have been recalled
A33: =IF(ISBOLD(C33),0,1) -> 0 | B33: =IF(A33>0,SUM($A$18:A33)," ") ->  | C33: Process Employee Changes Set Up
A34: =IF(ISBOLD(C34),0,1) -> 1 | B34: =IF(A34>0,SUM($A$18:A34)," ") -> 14 | C34: The system sets up an employee master file for each employee.
A35: =IF(ISBOLD(C35),0,1) -> 0 | B35: =IF(A35>0,SUM($A$18:A35)," ") ->  | C35: The system inputs and tracks the following information for each employee:
A36: =IF(ISBOLD(C36),0,1) -> 1 | B36: =IF(A36>0,SUM($A$18:A36)," ") -> 15 | C36: Last name
A37: =IF(ISBOLD(C37),0,1) -> 1 | B37: =IF(A37>0,SUM($A$18:A37)," ") -> 16 | C37: Middle Name
A38: =IF(ISBOLD(C38),0,1) -> 1 | B38: =IF(A38>0,SUM($A$18:A38)," ") -> 17 | C38: First Name
A39: =IF(ISBOLD(C39),0,1) -> 1 | B39: =IF(A39>0,SUM($A$18:A39)," ") -> 18 | C39: Suffix
A40: =IF(ISBOLD(C40),0,1) -> 1 | B40: =IF(A40>0,SUM($A$18:A40)," ") -> 19 | C40: Prefix
A41: =IF(ISBOLD(C41),0,1) -> 1 | B41: =IF(A41>0,SUM($A$18:A41)," ") -> 20 | C41: Maiden name
A42: =IF(ISBOLD(C42),0,1) -> 1 | B42: =IF(A42>0,SUM($A$18:A42)," ") -> 21 | C42: Other name / alias
A43: =IF(ISBOLD(C43),0,1) -> 1 | B43: =IF(A43>0,SUM($A$18:A43)," ") -> 22 | C43: Employee number
A44: =IF(ISBOLD(C44),0,1) -> 1 | B44: =IF(A44>0,SUM($A$18:A44)," ") -> 23 | C44: Social Security number
A45: =IF(ISBOLD(C45),0,1) -> 1 | B45: =IF(A45>0,SUM($A$18:A45)," ") -> 24 | C45: Birth date
A46: =IF(ISBOLD(C46),0,1) -> 1 | B46: =IF(A46>0,SUM($A$18:A46)," ") -> 25 | C46: Multiple Addresses
A47: =IF(ISBOLD(C47),0,1) -> 1 | B47: =IF(A47>0,SUM($A$18:A47)," ") -> 26 | C47: Multiple Telephone Numbers
A48: =IF(ISBOLD(C48),0,1) -> 1 | B48: =IF(A48>0,SUM($A$18:A48)," ") -> 27 | C48: Multiple e-mail addresses
A49: =IF(ISBOLD(C49),0,1) -> 1 | B49: =IF(A49>0,SUM($A$18:A49)," ") -> 28 | C49: Address
A50: =IF(ISBOLD(C50),0,1) -> 1 | B50: =IF(A50>0,SUM($A$18:A50)," ") -> 29 | C50: Gender
A51: =IF(ISBOLD(C51),0,1) -> 1 | B51: =IF(A51>0,SUM($A$18:A51)," ") -> 30 | C51: Multiple Emergency Contact
A52: =IF(ISBOLD(C52),0,1) -> 1 | B52: =IF(A52>0,SUM($A$18:A52)," ") -> 31 | C52: Race/EthniTown
A53: =IF(ISBOLD(C53),0,1) -> 1 | B53: =IF(A53>0,SUM($A$18:A53)," ") -> 32 | C53: US Citizen
A54: =IF(ISBOLD(C54),0,1) -> 1 | B54: =IF(A54>0,SUM($A$18:A54)," ") -> 33 | C54: Multiple User Defined Age Groups
A55: =IF(ISBOLD(C55),0,1) -> 1 | B55: =IF(A55>0,SUM($A$18:A55)," ") -> 34 | C55: Visa status
A56: =IF(ISBOLD(C56),0,1) -> 1 | B56: =IF(A56>0,SUM($A$18:A56)," ") -> 35 | C56: Marital Status
A57: =IF(ISBOLD(C57),0,1) -> 1 | B57: =IF(A57>0,SUM($A$18:A57)," ") -> 36 | C57: Spousal and Dependent Names
A58: =IF(ISBOLD(C58),0,1) -> 1 | B58: =IF(A58>0,SUM($A$18:A58)," ") -> 37 | C58: Spousal & Dependent Social Security Numbers
A59: =IF(ISBOLD(C59),0,1) -> 1 | B59: =IF(A59>0,SUM($A$18:A59)," ") -> 38 | C59: Spousal & Dependent Dates of Birth
A60: =IF(ISBOLD(C60),0,1) -> 1 | B60: =IF(A60>0,SUM($A$18:A60)," ") -> 39 | C60: Dependent school status
A61: =IF(ISBOLD(C61),0,1) -> 1 | B61: =IF(A61>0,SUM($A$18:A61)," ") -> 40 | C61: Veteran Status
A62: =IF(ISBOLD(C62),0,1) -> 1 | B62: =IF(A62>0,SUM($A$18:A62)," ") -> 41 | C62: Veteran's disability status
A63: =IF(ISBOLD(C63),0,1) -> 1 | B63: =IF(A63>0,SUM($A$18:A63)," ") -> 42 | C63: Veteran's protected class
A64: =IF(ISBOLD(C64),0,1) -> 1 | B64: =IF(A64>0,SUM($A$18:A64)," ") -> 43 | C64: Drivers License Expiration Date
A65: =IF(ISBOLD(C65),0,1) -> 1 | B65: =IF(A65>0,SUM($A$18:A65)," ") -> 44 | C65: Drivers License Restrictions
A66: =IF(ISBOLD(C66),0,1) -> 1 | B66: =IF(A66>0,SUM($A$18:A66)," ") -> 45 | C66: Drivers License Class
A67: =IF(ISBOLD(C67),0,1) -> 1 | B67: =IF(A67>0,SUM($A$18:A67)," ") -> 46 | C67: Vehicle Insurance Information
A68: =IF(ISBOLD(C68),0,1) -> 1 | B68: =IF(A68>0,SUM($A$18:A68)," ") -> 47 | C68: Educational Degrees
A69: =IF(ISBOLD(C69),0,1) -> 1 | B69: =IF(A69>0,SUM($A$18:A69)," ") -> 48 | C69: Certifications
A70: =IF(ISBOLD(C70),0,1) -> 1 | B70: =IF(A70>0,SUM($A$18:A70)," ") -> 49 | C70: Credential Information
A71: =IF(ISBOLD(C71),0,1) -> 1 | B71: =IF(A71>0,SUM($A$18:A71)," ") -> 50 | C71: Seniority
A72: =IF(ISBOLD(C72),0,1) -> 1 | B72: =IF(A72>0,SUM($A$18:A72)," ") -> 51 | C72: Supervisor
A73: =IF(ISBOLD(C73),0,1) -> 1 | B73: =IF(A73>0,SUM($A$18:A73)," ") -> 52 | C73: Class specification
A74: =IF(ISBOLD(C74),0,1) -> 1 | B74: =IF(A74>0,SUM($A$18:A74)," ") -> 53 | C74: Workers Compensation Class Code (Regular, Protective, and Administrative)
A75: =IF(ISBOLD(C75),0,1) -> 1 | B75: =IF(A75>0,SUM($A$18:A75)," ") -> 54 | C75: Building
A76: =IF(ISBOLD(C76),0,1) -> 1 | B76: =IF(A76>0,SUM($A$18:A76)," ") -> 55 | C76: Department
A77: =IF(ISBOLD(C77),0,1) -> 1 | B77: =IF(A77>0,SUM($A$18:A77)," ") -> 56 | C77: Status as a contracted employee
A78: =IF(ISBOLD(C78),0,1) -> 1 | B78: =IF(A78>0,SUM($A$18:A78)," ") -> 57 | C78: Status as Volunteer (unpaid employee)
A79: =IF(ISBOLD(C79),0,1) -> 1 | B79: =IF(A79>0,SUM($A$18:A79)," ") -> 58 | C79: Total household income (select range) for Affordable Care Act reporting
A80: =IF(ISBOLD(C80),0,1) -> 1 | B80: =IF(A80>0,SUM($A$18:A80)," ") -> 59 | C80: Other criteria
A81: =IF(ISBOLD(C81),0,1) -> 1 | B81: =IF(A81>0,SUM($A$18:A81)," ") -> 60 | C81: The system auto-generates an employee number but allows for manual override
A82: =IF(ISBOLD(C82),0,1) -> 1 | B82: =IF(A82>0,SUM($A$18:A82)," ") -> 61 | C82: The system flags any of the elements on the employee file as mandatory
A83: =IF(ISBOLD(C83),0,1) -> 1 | B83: =IF(A83>0,SUM($A$18:A83)," ") -> 62 | C83: The system has the flexibility to blind field level data based upon security, e.g., Social Security Numbers are not viewable on the employee master for selected staff.
A84: =IF(ISBOLD(C84),0,1) -> 0 | B84: =IF(A84>0,SUM($A$18:A84)," ") ->  | C84: The system maintains the following employment data, with effective dating for each employee:
A85: =IF(ISBOLD(C85),0,1) -> 1 | B85: =IF(A85>0,SUM($A$18:A85)," ") -> 63 | C85: Original service/hire date
A86: =IF(ISBOLD(C86),0,1) -> 1 | B86: =IF(A86>0,SUM($A$18:A86)," ") -> 64 | C86: Status (active, inactive, temporary) | D86: x
A87: =IF(ISBOLD(C87),0,1) -> 1 | B87: =IF(A87>0,SUM($A$18:A87)," ") -> 65 | C87: Employee type (full-time, part-time, seasonal, etc.) | D87: x
A88: =IF(ISBOLD(C88),0,1) -> 1 | B88: =IF(A88>0,SUM($A$18:A88)," ") -> 66 | C88: Date in current position
A89: =IF(ISBOLD(C89),0,1) -> 1 | B89: =IF(A89>0,SUM($A$18:A89)," ") -> 67 | C89: Date hired into department
A90: =IF(ISBOLD(C90),0,1) -> 1 | B90: =IF(A90>0,SUM($A$18:A90)," ") -> 68 | C90: Date hired into division
A91: =IF(ISBOLD(C91),0,1) -> 1 | B91: =IF(A91>0,SUM($A$18:A91)," ") -> 69 | C91: Date assigned to supervisor
A92: =IF(ISBOLD(C92),0,1) -> 1 | B92: =IF(A92>0,SUM($A$18:A92)," ") -> 70 | C92: Date hired as a full time employee | D92: x
A93: =IF(ISBOLD(C93),0,1) -> 1 | B93: =IF(A93>0,SUM($A$18:A93)," ") -> 71 | C93: Longevity (calculated from full time hire date)
A94: =IF(ISBOLD(C94),0,1) -> 1 | B94: =IF(A94>0,SUM($A$18:A94)," ") -> 72 | C94: Rehire date(s) | D94: x
A95: =IF(ISBOLD(C95),0,1) -> 1 | B95: =IF(A95>0,SUM($A$18:A95)," ") -> 73 | C95: Retirement date
A96: =IF(ISBOLD(C96),0,1) -> 1 | B96: =IF(A96>0,SUM($A$18:A96)," ") -> 74 | C96: Terminated (Y/N)
A97: =IF(ISBOLD(C97),0,1) -> 1 | B97: =IF(A97>0,SUM($A$18:A97)," ") -> 75 | C97: Termination date (multiple)
A98: =IF(ISBOLD(C98),0,1) -> 1 | B98: =IF(A98>0,SUM($A$18:A98)," ") -> 76 | C98: Multiple Reasons for Termination
A99: =IF(ISBOLD(C99),0,1) -> 1 | B99: =IF(A99>0,SUM($A$18:A99)," ") -> 77 | C99: Multiple Locations (i.e., possibly because of more than one position)
A100: =IF(ISBOLD(C100),0,1) -> 1 | B100: =IF(A100>0,SUM($A$18:A100)," ") -> 78 | C100: Multiple Departments
A101: =IF(ISBOLD(C101),0,1) -> 1 | B101: =IF(A101>0,SUM($A$18:A101)," ") -> 79 | C101: Multiple Divisions
A102: =IF(ISBOLD(C102),0,1) -> 1 | B102: =IF(A102>0,SUM($A$18:A102)," ") -> 80 | C102: Multiple Cost Centers (including projects)
A103: =IF(ISBOLD(C103),0,1) -> 1 | B103: =IF(A103>0,SUM($A$18:A103)," ") -> 81 | C103: Multiple Units
A104: =IF(ISBOLD(C104),0,1) -> 1 | B104: =IF(A104>0,SUM($A$18:A104)," ") -> 82 | C104: Multiple Position (Working) Titles
A105: =IF(ISBOLD(C105),0,1) -> 1 | B105: =IF(A105>0,SUM($A$18:A105)," ") -> 83 | C105: Multiple Position Numbers
A106: =IF(ISBOLD(C106),0,1) -> 1 | B106: =IF(A106>0,SUM($A$18:A106)," ") -> 84 | C106: Multiple Job Titles
A107: =IF(ISBOLD(C107),0,1) -> 1 | B107: =IF(A107>0,SUM($A$18:A107)," ") -> 85 | C107: Multiple Job Classes
A108: =IF(ISBOLD(C108),0,1) -> 1 | B108: =IF(A108>0,SUM($A$18:A108)," ") -> 86 | C108: Multiple overtime codes (one per job class/department)
A109: =IF(ISBOLD(C109),0,1) -> 1 | B109: =IF(A109>0,SUM($A$18:A109)," ") -> 87 | C109: Multiple pay codes
A110: =IF(ISBOLD(C110),0,1) -> 1 | B110: =IF(A110>0,SUM($A$18:A110)," ") -> 88 | C110: Multiple Job Class Dates
A111: =IF(ISBOLD(C111),0,1) -> 1 | B111: =IF(A111>0,SUM($A$18:A111)," ") -> 89 | C111: Multiple Appointment Codes
A112: =IF(ISBOLD(C112),0,1) -> 1 | B112: =IF(A112>0,SUM($A$18:A112)," ") -> 90 | C112: Multiple Activity Codes
A113: =IF(ISBOLD(C113),0,1) -> 1 | B113: =IF(A113>0,SUM($A$18:A113)," ") -> 91 | C113: Multiple Representation Codes (bargaining unit)
A114: =IF(ISBOLD(C114),0,1) -> 1 | B114: =IF(A114>0,SUM($A$18:A114)," ") -> 92 | C114: Multiple Scheduled Hours
A115: =IF(ISBOLD(C115),0,1) -> 1 | B115: =IF(A115>0,SUM($A$18:A115)," ") -> 93 | C115: Multiple Shifts
A116: =IF(ISBOLD(C116),0,1) -> 1 | B116: =IF(A116>0,SUM($A$18:A116)," ") -> 94 | C116: Multiple Monthly Rates
A117: =IF(ISBOLD(C117),0,1) -> 1 | B117: =IF(A117>0,SUM($A$18:A117)," ") -> 95 | C117: Multiple Hourly Rates
A118: =IF(ISBOLD(C118),0,1) -> 1 | B118: =IF(A118>0,SUM($A$18:A118)," ") -> 96 | C118: Multiple Annual Rates
A119: =IF(ISBOLD(C119),0,1) -> 1 | B119: =IF(A119>0,SUM($A$18:A119)," ") -> 97 | C119: Salary step
A120: =IF(ISBOLD(C120),0,1) -> 1 | B120: =IF(A120>0,SUM($A$18:A120)," ") -> 98 | C120: Number of steps in range
A121: =IF(ISBOLD(C121),0,1) -> 1 | B121: =IF(A121>0,SUM($A$18:A121)," ") -> 99 | C121: Fair labor status (exempt, non-exempt)
A122: =IF(ISBOLD(C122),0,1) -> 1 | B122: =IF(A122>0,SUM($A$18:A122)," ") -> 100 | C122: Multiple Funding Information
A123: =IF(ISBOLD(C123),0,1) -> 1 | B123: =IF(A123>0,SUM($A$18:A123)," ") -> 101 | C123: Multiple FTEs (considers different hours required to be considered an FTE)
A124: =IF(ISBOLD(C124),0,1) -> 1 | B124: =IF(A124>0,SUM($A$18:A124)," ") -> 102 | C124: Total of Scheduled Hours
A125: =IF(ISBOLD(C125),0,1) -> 1 | B125: =IF(A125>0,SUM($A$18:A125)," ") -> 103 | C125: Multiple Promotion Dates and Information
A126: =IF(ISBOLD(C126),0,1) -> 1 | B126: =IF(A126>0,SUM($A$18:A126)," ") -> 104 | C126: Multiple Probation Periods based on hours worked
A127: =IF(ISBOLD(C127),0,1) -> 1 | B127: =IF(A127>0,SUM($A$18:A127)," ") -> 105 | C127: Multiple Transfer Dates
A128: =IF(ISBOLD(C128),0,1) -> 1 | B128: =IF(A128>0,SUM($A$18:A128)," ") -> 106 | C128: Multiple Leave Programs
A129: =IF(ISBOLD(C129),0,1) -> 1 | B129: =IF(A129>0,SUM($A$18:A129)," ") -> 107 | C129: Multiple Benefits Codes
A130: =IF(ISBOLD(C130),0,1) -> 1 | B130: =IF(A130>0,SUM($A$18:A130)," ") -> 108 | C130: Performance evaluation date(s)
A131: =IF(ISBOLD(C131),0,1) -> 1 | B131: =IF(A131>0,SUM($A$18:A131)," ") -> 109 | C131: Background check (state, federal)
A132: =IF(ISBOLD(C132),0,1) -> 1 | B132: =IF(A132>0,SUM($A$18:A132)," ") -> 110 | C132: Drivers License Validity Check
A133: =IF(ISBOLD(C133),0,1) -> 1 | B133: =IF(A133>0,SUM($A$18:A133)," ") -> 111 | C133: Vehicle Insurance Information
A134: =IF(ISBOLD(C134),0,1) -> 1 | B134: =IF(A134>0,SUM($A$18:A134)," ") -> 112 | C134: Immigration Status (I9)
A135: =IF(ISBOLD(C135),0,1) -> 1 | B135: =IF(A135>0,SUM($A$18:A135)," ") -> 113 | C135: Expiration date (for Visa)
A136: =IF(ISBOLD(C136),0,1) -> 1 | B136: =IF(A136>0,SUM($A$18:A136)," ") -> 114 | C136: Visa number
A137: =IF(ISBOLD(C137),0,1) -> 1 | B137: =IF(A137>0,SUM($A$18:A137)," ") -> 115 | C137: Student Status
A138: =IF(ISBOLD(C138),0,1) -> 1 | B138: =IF(A138>0,SUM($A$18:A138)," ") -> 116 | C138: Telecommuter (Full Time or Part Time Telecommuter)
A139: =IF(ISBOLD(C139),0,1) -> 1 | B139: =IF(A139>0,SUM($A$18:A139)," ") -> 117 | C139: Multiple Seniority Dates
A140: =IF(ISBOLD(C140),0,1) -> 1 | B140: =IF(A140>0,SUM($A$18:A140)," ") -> 118 | C140: Multiple Mail Codes
A141: =IF(ISBOLD(C141),0,1) -> 1 | B141: =IF(A141>0,SUM($A$18:A141)," ") -> 119 | C141: ID Badge Information
A142: =IF(ISBOLD(C142),0,1) -> 1 | B142: =IF(A142>0,SUM($A$18:A142)," ") -> 120 | C142: Retirement system participation
A143: =IF(ISBOLD(C143),0,1) -> 1 | B143: =IF(A143>0,SUM($A$18:A143)," ") -> 121 | C143: W-4 and Indicators
A144: =IF(ISBOLD(C144),0,1) -> 1 | B144: =IF(A144>0,SUM($A$18:A144)," ") -> 122 | C144: Work related accidents
A145: =IF(ISBOLD(C145),0,1) -> 1 | B145: =IF(A145>0,SUM($A$18:A145)," ") -> 123 | C145: Employee disciplinary history
A146: =IF(ISBOLD(C146),0,1) -> 1 | B146: =IF(A146>0,SUM($A$18:A146)," ") -> 124 | C146: Other User Defined
A147: =IF(ISBOLD(C147),0,1) -> 1 | B147: =IF(A147>0,SUM($A$18:A147)," ") -> 125 | C147: The system sends alerts related to end dates of any of the items in the list above
A148: =IF(ISBOLD(C148),0,1) -> 1 | B148: =IF(A148>0,SUM($A$18:A148)," ") -> 126 | C148: The system provides compliance tools to ensure compliance with the Affordable Care Act
A149: =IF(ISBOLD(C149),0,1) -> 1 | B149: =IF(A149>0,SUM($A$18:A149)," ") -> 127 | C149: The system enters multiple start and end dates for all employee data.
A150: =IF(ISBOLD(C150),0,1) -> 1 | B150: =IF(A150>0,SUM($A$18:A150)," ") -> 128 | C150: The system flags an employee's future application status as banned.
A151: =IF(ISBOLD(C151),0,1) -> 1 | B151: =IF(A151>0,SUM($A$18:A151)," ") -> 129 | C151: The system allows the ability for employees to be appointed to a reallocated position.
A152: =IF(ISBOLD(C152),0,1) -> 1 | B152: =IF(A152>0,SUM($A$18:A152)," ") -> 130 | C152: The system uploads documents into the employee file.
A153: =IF(ISBOLD(C153),0,1) -> 1 | B153: =IF(A153>0,SUM($A$18:A153)," ") -> 131 | C153: The system allows the ability for multiple departments to view employee corrective actions, discipline, and performance with security.
A154: =IF(ISBOLD(C154),0,1) -> 1 | B154: =IF(A154>0,SUM($A$18:A154)," ") -> 132 | C154: The system develops a skills inventory for each employee based on user defined skill list
A155: =IF(ISBOLD(C155),0,1) -> 1 | B155: =IF(A155>0,SUM($A$18:A155)," ") -> 133 | C155: The system inputs degrees, licenses, certifications verification, and credential information. | D155: x
A156: =IF(ISBOLD(C156),0,1) -> 1 | B156: =IF(A156>0,SUM($A$18:A156)," ") -> 134 | C156: The system inputs degrees, licenses, certifications, and credential expiration information. | D156: x
A157: =IF(ISBOLD(C157),0,1) -> 1 | B157: =IF(A157>0,SUM($A$18:A157)," ") -> 135 | C157: The system tracks medical and psychological requirements of employees.
A158: =IF(ISBOLD(C158),0,1) -> 1 | B158: =IF(A158>0,SUM($A$18:A158)," ") -> 136 | C158: The system tracks all employee training in one file
A159: =IF(ISBOLD(C159),0,1) -> 1 | B159: =IF(A159>0,SUM($A$18:A159)," ") -> 137 | C159: The system links employee data from the requisition to the employee file. | D159: x
A160: =IF(ISBOLD(C160),0,1) -> 1 | B160: =IF(A160>0,SUM($A$18:A160)," ") -> 138 | C160: The system links employee data to payroll system
A161: =IF(ISBOLD(C161),0,1) -> 1 | B161: =IF(A161>0,SUM($A$18:A161)," ") -> 139 | C161: The system links employee data to benefits system
A162: =IF(ISBOLD(C162),0,1) -> 1 | B162: =IF(A162>0,SUM($A$18:A162)," ") -> 140 | C162: The system links employee data from the completed application to the employee file.
A163: =IF(ISBOLD(C163),0,1) -> 1 | B163: =IF(A163>0,SUM($A$18:A163)," ") -> 141 | C163: The system files and initiates employee action forms for employee personnel changes.
A164: =IF(ISBOLD(C164),0,1) -> 1 | B164: =IF(A164>0,SUM($A$18:A164)," ") -> 142 | C164: The system sets up online personnel action forms unique to each status change, job change, employee change, and other criteria.
A165: =IF(ISBOLD(C165),0,1) -> 1 | B165: =IF(A165>0,SUM($A$18:A165)," ") -> 143 | C165: The system fills a position with one or multiple job classes.
A166: =IF(ISBOLD(C166),0,1) -> 1 | B166: =IF(A166>0,SUM($A$18:A166)," ") -> 144 | C166: The system notes and tracks effective date of employee changes.
A167: =IF(ISBOLD(C167),0,1) -> 1 | B167: =IF(A167>0,SUM($A$18:A167)," ") -> 145 | C167: The system sets up workflow and approvals for employee action forms with the ability to limit what files are sent to which person.
A168: =IF(ISBOLD(C168),0,1) -> 1 | B168: =IF(A168>0,SUM($A$18:A168)," ") -> 146 | C168: The system allows the user to make ad hoc changes to workflow (e.g., adds additional levels of approval for unique needs)
A169: =IF(ISBOLD(C169),0,1) -> 1 | B169: =IF(A169>0,SUM($A$18:A169)," ") -> 147 | C169: The system has multiple workflows and approvals for employee actions forms based upon factors such as the action code, department, and other criteria.
A170: =IF(ISBOLD(C170),0,1) -> 1 | B170: =IF(A170>0,SUM($A$18:A170)," ") -> 148 | C170: The system sets up relationships between employee action form inputs and other changes (e.g. termination has multiple workflows based upon line of business, department, job code, position, and other criteria).
A171: =IF(ISBOLD(C171),0,1) -> 0 | B171: =IF(A171>0,SUM($A$18:A171)," ") ->  | C171: The system sets up and tracks rules and workflows for the following Personnel Action Form actions:
A172: =IF(ISBOLD(C172),0,1) -> 1 | B172: =IF(A172>0,SUM($A$18:A172)," ") -> 149 | C172: New Hire
A173: =IF(ISBOLD(C173),0,1) -> 1 | B173: =IF(A173>0,SUM($A$18:A173)," ") -> 150 | C173: Transfer
A174: =IF(ISBOLD(C174),0,1) -> 1 | B174: =IF(A174>0,SUM($A$18:A174)," ") -> 151 | C174: Promotion
A175: =IF(ISBOLD(C175),0,1) -> 1 | B175: =IF(A175>0,SUM($A$18:A175)," ") -> 152 | C175: Rehire
A176: =IF(ISBOLD(C176),0,1) -> 1 | B176: =IF(A176>0,SUM($A$18:A176)," ") -> 153 | C176: Retirement
A177: =IF(ISBOLD(C177),0,1) -> 1 | B177: =IF(A177>0,SUM($A$18:A177)," ") -> 154 | C177: Termination
A178: =IF(ISBOLD(C178),0,1) -> 1 | B178: =IF(A178>0,SUM($A$18:A178)," ") -> 155 | C178: Dismissal
A179: =IF(ISBOLD(C179),0,1) -> 1 | B179: =IF(A179>0,SUM($A$18:A179)," ") -> 156 | C179: Employment Layoff
A180: =IF(ISBOLD(C180),0,1) -> 1 | B180: =IF(A180>0,SUM($A$18:A180)," ") -> 157 | C180: Multiple Medical Layoff Dates
A181: =IF(ISBOLD(C181),0,1) -> 1 | B181: =IF(A181>0,SUM($A$18:A181)," ") -> 158 | C181: Reinstatement
A182: =IF(ISBOLD(C182),0,1) -> 1 | B182: =IF(A182>0,SUM($A$18:A182)," ") -> 159 | C182: Reallocation
A183: =IF(ISBOLD(C183),0,1) -> 1 | B183: =IF(A183>0,SUM($A$18:A183)," ") -> 160 | C183: Demotion
A184: =IF(ISBOLD(C184),0,1) -> 1 | B184: =IF(A184>0,SUM($A$18:A184)," ") -> 161 | C184: Suspension
A185: =IF(ISBOLD(C185),0,1) -> 1 | B185: =IF(A185>0,SUM($A$18:A185)," ") -> 162 | C185: Status Change (e.g., Part Time to Full Time)
A186: =IF(ISBOLD(C186),0,1) -> 1 | B186: =IF(A186>0,SUM($A$18:A186)," ") -> 163 | C186: Reassignment
A187: =IF(ISBOLD(C187),0,1) -> 1 | B187: =IF(A187>0,SUM($A$18:A187)," ") -> 164 | C187: Temporary Appointment
A188: =IF(ISBOLD(C188),0,1) -> 1 | B188: =IF(A188>0,SUM($A$18:A188)," ") -> 165 | C188: Probationary Assignment
A189: =IF(ISBOLD(C189),0,1) -> 1 | B189: =IF(A189>0,SUM($A$18:A189)," ") -> 166 | C189: Regular Appointment
A190: =IF(ISBOLD(C190),0,1) -> 1 | B190: =IF(A190>0,SUM($A$18:A190)," ") -> 167 | C190: Sick Leave
A191: =IF(ISBOLD(C191),0,1) -> 1 | B191: =IF(A191>0,SUM($A$18:A191)," ") -> 168 | C191: Change of address/phone
A192: =IF(ISBOLD(C192),0,1) -> 1 | B192: =IF(A192>0,SUM($A$18:A192)," ") -> 169 | C192: Probation end
A193: =IF(ISBOLD(C193),0,1) -> 1 | B193: =IF(A193>0,SUM($A$18:A193)," ") -> 170 | C193: Salary increase
A194: =IF(ISBOLD(C194),0,1) -> 1 | B194: =IF(A194>0,SUM($A$18:A194)," ") -> 171 | C194: Limited Duration
A195: =IF(ISBOLD(C195),0,1) -> 1 | B195: =IF(A195>0,SUM($A$18:A195)," ") -> 172 | C195: Unclassified
A196: =IF(ISBOLD(C196),0,1) -> 1 | B196: =IF(A196>0,SUM($A$18:A196)," ") -> 173 | C196: Trainee
A197: =IF(ISBOLD(C197),0,1) -> 1 | B197: =IF(A197>0,SUM($A$18:A197)," ") -> 174 | C197: Grant
A198: =IF(ISBOLD(C198),0,1) -> 1 | B198: =IF(A198>0,SUM($A$18:A198)," ") -> 175 | C198: Second Job
A199: =IF(ISBOLD(C199),0,1) -> 1 | B199: =IF(A199>0,SUM($A$18:A199)," ") -> 176 | C199: Junior/Senior Promotion
A200: =IF(ISBOLD(C200),0,1) -> 1 | B200: =IF(A200>0,SUM($A$18:A200)," ") -> 177 | C200: Vacation buy back
A201: =IF(ISBOLD(C201),0,1) -> 1 | B201: =IF(A201>0,SUM($A$18:A201)," ") -> 178 | C201: Accident leave
A202: =IF(ISBOLD(C202),0,1) -> 1 | B202: =IF(A202>0,SUM($A$18:A202)," ") -> 179 | C202: Multiple Leave Types (including military leave)
A203: =IF(ISBOLD(C203),0,1) -> 1 | B203: =IF(A203>0,SUM($A$18:A203)," ") -> 180 | C203: Multiple Status Changes
A204: =IF(ISBOLD(C204),0,1) -> 1 | B204: =IF(A204>0,SUM($A$18:A204)," ") -> 181 | C204: Multiple probation periods based on hours worked
A205: =IF(ISBOLD(C205),0,1) -> 1 | B205: =IF(A205>0,SUM($A$18:A205)," ") -> 182 | C205: Other
A206: =IF(ISBOLD(C206),0,1) -> 1 | B206: =IF(A206>0,SUM($A$18:A206)," ") -> 183 | C206: The system defines multiple PAF status changes. | D206: x
A207: =IF(ISBOLD(C207),0,1) -> 1 | B207: =IF(A207>0,SUM($A$18:A207)," ") -> 184 | C207: The system defines workflows for non PAF actions.
A208: =IF(ISBOLD(C208),0,1) -> 1 | B208: =IF(A208>0,SUM($A$18:A208)," ") -> 185 | C208: The system uploads documents to support an PAF (e.g. additional hiring information or I9). | D208: x
A209: =IF(ISBOLD(C209),0,1) -> 1 | B209: =IF(A209>0,SUM($A$18:A209)," ") -> 186 | C209: The system tracks employee seniority date and/or hours by multiple unions and job classes.
A210: =IF(ISBOLD(C210),0,1) -> 1 | B210: =IF(A210>0,SUM($A$18:A210)," ") -> 187 | C210: The system records both an employee’s permanent job class and temporary job class (example: acting appointment) and vice versa (employee in leave to unclassified) and whether or not the employee’s department changed.
... 506 more rows

Sheet Benefits - Leaves - COBRA
C1: Requirements Survey
C2: Benefits - Leaves - COBRA | E2: Requirements Response Rules:
C3: The following functional, technical, workflow and reporting needs provide the minimum requirements of the Town of Colma. Please review the items carefully and respond in accordance with the requirements response rules provided. Any partial response will be deemed as an invalid response. MANDATORY: EVERY REQUIREMENT (Req#) MUST HAVE A RESPONSE TO BE CONSIDERED COMPLETE. | E3: Column #1. Mandatory: Proposers are required to input one response per requirement using the drop down list provided. Response Types: F=Fully provided out of the box, or fully provided out of the box through basic configuration Mod= Provided through a technical modification of the software (i.e. a customization) TP = Provided through a proposed third party application or capability CR= Custom report requiring development SR = Standard report provided through a built in or proposed reporting tool NA = Not Available Column #2. Proposers are requested to itemize estimated costs for all modification requirements. Column #3. Proposers are requested to list the third party product name for all Third Party Product requirements. Column #4. Mandatory: Proposers are required to mark yes or no to whether the implementation costs of this functionality is included in their cost proposal. Column #5. Mandatory: Proposers are required to mark yes or no to whether the training costs of this functionality is included in their cost proposal. Column #6. If a subcontractor is implementing or providing training for this functionality, please indicate the name of the subcontracting firm responsible for this functionality. Column #7. Mandatory: Proposers are required to list the version number for all functionality proposed to the Town.
C13: PROCESS | D13: High Priority | E13: 1.Response | F13: 2.Costs for Mod response | G13: 3.Third Party Application for TP response | H13: 4. Included in Implementation Costs | I13: 5. Included in training costs | J13: 6. Subcontractor | K13: 7. Version Number | L13: Comments/Narrative
B14: Req#
H15: Yes/No | I15: Yes/No
C16: Benefits - Leaves - COBRA
C17: Benefits Administration General Requirements
A18: =IF(ISBOLD(C18),0,1) -> 0 | B18: =IF(A18>0,SUM($A$18:A18)," ") ->  | C18: The system processes the following benefits eligibility events:
A19: =IF(ISBOLD(C19),0,1) -> 1 | B19: =IF(A19>0,SUM($A$18:A19)," ") -> 1 | C19: Initiation, modification, and maintenance of employee information
A20: =IF(ISBOLD(C20),0,1) -> 1 | B20: =IF(A20>0,SUM($A$18:A20)," ") -> 2 | C20: Activation of coverage for employee, spouse, and non-spouse dependents
A21: =IF(ISBOLD(C21),0,1) -> 1 | B21: =IF(A21>0,SUM($A$18:A21)," ") -> 3 | C21: Activation of coverage for survivors (former dependents of employees that are allowed to continue their benefits coverage)
A22: =IF(ISBOLD(C22),0,1) -> 1 | B22: =IF(A22>0,SUM($A$18:A22)," ") -> 4 | C22: Maintenance of beneficiary information for multiple plans
A23: =IF(ISBOLD(C23),0,1) -> 1 | B23: =IF(A23>0,SUM($A$18:A23)," ") -> 5 | C23: Medicare eligibility
A24: =IF(ISBOLD(C24),0,1) -> 1 | B24: =IF(A24>0,SUM($A$18:A24)," ") -> 6 | C24: Initiation of COBRA processing when an individual’s coverage is terminated due to a COBRA qualifying event
A25: =IF(ISBOLD(C25),0,1) -> 1 | B25: =IF(A25>0,SUM($A$18:A25)," ") -> 7 | C25: Evidence of insurability verification
A26: =IF(ISBOLD(C26),0,1) -> 1 | B26: =IF(A26>0,SUM($A$18:A26)," ") -> 8 | C26: Terminating/retiring employees | D26: x
A27: =IF(ISBOLD(C27),0,1) -> 1 | B27: =IF(A27>0,SUM($A$18:A27)," ") -> 9 | C27: Termination of coverage for employee, spouse, and non-spouse dependents | D27: x
A28: =IF(ISBOLD(C28),0,1) -> 1 | B28: =IF(A28>0,SUM($A$18:A28)," ") -> 10 | C28: The system allows for unlimited benefit tiers
A29: =IF(ISBOLD(C29),0,1) -> 1 | B29: =IF(A29>0,SUM($A$18:A29)," ") -> 11 | C29: The system allows for benefit calculations to be driven by benefit tables
A30: =IF(ISBOLD(C30),0,1) -> 1 | B30: =IF(A30>0,SUM($A$18:A30)," ") -> 12 | C30: The system provides enrollment/change notification to employees via email or letter
A31: =IF(ISBOLD(C31),0,1) -> 1 | B31: =IF(A31>0,SUM($A$18:A31)," ") -> 13 | C31: The system confirms enrollment/changes in benefits to employee via letter or email as defined by user
A32: =IF(ISBOLD(C32),0,1) -> 1 | B32: =IF(A32>0,SUM($A$18:A32)," ") -> 14 | C32: The system provides detailed notifications to employees of benefit eligibility when eligibility begins or changes and as part of the annual enrollment
A33: =IF(ISBOLD(C33),0,1) -> 1 | B33: =IF(A33>0,SUM($A$18:A33)," ") -> 15 | C33: The system provides notification to benefits administration that employee's eligibility is beginning, ending or changing | D33: x
A34: =IF(ISBOLD(C34),0,1) -> 0 | B34: =IF(A34>0,SUM($A$18:A34)," ") ->  | C34: The system automatically generates notification (email or letter) to employees based on certain events such as:
A35: =IF(ISBOLD(C35),0,1) -> 1 | B35: =IF(A35>0,SUM($A$18:A35)," ") -> 16 | C35: Prior to obtaining Medicare eligibility by virtue of age
A36: =IF(ISBOLD(C36),0,1) -> 1 | B36: =IF(A36>0,SUM($A$18:A36)," ") -> 17 | C36: Prior to dependent’s birthdays that affect eligibility
A37: =IF(ISBOLD(C37),0,1) -> 1 | B37: =IF(A37>0,SUM($A$18:A37)," ") -> 18 | C37: Proof of continuing eligibility (receipt of proof, i.e. college transcript)
A38: =IF(ISBOLD(C38),0,1) -> 1 | B38: =IF(A38>0,SUM($A$18:A38)," ") -> 19 | C38: By semester for school age dependents
A39: =IF(ISBOLD(C39),0,1) -> 1 | B39: =IF(A39>0,SUM($A$18:A39)," ") -> 20 | C39: Beginning and end of COBRA eligibility
A40: =IF(ISBOLD(C40),0,1) -> 1 | B40: =IF(A40>0,SUM($A$18:A40)," ") -> 21 | C40: Other user-defined eligibility
A41: 1 | B41: =IF(A41>0,SUM($A$18:A41)," ") -> 22 | C41: The system generated emails and letters are customizable and can be configured to meet the Town's needs
A42: =IF(ISBOLD(C42),0,1) -> 1 | B42: =IF(A42>0,SUM($A$18:A42)," ") -> 23 | C42: The system inputs and tracks benefit transactions by effective date or retroactively, with security
A43: =IF(ISBOLD(C43),0,1) -> 1 | B43: =IF(A43>0,SUM($A$18:A43)," ") -> 24 | C43: The system notifies employee and payroll contact when placed on medical leave or medical layoff
A44: =IF(ISBOLD(C44),0,1) -> 1 | B44: =IF(A44>0,SUM($A$18:A44)," ") -> 25 | C44: The system sets up pay out effective dates (e.g. first pay check in March for next year's pay out)
A45: =IF(ISBOLD(C45),0,1) -> 1 | B45: =IF(A45>0,SUM($A$18:A45)," ") -> 26 | C45: The system sets up limits to employee requests for pay out amounts (e.g. 960 sick time hours)
A46: =IF(ISBOLD(C46),0,1) -> 1 | B46: =IF(A46>0,SUM($A$18:A46)," ") -> 27 | C46: The system allows employees to elect to receive sick hour pay out in following year either as cash or deferred compensation, with workflow and approval
A47: =IF(ISBOLD(C47),0,1) -> 1 | B47: =IF(A47>0,SUM($A$18:A47)," ") -> 28 | C47: The system tracks, maintains, and monitors payments and balances from employee benefit escrow accounts (separate escrow account employees can use to pay for health benefits after separation)
A48: =IF(ISBOLD(C48),0,1) -> 0 | B48: =IF(A48>0,SUM($A$18:A48)," ") ->  | C48: The system accommodates an expanded leave calendar which includes:
A49: =IF(ISBOLD(C49),0,1) -> 1 | B49: =IF(A49>0,SUM($A$18:A49)," ") -> 29 | C49: Multiple leave types on a given day within a calendar view
A50: =IF(ISBOLD(C50),0,1) -> 1 | B50: =IF(A50>0,SUM($A$18:A50)," ") -> 30 | C50: Reflect the benefits applied/incorporated
A51: =IF(ISBOLD(C51),0,1) -> 1 | B51: =IF(A51>0,SUM($A$18:A51)," ") -> 31 | C51: Effective dating for Leave/FMLA | D51: x
A52: =IF(ISBOLD(C52),0,1) -> 1 | B52: =IF(A52>0,SUM($A$18:A52)," ") -> 32 | C52: The system supports electronic tracking of leave within system, which would include electronic request (by employee) and approval (by manager) | D52: x
A53: =IF(ISBOLD(C53),0,1) -> 1 | B53: =IF(A53>0,SUM($A$18:A53)," ") -> 33 | C53: The system retroactively applies FMLA time and also have that change be reflected on all additional relevant tracking modules (i.e. leave calendar)
A54: 1 | B54: =IF(A54>0,SUM($A$18:A54)," ") -> 34 | C54: The system allows the user to set FMLA start and end dates and notifies specified parties of those dates
A55: =IF(ISBOLD(C55),0,1) -> 1 | B55: =IF(A55>0,SUM($A$18:A55)," ") -> 35 | C55: The system facilitates an annual calculation of life, health, and dental insurance premiums for active and inactive employees, as input to a quarterly AR invoice billing (calculation based on age, rate, and level of coverage)
A56: =IF(ISBOLD(C56),0,1) -> 0 | B56: =IF(A56>0,SUM($A$18:A56)," ") ->  | C56: Benefit Plan Administration
A57: =IF(ISBOLD(C57),0,1) -> 0 | B57: =IF(A57>0,SUM($A$18:A57)," ") ->  | C57: The system sets up and tracks multiple types of benefit plans, including:
A58: =IF(ISBOLD(C58),0,1) -> 1 | B58: =IF(A58>0,SUM($A$18:A58)," ") -> 36 | C58: Deferred Compensation plan enrollment (e.g., 457 plans)
A59: =IF(ISBOLD(C59),0,1) -> 1 | B59: =IF(A59>0,SUM($A$18:A59)," ") -> 37 | C59: Medical insurance
A60: =IF(ISBOLD(C60),0,1) -> 1 | B60: =IF(A60>0,SUM($A$18:A60)," ") -> 38 | C60: Dental insurance
A61: =IF(ISBOLD(C61),0,1) -> 1 | B61: =IF(A61>0,SUM($A$18:A61)," ") -> 39 | C61: Flexible spending accounts
A62: =IF(ISBOLD(C62),0,1) -> 1 | B62: =IF(A62>0,SUM($A$18:A62)," ") -> 40 | C62: Health savings account
A63: =IF(ISBOLD(C63),0,1) -> 1 | B63: =IF(A63>0,SUM($A$18:A63)," ") -> 41 | C63: Health reimbursement account
A64: =IF(ISBOLD(C64),0,1) -> 1 | B64: =IF(A64>0,SUM($A$18:A64)," ") -> 42 | C64: Optional insurance
A65: =IF(ISBOLD(C65),0,1) -> 1 | B65: =IF(A65>0,SUM($A$18:A65)," ") -> 43 | C65: Long term disability
A66: =IF(ISBOLD(C66),0,1) -> 1 | B66: =IF(A66>0,SUM($A$18:A66)," ") -> 44 | C66: Short term disability
A67: =IF(ISBOLD(C67),0,1) -> 1 | B67: =IF(A67>0,SUM($A$18:A67)," ") -> 45 | C67: Long term care
A68: =IF(ISBOLD(C68),0,1) -> 1 | B68: =IF(A68>0,SUM($A$18:A68)," ") -> 46 | C68: Medicare supplement
A69: =IF(ISBOLD(C69),0,1) -> 1 | B69: =IF(A69>0,SUM($A$18:A69)," ") -> 47 | C69: Medical escrow
A70: =IF(ISBOLD(C70),0,1) -> 1 | B70: =IF(A70>0,SUM($A$18:A70)," ") -> 48 | C70: Wellness
A71: =IF(ISBOLD(C71),0,1) -> 1 | B71: =IF(A71>0,SUM($A$18:A71)," ") -> 49 | C71: CalPERS Membership (e.g., Classic, PEPRA, multiple tiers)
A72: =IF(ISBOLD(C72),0,1) -> 1 | B72: =IF(A72>0,SUM($A$18:A72)," ") -> 50 | C72: Early retiree health
A73: =IF(ISBOLD(C73),0,1) -> 1 | B73: =IF(A73>0,SUM($A$18:A73)," ") -> 51 | C73: Life insurance
A74: 1 | B74: =IF(A74>0,SUM($A$18:A74)," ") -> 52 | C74: Emergency leave and bereavement
A75: =IF(ISBOLD(C75),0,1) -> 1 | B75: =IF(A75>0,SUM($A$18:A75)," ") -> 53 | C75: Other user defined
A76: 1 | B76: =IF(A76>0,SUM($A$18:A76)," ") -> 54 | C76: The system sets up and tracks multiple types of benefits plans, with unilimited tiers
A77: =IF(ISBOLD(C77),0,1) -> 1 | B77: =IF(A77>0,SUM($A$18:A77)," ") -> 55 | C77: The system allows for multiple insurance lines for the same insurance coverage (to account for changing from one plan to another)
A78: =IF(ISBOLD(C78),0,1) -> 0 | B78: =IF(A78>0,SUM($A$18:A78)," ") ->  | C78: The system provides for various types of enrollment consistent with eligibility rules, including:
A79: =IF(ISBOLD(C79),0,1) -> 1 | B79: =IF(A79>0,SUM($A$18:A79)," ") -> 56 | C79: Enrollment of new hires and rehires within a user defined period of hire date | D79: x
A80: =IF(ISBOLD(C80),0,1) -> 1 | B80: =IF(A80>0,SUM($A$18:A80)," ") -> 57 | C80: Annual enrollment transfer period
A81: =IF(ISBOLD(C81),0,1) -> 1 | B81: =IF(A81>0,SUM($A$18:A81)," ") -> 58 | C81: Late enrollment with medical underwriting
A82: =IF(ISBOLD(C82),0,1) -> 1 | B82: =IF(A82>0,SUM($A$18:A82)," ") -> 59 | C82: Special enrollment due to HIPAA qualifying event | D82: x
A83: =IF(ISBOLD(C83),0,1) -> 1 | B83: =IF(A83>0,SUM($A$18:A83)," ") -> 60 | C83: Other user-defined criteria
A84: =IF(ISBOLD(C84),0,1) -> 0 | B84: =IF(A84>0,SUM($A$18:A84)," ") ->  | C84: The system maintains eligibility rules by benefit plan with the following variables:
A85: =IF(ISBOLD(C85),0,1) -> 1 | B85: =IF(A85>0,SUM($A$18:A85)," ") -> 61 | C85: Plan Type
A86: =IF(ISBOLD(C86),0,1) -> 1 | B86: =IF(A86>0,SUM($A$18:A86)," ") -> 62 | C86: Group
A87: =IF(ISBOLD(C87),0,1) -> 1 | B87: =IF(A87>0,SUM($A$18:A87)," ") -> 63 | C87: Waiting period
A88: =IF(ISBOLD(C88),0,1) -> 1 | B88: =IF(A88>0,SUM($A$18:A88)," ") -> 64 | C88: Minimum hours worked
A89: =IF(ISBOLD(C89),0,1) -> 1 | B89: =IF(A89>0,SUM($A$18:A89)," ") -> 65 | C89: Dependent coverage
A90: =IF(ISBOLD(C90),0,1) -> 1 | B90: =IF(A90>0,SUM($A$18:A90)," ") -> 66 | C90: Dependents eligible
A91: =IF(ISBOLD(C91),0,1) -> 1 | B91: =IF(A91>0,SUM($A$18:A91)," ") -> 67 | C91: Split coverage
A92: =IF(ISBOLD(C92),0,1) -> 1 | B92: =IF(A92>0,SUM($A$18:A92)," ") -> 68 | C92: Medicare eligible
A93: =IF(ISBOLD(C93),0,1) -> 1 | B93: =IF(A93>0,SUM($A$18:A93)," ") -> 69 | C93: COBRA
A94: =IF(ISBOLD(C94),0,1) -> 1 | B94: =IF(A94>0,SUM($A$18:A94)," ") -> 70 | C94: HIPAA
A95: =IF(ISBOLD(C95),0,1) -> 1 | B95: =IF(A95>0,SUM($A$18:A95)," ") -> 71 | C95: Job class
A96: =IF(ISBOLD(C96),0,1) -> 1 | B96: =IF(A96>0,SUM($A$18:A96)," ") -> 72 | C96: Effective date
A97: =IF(ISBOLD(C97),0,1) -> 1 | B97: =IF(A97>0,SUM($A$18:A97)," ") -> 73 | C97: Hire date
A98: =IF(ISBOLD(C98),0,1) -> 1 | B98: =IF(A98>0,SUM($A$18:A98)," ") -> 74 | C98: Age of employee
A99: =IF(ISBOLD(C99),0,1) -> 1 | B99: =IF(A99>0,SUM($A$18:A99)," ") -> 75 | C99: Age of dependents
A100: =IF(ISBOLD(C100),0,1) -> 1 | B100: =IF(A100>0,SUM($A$18:A100)," ") -> 76 | C100: Hours worked by pay period
A101: =IF(ISBOLD(C101),0,1) -> 1 | B101: =IF(A101>0,SUM($A$18:A101)," ") -> 77 | C101: Wage base
A102: =IF(ISBOLD(C102),0,1) -> 1 | B102: =IF(A102>0,SUM($A$18:A102)," ") -> 78 | C102: Track leave without pay for limitations
A103: =IF(ISBOLD(C103),0,1) -> 1 | B103: =IF(A103>0,SUM($A$18:A103)," ") -> 79 | C103: Over-ride of eligibility with proper security
A104: =IF(ISBOLD(C104),0,1) -> 1 | B104: =IF(A104>0,SUM($A$18:A104)," ") -> 80 | C104: All other user defined variables
A105: 1 | B105: =IF(A105>0,SUM($A$18:A105)," ") -> 81 | C105: When determining benefits eligibility, the system queries hours worked over the prior 12 months (in addition to calendar year).
A106: =IF(ISBOLD(C106),0,1) -> 0 | B106: =IF(A106>0,SUM($A$18:A106)," ") ->  | C106: The system provides at least the following methods of calculating employee/Town premium costs or contribution amounts:
A107: =IF(ISBOLD(C107),0,1) -> 1 | B107: =IF(A107>0,SUM($A$18:A107)," ") -> 82 | C107: Percentage
A108: =IF(ISBOLD(C108),0,1) -> 1 | B108: =IF(A108>0,SUM($A$18:A108)," ") -> 83 | C108: Flat amount
A109: =IF(ISBOLD(C109),0,1) -> 1 | B109: =IF(A109>0,SUM($A$18:A109)," ") -> 84 | C109: Wage type(s) to include in calculation
A110: =IF(ISBOLD(C110),0,1) -> 1 | B110: =IF(A110>0,SUM($A$18:A110)," ") -> 85 | C110: Individual, individual or spouse, individual and spouse, individual plus dependents, family
A111: =IF(ISBOLD(C111),0,1) -> 1 | B111: =IF(A111>0,SUM($A$18:A111)," ") -> 86 | C111: Pre or post taxable income calculation
A112: =IF(ISBOLD(C112),0,1) -> 1 | B112: =IF(A112>0,SUM($A$18:A112)," ") -> 87 | C112: Monthly limit
A113: =IF(ISBOLD(C113),0,1) -> 1 | B113: =IF(A113>0,SUM($A$18:A113)," ") -> 88 | C113: Quarterly limits
A114: =IF(ISBOLD(C114),0,1) -> 1 | B114: =IF(A114>0,SUM($A$18:A114)," ") -> 89 | C114: Annual limits
A115: =IF(ISBOLD(C115),0,1) -> 1 | B115: =IF(A115>0,SUM($A$18:A115)," ") -> 90 | C115: Age
A116: =IF(ISBOLD(C116),0,1) -> 1 | B116: =IF(A116>0,SUM($A$18:A116)," ") -> 91 | C116: Amount of coverage
A117: =IF(ISBOLD(C117),0,1) -> 1 | B117: =IF(A117>0,SUM($A$18:A117)," ") -> 92 | C117: Frequency
A118: =IF(ISBOLD(C118),0,1) -> 1 | B118: =IF(A118>0,SUM($A$18:A118)," ") -> 93 | C118: Group
A119: =IF(ISBOLD(C119),0,1) -> 1 | B119: =IF(A119>0,SUM($A$18:A119)," ") -> 94 | C119: Premium level
A120: =IF(ISBOLD(C120),0,1) -> 1 | B120: =IF(A120>0,SUM($A$18:A120)," ") -> 95 | C120: Administrative fee
A121: =IF(ISBOLD(C121),0,1) -> 1 | B121: =IF(A121>0,SUM($A$18:A121)," ") -> 96 | C121: Insurance billing
A122: =IF(ISBOLD(C122),0,1) -> 1 | B122: =IF(A122>0,SUM($A$18:A122)," ") -> 97 | C122: The system calculates benefit payments and catch up amounts
A123: =IF(ISBOLD(C123),0,1) -> 1 | B123: =IF(A123>0,SUM($A$18:A123)," ") -> 98 | C123: The system bills retirees (non-active employees) for benefit contributions that are owed back to the government
A124: =IF(ISBOLD(C124),0,1) -> 1 | B124: =IF(A124>0,SUM($A$18:A124)," ") -> 99 | C124: The system administers benefits on total employment, all positions combined (How the position contributes to the total employment depends on the status of the position (example: 2 positions that are permanent combine for total employment; 1 permanent positions and 1 temporary or seasonal position do not combine – only the permanent position counts)
A125: =IF(ISBOLD(C125),0,1) -> 1 | B125: =IF(A125>0,SUM($A$18:A125)," ") -> 100 | C125: The system utilizes benefit tables to determine rate of payments.
A126: =IF(ISBOLD(C126),0,1) -> 1 | B126: =IF(A126>0,SUM($A$18:A126)," ") -> 101 | C126: The system designates a group of employees for a specific benefit by base salary, by management level, by hours of service and other user defined criteria
A127: =IF(ISBOLD(C127),0,1) -> 1 | B127: =IF(A127>0,SUM($A$18:A127)," ") -> 102 | C127: The system links employee status to employee eligibility (e.g., leave of absence with out pay vs. leave of absence with pay).
A128: =IF(ISBOLD(C128),0,1) -> 1 | B128: =IF(A128>0,SUM($A$18:A128)," ") -> 103 | C128: The system monitors benefit eligibility throughout leave and notifies user of changes in eligiblity | D128: x
A129: =IF(ISBOLD(C129),0,1) -> 1 | B129: =IF(A129>0,SUM($A$18:A129)," ") -> 104 | C129: The system determines benefit eligibility after retirement | D129: x
A130: =IF(ISBOLD(C130),0,1) -> 1 | B130: =IF(A130>0,SUM($A$18:A130)," ") -> 105 | C130: The system determines benefit eligibility based on employment status (full time, part time, and other user defined employment statuses)
A131: =IF(ISBOLD(C131),0,1) -> 1 | B131: =IF(A131>0,SUM($A$18:A131)," ") -> 106 | C131: The system prevents employees from being enrolled in a plan for which they are not eligible, with secure override capability for exceptions
A132: =IF(ISBOLD(C132),0,1) -> 1 | B132: =IF(A132>0,SUM($A$18:A132)," ") -> 107 | C132: The system enters effective dates of enrollment across plan years or premium years
A133: =IF(ISBOLD(C133),0,1) -> 1 | B133: =IF(A133>0,SUM($A$18:A133)," ") -> 108 | C133: The system maintains different and multiple eligibility dates for different benefit plans
A134: =IF(ISBOLD(C134),0,1) -> 1 | B134: =IF(A134>0,SUM($A$18:A134)," ") -> 109 | C134: The system determines employee's eligibility based on employee's position, bargaining unit, job class and other user defined categories
A135: =IF(ISBOLD(C135),0,1) -> 1 | B135: =IF(A135>0,SUM($A$18:A135)," ") -> 110 | C135: The system determines employee's eligibility based on an employee being associated with more than one job class
A136: =IF(ISBOLD(C136),0,1) -> 1 | B136: =IF(A136>0,SUM($A$18:A136)," ") -> 111 | C136: The system determines employee's eligibility based upon number of hours worked (e.g. 40 hours) even if in two positions that are not benefit eligible
A137: =IF(ISBOLD(C137),0,1) -> 1 | B137: =IF(A137>0,SUM($A$18:A137)," ") -> 112 | C137: The system converts the deduction register into a payment to the bargaining unit on a quarterly basis
A138: =IF(ISBOLD(C138),0,1) -> 1 | B138: =IF(A138>0,SUM($A$18:A138)," ") -> 113 | C138: The system maintains benefit plan history by employee
A139: =IF(ISBOLD(C139),0,1) -> 1 | B139: =IF(A139>0,SUM($A$18:A139)," ") -> 114 | C139: The system inputs plan changes based on effective dates
A140: =IF(ISBOLD(C140),0,1) -> 1 | B140: =IF(A140>0,SUM($A$18:A140)," ") -> 115 | C140: The system changes groups of employees from eligible to not eligible for a plan
A141: =IF(ISBOLD(C141),0,1) -> 1 | B141: =IF(A141>0,SUM($A$18:A141)," ") -> 116 | C141: The system processes refunds and credits from the benefit provider
A142: =IF(ISBOLD(C142),0,1) -> 1 | B142: =IF(A142>0,SUM($A$18:A142)," ") -> 117 | C142: The system tracks employee benefit plan changes and eligibility | D142: x
A143: =IF(ISBOLD(C143),0,1) -> 1 | B143: =IF(A143>0,SUM($A$18:A143)," ") -> 118 | C143: The system administers online open enrollment for users
A144: =IF(ISBOLD(C144),0,1) -> 0 | B144: =IF(A144>0,SUM($A$18:A144)," ") ->  | C144: Benefit Plan Eligibility
A145: =IF(ISBOLD(C145),0,1) -> 0 | B145: =IF(A145>0,SUM($A$18:A145)," ") ->  | C145: The system processes eligibility of COBRA eligible individuals based on the following:
A146: =IF(ISBOLD(C146),0,1) -> 1 | B146: =IF(A146>0,SUM($A$18:A146)," ") -> 119 | C146: Tracking of COBRA eligibility based on user-defined criteria
A147: =IF(ISBOLD(C147),0,1) -> 1 | B147: =IF(A147>0,SUM($A$18:A147)," ") -> 120 | C147: Establish appropriate qualifying events that will initiate COBRA processing
A148: =IF(ISBOLD(C148),0,1) -> 1 | B148: =IF(A148>0,SUM($A$18:A148)," ") -> 121 | C148: Extend COBRA eligibility and enrollment due to disability
A149: =IF(ISBOLD(C149),0,1) -> 1 | B149: =IF(A149>0,SUM($A$18:A149)," ") -> 122 | C149: Prepare COBRA billings and issue accordingly
A150: =IF(ISBOLD(C150),0,1) -> 1 | B150: =IF(A150>0,SUM($A$18:A150)," ") -> 123 | C150: Track COBRA payments based on pre-defined criteria
A151: =IF(ISBOLD(C151),0,1) -> 1 | B151: =IF(A151>0,SUM($A$18:A151)," ") -> 124 | C151: The system extends COBRA enrollments for an additional specified period and bills the individual accordingly
A152: =IF(ISBOLD(C152),0,1) -> 1 | B152: =IF(A152>0,SUM($A$18:A152)," ") -> 125 | C152: The system triggers and creates COBRA letter to employee based on qualifying events | D152: x
A153: =IF(ISBOLD(C153),0,1) -> 1 | B153: =IF(A153>0,SUM($A$18:A153)," ") -> 126 | C153: The system maintains history of eligibility as well as a history of enrollments for dependents | D153: x
A154: =IF(ISBOLD(C154),0,1) -> 1 | B154: =IF(A154>0,SUM($A$18:A154)," ") -> 127 | C154: The system tracks dependent age
A155: =IF(ISBOLD(C155),0,1) -> 1 | B155: =IF(A155>0,SUM($A$18:A155)," ") -> 128 | C155: The system tracks unpaid premiums
A156: =IF(ISBOLD(C156),0,1) -> 0 | B156: =IF(A156>0,SUM($A$18:A156)," ") ->  | C156: The system accumulates benefit costs by one or a combination of:
A157: =IF(ISBOLD(C157),0,1) -> 1 | B157: =IF(A157>0,SUM($A$18:A157)," ") -> 129 | C157: Town (organization at user specified level)
A158: =IF(ISBOLD(C158),0,1) -> 1 | B158: =IF(A158>0,SUM($A$18:A158)," ") -> 130 | C158: Benefit type
A159: =IF(ISBOLD(C159),0,1) -> 1 | B159: =IF(A159>0,SUM($A$18:A159)," ") -> 131 | C159: Plan
A160: =IF(ISBOLD(C160),0,1) -> 1 | B160: =IF(A160>0,SUM($A$18:A160)," ") -> 132 | C160: Vendor
A161: =IF(ISBOLD(C161),0,1) -> 1 | B161: =IF(A161>0,SUM($A$18:A161)," ") -> 133 | C161: Employee
A162: =IF(ISBOLD(C162),0,1) -> 0 | B162: =IF(A162>0,SUM($A$18:A162)," ") ->  | C162: The system processes the following benefits eligibility events:
A163: =IF(ISBOLD(C163),0,1) -> 1 | B163: =IF(A163>0,SUM($A$18:A163)," ") -> 134 | C163: Activation of coverage for employee, spouse, and non-spouse dependents
A164: =IF(ISBOLD(C164),0,1) -> 1 | B164: =IF(A164>0,SUM($A$18:A164)," ") -> 135 | C164: Activation of coverage for survivors (former dependents of employees that are allowed to continue their benefits coverage)
A165: =IF(ISBOLD(C165),0,1) -> 1 | B165: =IF(A165>0,SUM($A$18:A165)," ") -> 136 | C165: Maintenance of beneficiary information
A166: =IF(ISBOLD(C166),0,1) -> 1 | B166: =IF(A166>0,SUM($A$18:A166)," ") -> 137 | C166: Extended coverage of dependent
A167: =IF(ISBOLD(C167),0,1) -> 1 | B167: =IF(A167>0,SUM($A$18:A167)," ") -> 138 | C167: Medicare eligibility
A168: =IF(ISBOLD(C168),0,1) -> 1 | B168: =IF(A168>0,SUM($A$18:A168)," ") -> 139 | C168: Early retiree health
A169: =IF(ISBOLD(C169),0,1) -> 1 | B169: =IF(A169>0,SUM($A$18:A169)," ") -> 140 | C169: Initiation of COBRA processing when an individual’s coverage is terminated due to a COBRA qualifying event
A170: =IF(ISBOLD(C170),0,1) -> 1 | B170: =IF(A170>0,SUM($A$18:A170)," ") -> 141 | C170: Evidence of insurability
A171: =IF(ISBOLD(C171),0,1) -> 1 | B171: =IF(A171>0,SUM($A$18:A171)," ") -> 142 | C171: Terminating/retiring employees
A172: =IF(ISBOLD(C172),0,1) -> 1 | B172: =IF(A172>0,SUM($A$18:A172)," ") -> 143 | C172: Termination of coverage for employee, spouse, and non-spouse dependents
A173: =IF(ISBOLD(C173),0,1) -> 1 | B173: =IF(A173>0,SUM($A$18:A173)," ") -> 144 | C173: The system manages STD and LTD history by employee
A174: =IF(ISBOLD(C174),0,1) -> 1 | B174: =IF(A174>0,SUM($A$18:A174)," ") -> 145 | C174: The system notifies departments and employees of STD and LTD usage
A175: =IF(ISBOLD(C175),0,1) -> 1 | B175: =IF(A175>0,SUM($A$18:A175)," ") -> 146 | C175: The system monitors STD and LTD application by employee
A176: =IF(ISBOLD(C176),0,1) -> 1 | B176: =IF(A176>0,SUM($A$18:A176)," ") -> 147 | C176: The system monitors STD and LTD by number of days
A177: =IF(ISBOLD(C177),0,1) -> 0 | B177: =IF(A177>0,SUM($A$18:A177)," ") ->  | C177: Workers' Compensation
A178: =IF(ISBOLD(C178),0,1) -> 1 | B178: =IF(A178>0,SUM($A$18:A178)," ") -> 148 | C178: The system integrates information between time and attendance, payroll and workers' compensation
A179: =IF(ISBOLD(C179),0,1) -> 1 | B179: =IF(A179>0,SUM($A$18:A179)," ") -> 149 | C179: The system allows employees to select to receive sick leave when receiving workers' compensation
A180: =IF(ISBOLD(C180),0,1) -> 1 | B180: =IF(A180>0,SUM($A$18:A180)," ") -> 150 | C180: The system allows employees to charge time to sick leave when on workers' compensation through self service
A181: =IF(ISBOLD(C181),0,1) -> 1 | B181: =IF(A181>0,SUM($A$18:A181)," ") -> 151 | C181: The system allows the employer to request to return sick leave used (e.g., time charged to sick leave) when claim has been approved
A182: =IF(ISBOLD(C182),0,1) -> 1 | B182: =IF(A182>0,SUM($A$18:A182)," ") -> 152 | C182: The system adjusts sick leave based upon security, workflow and approvals and other user defined criteria
A183: =IF(ISBOLD(C183),0,1) -> 1 | B183: =IF(A183>0,SUM($A$18:A183)," ") -> 153 | C183: The system create OSHA reports for a given incident.
A184: =IF(ISBOLD(C184),0,1) -> 1 | B184: =IF(A184>0,SUM($A$18:A184)," ") -> 154 | C184: The system work flows workers' compensation data such as time cards to additional staff (e.g., workers comp staff) for a temporary period, based upon workers compensation action
A185: =IF(ISBOLD(C185),0,1) -> 0 | B185: =IF(A185>0,SUM($A$18:A185)," ") ->  | C185: Retirement Systems
A186: =IF(ISBOLD(C186),0,1) -> 1 | B186: =IF(A186>0,SUM($A$18:A186)," ") -> 155 | C186: The system defines retirements contributions by employer and employee
A187: =IF(ISBOLD(C187),0,1) -> 1 | B187: =IF(A187>0,SUM($A$18:A187)," ") -> 156 | C187: The system defines employees as eligible or ineligible for CalPERS retirement plan(s) and whether employee is eligible as a Classic or PEPRA member
A188: =IF(ISBOLD(C188),0,1) -> 1 | B188: =IF(A188>0,SUM($A$18:A188)," ") -> 157 | C188: The system tracks employee changes to retirement system eligibility
A189: =IF(ISBOLD(C189),0,1) -> 1 | B189: =IF(A189>0,SUM($A$18:A189)," ") -> 158 | C189: The system tracks adjustments and corrections to retirement elections
A190: =IF(ISBOLD(C190),0,1) -> 1 | B190: =IF(A190>0,SUM($A$18:A190)," ") -> 159 | C190: The system tracks employees' eligibility changes in relation to retirement system
A191: =IF(ISBOLD(C191),0,1) -> 0 | B191: =IF(A191>0,SUM($A$18:A191)," ") ->  | C191: The system tracks employee types for retirement system eligibility, including:
A192: =IF(ISBOLD(C192),0,1) -> 1 | B192: =IF(A192>0,SUM($A$18:A192)," ") -> 160 | C192: Intermittent
A193: =IF(ISBOLD(C193),0,1) -> 1 | B193: =IF(A193>0,SUM($A$18:A193)," ") -> 161 | C193: Temporary
A194: =IF(ISBOLD(C194),0,1) -> 1 | B194: =IF(A194>0,SUM($A$18:A194)," ") -> 162 | C194: Permanent
A195: =IF(ISBOLD(C195),0,1) -> 1 | B195: =IF(A195>0,SUM($A$18:A195)," ") -> 163 | C195: Seasonal
A196: =IF(ISBOLD(C196),0,1) -> 1 | B196: =IF(A196>0,SUM($A$18:A196)," ") -> 164 | C196: The system tracks employees on leave eligibility
A197: =IF(ISBOLD(C197),0,1) -> 1 | B197: =IF(A197>0,SUM($A$18:A197)," ") -> 165 | C197: The system reports on employees on leave without pay with reason code
A198: =IF(ISBOLD(C198),0,1) -> 1 | B198: =IF(A198>0,SUM($A$18:A198)," ") -> 166 | C198: The system reports on payroll period on which contributions have been and should have been reported
A199: =IF(ISBOLD(C199),0,1) -> 1 | B199: =IF(A199>0,SUM($A$18:A199)," ") -> 167 | C199: The system tracks military leave for retirement system reporting | D199: x
A200: =IF(ISBOLD(C200),0,1) -> 1 | B200: =IF(A200>0,SUM($A$18:A200)," ") -> 168 | C200: The system has retro adjustments automatically generate appropriate reporting to the Town's various retirement systems
A201: =IF(ISBOLD(C201),0,1) -> 0 | B201: =IF(A201>0,SUM($A$18:A201)," ") ->  | C201: Reporting, Analysis and Inquiry
A202: =IF(ISBOLD(C202),0,1) -> 1 | B202: =IF(A202>0,SUM($A$18:A202)," ") -> 169 | C202: The system projects and inquires on future premiums due by individual, group, and other factors | D202: x
A203: =IF(ISBOLD(C203),0,1) -> 0 | B203: =IF(A203>0,SUM($A$18:A203)," ") ->  | C203: The system utilizes data from vendor for analysis of specific plans based on the following criteria:
A204: =IF(ISBOLD(C204),0,1) -> 1 | B204: =IF(A204>0,SUM($A$18:A204)," ") -> 170 | C204: Costs by plan
A205: =IF(ISBOLD(C205),0,1) -> 1 | B205: =IF(A205>0,SUM($A$18:A205)," ") -> 171 | C205: Costs by benefit type
A206: =IF(ISBOLD(C206),0,1) -> 1 | B206: =IF(A206>0,SUM($A$18:A206)," ") -> 172 | C206: Costs by vendor
A207: =IF(ISBOLD(C207),0,1) -> 1 | B207: =IF(A207>0,SUM($A$18:A207)," ") -> 173 | C207: Utilization
A208: =IF(ISBOLD(C208),0,1) -> 1 | B208: =IF(A208>0,SUM($A$18:A208)," ") -> 174 | C208: Comparison reporting
A209: =IF(ISBOLD(C209),0,1) -> 1 | B209: =IF(A209>0,SUM($A$18:A209)," ") -> 175 | C209: The system reports current and historical employee information by user defined criteria
... 15 more rows

Sheet EDM
C1: Requirements Survey
C2: Electronic Document and Records Management | E2: Requirements Response Rules:
C3: The following functional, technical, workflow and reporting needs provide the minimum requirements of the Town of Colma. Please review the items carefully and respond in accordance with the requirements response rules provided. Any partial response will be deemed as an invalid response. MANDATORY: EVERY REQUIREMENT (Req#) MUST HAVE A RESPONSE TO BE CONSIDERED COMPLETE. | E3: Column #1. Mandatory: Proposers are required to input one response per requirement using the drop down list provided. Response Types: F=Fully provided out of the box, or fully provided out of the box through basic configuration Mod= Provided through a technical modification of the software (i.e. a customization) TP = Provided through a proposed third party application or capability CR= Custom report requiring development SR = Standard report provided through a built in or proposed reporting tool NA = Not Available Column #2. Proposers are requested to itemize estimated costs for all modification requirements. Column #3. Proposers are requested to list the third party product name for all Third Party Product requirements. Column #4. Mandatory: Proposers are required to mark yes or no to whether the implementation costs of this functionality is included in their cost proposal. Column #5. Mandatory: Proposers are required to mark yes or no to whether the training costs of this functionality is included in their cost proposal. Column #6. If a subcontractor is implementing or providing training for this functionality, please indicate the name of the subcontracting firm responsible for this functionality. Column #7. Mandatory: Proposers are required to list the version number for all functionality proposed to the Town.
C13: PROCESS | D13: High Priority | E13: 1.Response | F13: 2.Costs for Mod response | G13: 3.Third Party Application for TP response | H13: 4. Included in Implementation Costs | I13: 5. Included in training costs | J13: 6. Subcontractor | K13: 7. Version Number | L13: Comments/Narrative
B14: Req#
H15: Yes/No | I15: Yes/No
C16: Electronic Data Management
C17: Compliance
A18: =IF(ISBOLD(C18),0,1) -> 1 | B18: =IF(A18>0,SUM($A$18:A18)," ") -> 1 | C18: The system can be configured to meet retention and purge schedules consistent with local, state and national laws | D18: x
A19: =IF(ISBOLD(C19),0,1) -> 0 | B19: =IF(A19>0,SUM($A$18:A19)," ") ->  | C19: Record Capture
A20: =IF(ISBOLD(C20),0,1) -> 1 | B20: =IF(A20>0,SUM($A$18:A20)," ") -> 2 | C20: The system accommodates manual upload of records unrelated to a transaction within the system
A21: =IF(ISBOLD(C21),0,1) -> 1 | B21: =IF(A21>0,SUM($A$18:A21)," ") -> 3 | C21: The system generates a unique identifier for each record
A22: =IF(ISBOLD(C22),0,1) -> 1 | B22: =IF(A22>0,SUM($A$18:A22)," ") -> 4 | C22: The system uploads and stores zero balance AP invoices received by the Town (i.e. utility bills that the Town is not required to pay but still receives a $0 invoice for)
A23: =IF(ISBOLD(C23),0,1) -> 0 | B23: =IF(A23>0,SUM($A$18:A23)," ") ->  | C23: The system records the following when a record is created or loaded:
A24: =IF(ISBOLD(C24),0,1) -> 1 | B24: =IF(A24>0,SUM($A$18:A24)," ") -> 5 | C24: Unique identifier (number or alphanumeric)
A25: =IF(ISBOLD(C25),0,1) -> 1 | B25: =IF(A25>0,SUM($A$18:A25)," ") -> 6 | C25: Date
A26: =IF(ISBOLD(C26),0,1) -> 1 | B26: =IF(A26>0,SUM($A$18:A26)," ") -> 7 | C26: Time
A27: =IF(ISBOLD(C27),0,1) -> 1 | B27: =IF(A27>0,SUM($A$18:A27)," ") -> 8 | C27: Created/loaded by
A28: =IF(ISBOLD(C28),0,1) -> 1 | B28: =IF(A28>0,SUM($A$18:A28)," ") -> 9 | C28: The system retains records as part of a transaction's workflow within the system
A29: =IF(ISBOLD(C29),0,1) -> 1 | B29: =IF(A29>0,SUM($A$18:A29)," ") -> 10 | C29: The system captures all metadata relevant to the set workflow
A30: =IF(ISBOLD(C30),0,1) -> 1 | B30: =IF(A30>0,SUM($A$18:A30)," ") -> 11 | C30: The system creates a relationship with drill down capability between the record and the transaction
A31: =IF(ISBOLD(C31),0,1) -> 1 | B31: =IF(A31>0,SUM($A$18:A31)," ") -> 12 | C31: The system captures a compound document (e.g. email with attachment) as a single record
A32: =IF(ISBOLD(C32),0,1) -> 1 | B32: =IF(A32>0,SUM($A$18:A32)," ") -> 13 | C32: The system retains versions of a record as a single record or separate versions as unique records (with system generated version identifiers saved as metadata)
A33: =IF(ISBOLD(C33),0,1) -> 1 | B33: =IF(A33>0,SUM($A$18:A33)," ") -> 14 | C33: The system accommodates the bulk capture of records created or maintained in other systems (e.g., building permits in the Green Vue permit tracking system)
A34: =IF(ISBOLD(C34),0,1) -> 0 | B34: =IF(A34>0,SUM($A$18:A34)," ") ->  | C34: The system captures the following documents:
A35: =IF(ISBOLD(C35),0,1) -> 1 | B35: =IF(A35>0,SUM($A$18:A35)," ") -> 15 | C35: Email
A36: =IF(ISBOLD(C36),0,1) -> 1 | B36: =IF(A36>0,SUM($A$18:A36)," ") -> 16 | C36: Word
A37: =IF(ISBOLD(C37),0,1) -> 1 | B37: =IF(A37>0,SUM($A$18:A37)," ") -> 17 | C37: PDF
A38: =IF(ISBOLD(C38),0,1) -> 1 | B38: =IF(A38>0,SUM($A$18:A38)," ") -> 18 | C38: Excel
A39: =IF(ISBOLD(C39),0,1) -> 1 | B39: =IF(A39>0,SUM($A$18:A39)," ") -> 19 | C39: JPEG
A40: =IF(ISBOLD(C40),0,1) -> 1 | B40: =IF(A40>0,SUM($A$18:A40)," ") -> 20 | C40: The system is integrated with the email system and allows users the option to capture selected emails and attach the email to a transaction
A41: =IF(ISBOLD(C41),0,1) -> 0 | B41: =IF(A41>0,SUM($A$18:A41)," ") ->  | C41: Classification and Indexing
A42: =IF(ISBOLD(C42),0,1) -> 1 | B42: =IF(A42>0,SUM($A$18:A42)," ") -> 21 | C42: The system provides drop-down options for classification schemes (functional based)
A43: =IF(ISBOLD(C43),0,1) -> 1 | B43: =IF(A43>0,SUM($A$18:A43)," ") -> 22 | C43: The system automatically assigns classification metadata to records and files at the point of creation
